Ref No,Fund Type,Dept,Cost Centre Description    ,Description    ,Creditor Name    ,GL Code Net Amount,Payment date        
2,Revenue,CAHD,18-25 Year Olds,Permanent Residential,1 St Georges House,13333.52, 17-Dec-2019
3,Revenue,CAHD,CSC - Asylum Seekers - Unaccompanied,Client Transport,1625 Independent People,72.60, 10-Dec-2019
4,Revenue,CAHD,CSC - Asylum Seekers - Unaccompanied,Personal Needs of Clients,1625 Independent People,887.00, 10-Dec-2019
5,Revenue,CAHD,Supporting People Programme,Grants to Voluntary Bodies,1625 Independent People,15167.00, 30-Dec-2019
6,Revenue,CAHD,Supporting People Programme,Grants to Voluntary Bodies,1625 Independent People,10046.00, 30-Dec-2019
7,Revenue,CAHD,CSC - Care Leavers Independent Living,Independent Living,1625 Independent People,500.00, 27-Dec-2019
8,Revenue,CAHD,CSC - Care Leavers Independent Living,Independent Living,16Pluscare Support Solutions,6809.91, 10-Dec-2019
9,Revenue,CAHD,CSC - Asylum Seekers - Unaccompanied,Adults - Family Support,16Pluscare Support Solutions,2356.55, 06-Dec-2019
10,Revenue,CAHD,Central - Commissioned Services,Day Care / Social Activities,3 Trees Community Support Ltd,390.40, 16-Dec-2019
11,Revenue,CAHD,Central - Commissioned Services,Other Small Contracts,3 Trees Community Support Ltd,5165.44, 16-Dec-2019
12,Revenue,CAHD,Central - Commissioned Services,Supported Living,3 Trees Community Support Ltd,5146.56, 16-Dec-2019
13,Revenue,CAHD,North - Community based support,Day Care / Social Activities,3 Trees Community Support Ltd,673.44, 16-Dec-2019
14,Revenue,CAHD,Central - Commissioned Services,Day Care / Social Activities,3 Trees Community Support Ltd,395.28, 11-Dec-2019
15,Revenue,CAHD,Central - Commissioned Services,Other Small Contracts,3 Trees Community Support Ltd,5165.44, 11-Dec-2019
16,Revenue,CAHD,Central - Commissioned Services,Supported Living,3 Trees Community Support Ltd,5278.32, 11-Dec-2019
17,Revenue,CAHD,North - Community based support,Day Care / Social Activities,3 Trees Community Support Ltd,678.32, 11-Dec-2019
18,Revenue,CAHD,Central - Commissioned Services,Day Care / Social Activities,3 Trees Community Support Ltd,390.40, 17-Dec-2019
19,Revenue,CAHD,Central - Commissioned Services,Other Small Contracts,3 Trees Community Support Ltd,5157.16, 17-Dec-2019
20,Revenue,CAHD,Central - Commissioned Services,Supported Living,3 Trees Community Support Ltd,5273.46, 17-Dec-2019
21,Revenue,CAHD,North - Community based support,Day Care / Social Activities,3 Trees Community Support Ltd,673.44, 17-Dec-2019
22,Revenue,CAHD,Central - Commissioned Services,Day Care / Social Activities,3 Trees Community Support Ltd,390.40, 24-Dec-2019
23,Revenue,CAHD,Central - Commissioned Services,Other Small Contracts,3 Trees Community Support Ltd,5148.34, 24-Dec-2019
24,Revenue,CAHD,Central - Commissioned Services,Supported Living,3 Trees Community Support Ltd,5141.68, 24-Dec-2019
25,Revenue,CAHD,North - Community based support,Day Care / Social Activities,3 Trees Community Support Ltd,527.04, 24-Dec-2019
26,Revenue,CAHD,South - bed purchasing and direct  payments,Permanent Residential,5Th Floor Harlech Court,16667.12, 17-Dec-2019
27,Revenue,CAHD,South - bed purchasing and direct  payments,Permanent Residential,5Th Floor Harlech Court,10419.52, 17-Dec-2019
28,Revenue,CAHD,S28A cases,Permanent Residential,5Th Floor Harlech Court,10904.68, 17-Dec-2019
29,Revenue,CAHD,South - bed purchasing and direct  payments,Permanent Residential,5Th Floor Harlech Court,11436.40, 17-Dec-2019
30,Revenue,CAHD,North - bed purchasing and direct  payments,Permanent Residential,5Th Floor Harlech Court,12498.56, 17-Dec-2019
31,Revenue,CAHD,North - bed purchasing and direct  payments,Permanent Residential,5Th Floor Harlech Court,10537.24, 17-Dec-2019
32,Revenue,CAHD,North - bed purchasing and direct  payments,Permanent Residential,5Th Floor Harlech Court,9071.12, 17-Dec-2019
33,Revenue,CAHD,CSC - Vinney Green Secure Unit,Operational Equipment,Absolute Bounce,850.00, 02-Dec-2019
34,Revenue,CAHD,CSC - Vinney Green Secure Unit,Operational Equipment,Absolute Bounce,2390.00, 24-Dec-2019
35,Revenue,CAHD,Mental Health and Emotional Wellbeing,Training Expenses,Ace Wellbeing Ltd,800.00, 24-Dec-2019
36,Revenue,CAHD,Section 117 Placements MH Younger,Permanent Residential,Acorn Care Providers,6608.20, 17-Dec-2019
37,Revenue,CAHD,North - S117,Permanent Residential,Acorn Care Providers,3900.00, 17-Dec-2019
38,Revenue,CAHD,Jointly Funded H&SC Packages,Permanent Residential,Acorn Care Providers,2100.00, 17-Dec-2019
39,Revenue,CAHD,MH Purchasing - Younger,Permanent Residential,Acorn Care Providers,6144.00, 17-Dec-2019
40,Revenue,CAHD,Training - Adult Services,Training Expenses,Acorn Health & Safety Limited,477.00, 05-Dec-2019
41,Revenue,CAHD,Training - Adult Services,Training Expenses,Acorn Health & Safety Limited,418.00, 05-Dec-2019
42,Revenue,CAHD,Training - Adult Services,Training Expenses,Acorn Health & Safety Limited,427.50, 12-Dec-2019
43,Revenue,CAHD,Training - Adult Services,Training Expenses,Acorn Health & Safety Limited,477.00, 09-Dec-2019
44,Revenue,CAHD,Training - Adult Services,Training Expenses,Acorn Health & Safety Limited,427.50, 24-Dec-2019
45,Revenue,CAHD,South - Commissioned Services,Supported Living,Action on Hearing Loss,750.40, 24-Dec-2019
46,Revenue,CAHD,South Glos Users in South Glos Homes,Permanent Nursing,Administration And Revenue Centre,1915.77, 17-Dec-2019
47,Revenue,CAHD,South Glos Users in South Glos Homes,Permanent Nursing,Administration And Revenue Centre,780.50, 17-Dec-2019
48,Revenue,CAHD,North - bed purchasing and direct  payments,Permanent Nursing,Admirals Reach Care Home,2662.24, 17-Dec-2019
49,Revenue,CAHD,South - Commissioned Services,Other Small Contracts,Advantedge Commercial Finance Limited,623.56, 11-Dec-2019
50,Revenue,CAHD,South - Commissioned Services,Other Small Contracts,Advantedge Commercial Finance Limited,2094.40, 12-Dec-2019
51,Revenue,CAHD,South - Commissioned Services,Other Small Contracts,Advantedge Commercial Finance Limited,604.52, 11-Dec-2019
52,Revenue,CAHD,South - Commissioned Services,Other Small Contracts,Advantedge Commercial Finance Limited,647.36, 12-Dec-2019
53,Revenue,CAHD,South - Commissioned Services,Other Small Contracts,Advantedge Commercial Finance Limited,628.32, 24-Dec-2019
54,Revenue,CAHD,South - Commissioned Services,Other Small Contracts,Advantedge Commercial Finance Limited,799.68, 24-Dec-2019
55,Revenue,CAHD,South - Commissioned Services,Other Small Contracts,Advantedge Commercial Finance Limited,1066.24, 24-Dec-2019
56,Revenue,CAHD,South - Commissioned Services,Other Small Contracts,Advantedge Commercial Finance Limited,937.72, 24-Dec-2019
57,Revenue,CAHD,South - Commissioned Services,Other Small Contracts,Advantedge Commercial Finance Limited,647.36, 24-Dec-2019
58,Revenue,CAHD,South - Commissioned Services,Other Small Contracts,Advantedge Commercial Finance Limited,685.44, 24-Dec-2019
59,Revenue,CAHD,South - Commissioned Services,Day Care / Social Activities,Age Concern,634.24, 17-Dec-2019
60,Revenue,CAHD,South - Commissioned Services,Day Care / Social Activities,Age Concern,634.24, 17-Dec-2019
61,Revenue,CAHD,South - Commissioned Services,Day Care / Social Activities,Age Concern,900.00, 17-Dec-2019
62,Revenue,CAHD,South - Commissioned Services,Day Care / Social Activities,Age Concern,720.00, 17-Dec-2019
63,Revenue,CAHD,South - Commissioned Services,Day Care / Social Activities,Age Concern,720.00, 17-Dec-2019
64,Revenue,CAHD,South - Commissioned Services,Day Care / Social Activities,Age Concern,621.60, 17-Dec-2019
65,Revenue,CAHD,South - Commissioned Services,Day Care / Social Activities,Age Concern,621.60, 17-Dec-2019
66,Revenue,CAHD,South - Commissioned Services,Day Care / Social Activities,Age Concern,621.60, 17-Dec-2019
67,Revenue,CAHD,Central - Commissioned Services,Day Care / Social Activities,Age Concern,600.00, 17-Dec-2019
68,Revenue,CAHD,North - Community based support,Day Care / Social Activities,Age Concern,621.60, 17-Dec-2019
69,Revenue,CAHD,North - Community based support,Day Care / Social Activities,Age Concern,720.00, 17-Dec-2019
70,Revenue,CAHD,Central - Commissioned Services,Day Care / Social Activities,Age Concern,634.24, 17-Dec-2019
71,Revenue,CAHD,Central - Commissioned Services,Day Care / Social Activities,Age Concern,536.00, 17-Dec-2019
72,Revenue,CAHD,North - Community based support,Day Care / Social Activities,Age Concern,634.24, 17-Dec-2019
73,Revenue,CAHD,Central - Commissioned Services,Day Care / Social Activities,Age Concern,621.60, 17-Dec-2019
74,Revenue,CAHD,Central - Commissioned Services,Day Care / Social Activities,Age Concern,621.60, 17-Dec-2019
75,Revenue,CAHD,Mental Health and Emotional Wellbeing,Other Small Contracts,Age UK South Gloucestershire,13725.00, 30-Dec-2019
76,Revenue,CAHD,South - Commissioned Services,Day Care / Social Activities,Age UK South Gloucestershire,1059.20, 23-Dec-2019
77,Revenue,CAHD,Extra Care Housing,Private & Voluntary Home Care,Agincare UK Limited,23256.50, 30-Dec-2019
78,Revenue,CAHD,Extra Care Housing,Private & Voluntary Home Care,Agincare UK Limited,11253.50, 30-Dec-2019
79,Revenue,CAHD,Extra Care Housing,Private & Voluntary Home Care,Agincare UK Limited,28508.53, 04-Dec-2019
80,Revenue,CAHD,Extra Care Housing,Private & Voluntary Home Care,Agincare UK Limited,2081.39, 19-Dec-2019
81,Revenue,CAHD,Extra Care Housing,Private & Voluntary Home Care,Agincare UK Limited,2810.59, 16-Dec-2019
82,Revenue,CAHD,Extra Care Housing,Private & Voluntary Home Care,Agincare UK Limited,1698.84, 16-Dec-2019
83,Revenue,CAHD,Prison Assessments & Costs,Other Supplies & Services,Agincare UK Limited,4214.00, 17-Dec-2019
84,Revenue,CAHD,Prison Assessments & Costs,Other Supplies & Services,Agincare UK Limited,4257.00, 17-Dec-2019
85,Revenue,CAHD,Training - Adult Services,Training Expenses,Alex Ruck Keene,567.50, 04-Dec-2019
86,Revenue,CAHD,18-25 Year Olds,Permanent Residential,Alexander House,12155.16, 17-Dec-2019
87,Revenue,CAHD,18-25 Year Olds,Permanent Residential,Alexander House,12155.16, 17-Dec-2019
88,Revenue,CAHD,South - Commissioned Services,Other Small Contracts,AliMo Care Ltd,781.56, 06-Dec-2019
89,Revenue,CAHD,North - Community based support,Other Small Contracts,AliMo Care Ltd,117.00, 06-Dec-2019
90,Revenue,CAHD,South - Commissioned Services,Other Small Contracts,AliMo Care Ltd,819.00, 17-Dec-2019
91,Revenue,CAHD,North - Community based support,Other Small Contracts,AliMo Care Ltd,121.68, 17-Dec-2019
92,Revenue,CAHD,South - Commissioned Services,Other Small Contracts,AliMo Care Ltd,828.36, 20-Dec-2019
93,Revenue,CAHD,North - Community based support,Other Small Contracts,AliMo Care Ltd,126.36, 20-Dec-2019
94,Revenue,CAHD,South - Commissioned Services,Other Small Contracts,AliMo Care Ltd,823.68, 23-Dec-2019
95,Revenue,CAHD,North - Community based support,Other Small Contracts,AliMo Care Ltd,117.00, 23-Dec-2019
96,Revenue,CAHD,South - Commissioned Services,Other Small Contracts,AliMo Care Ltd,823.68, 30-Dec-2019
97,Revenue,CAHD,North - Community based support,Other Small Contracts,AliMo Care Ltd,88.92, 30-Dec-2019
98,Revenue,CAHD,North - bed purchasing and direct  payments,Permanent Nursing,Allambie Court,2320.44, 17-Dec-2019
99,Revenue,CAHD,Central - Bed Purchasing and Direct Payments,Permanent Residential,Alvony House Residential Care Home,5250.00, 17-Dec-2019
100,Revenue,CAHD,Mental Health and Emotional Wellbeing,Other Small Contracts,Alzheimers Society,11142.75, 30-Dec-2019
101,Revenue,CAHD,North - bed purchasing and direct  payments,Respite Planned - Residential,Amber House,8257.51, 17-Dec-2019
102,Revenue,CAHD,North - bed purchasing and direct  payments,Respite Planned - Residential,Amber House,7225.32, 17-Dec-2019
103,Revenue,CAHD,CSC - Residential Placements,Permanent Residential,Amberleigh Care Ltd,16688.57, 02-Dec-2019
104,Revenue,CAHD,CSC - Residential Placements,Permanent Residential,Amberleigh Care Ltd,17244.86, 23-Dec-2019
105,Revenue,CAHD,CSC - Residential Placements,Permanent Residential,Amberleigh Care Ltd,17244.86, 23-Dec-2019
106,Revenue,CAHD,EARLY YEARS DISABILITY  ACCES FUND,Preventative Assistance,Ambourne House Day Nursery,615.00, 30-Dec-2019
107,Revenue,CAHD,North - bed purchasing and direct  payments,Permanent Nursing,Amerind Grove Nursing Home,2706.32, 17-Dec-2019
108,Revenue,CAHD,ELS - Skills,Educational Materials,Amey Computer Services,1374.00, 13-Dec-2019
109,Revenue,CAHD,CSC - Agency Fostering,Foster Parent Allowances,Amicus Foster Care Ltd,3157.20, 04-Dec-2019
110,Revenue,CAHD,CSC - Parent & Child Assessments,Foster Parent Allowances,Amicus Foster Care Ltd,7379.40, 04-Dec-2019
111,Revenue,CAHD,CSC - Agency Fostering,Foster Parent Allowances,Amicus Foster Care Ltd,4721.61, 04-Dec-2019
112,Revenue,CAHD,Supporting People Programme,Grants to Voluntary Bodies,Anchor Hanover Group,1039.00, 30-Dec-2019
113,Revenue,CAHD,Supporting People Programme,Grants to Voluntary Bodies,Anchor Hanover Group,847.00, 30-Dec-2019
114,Revenue,CAHD,CSC - Legal Fees,Legal Fees,Individual,2130.00, 02-Dec-2019
115,Revenue,CAHD,Jointly Funded H&SC Packages,Permanent Residential,Ash View House,1111.40, 17-Dec-2019
116,Revenue,CAHD,South - bed purchasing and direct  payments,Permanent Residential,Ash View House,5421.04, 17-Dec-2019
117,Revenue,CAHD,S117 Placements PCT,Permanent Residential,Ash View House,7556.32, 17-Dec-2019
118,Revenue,CAHD,18-25 Year Olds,Permanent Residential,Ash View House,7099.52, 17-Dec-2019
119,Revenue,CAHD,North - bed purchasing and direct  payments,Permanent Residential,Ash View House,7120.00, 17-Dec-2019
120,Revenue,CAHD,Section 117 Placements MH Younger,Permanent Residential,Ash View House,4924.12, 17-Dec-2019
121,Revenue,CAHD,Jointly Funded H&SC Packages,Permanent Residential,Ash View House,2110.40, 17-Dec-2019
122,Revenue,CAHD,South - S117,Permanent Residential,Ash View House,6692.80, 17-Dec-2019
123,Revenue,CAHD,18-25 Year Olds,Permanent Residential,Ash View House,6615.52, 17-Dec-2019
124,Revenue,CAHD,Drug and Alcohol Programme,Rent,Ashville Asset Management Limited,1211.02, 24-Dec-2019
125,Revenue,CAHD,Drug and Alcohol Programme,Rent,Ashville Asset Management Limited,4550.00, 24-Dec-2019
126,Revenue,CAHD,North - bed purchasing and direct  payments,Permanent Residential,Aspects 2 Limited,7231.88, 17-Dec-2019
127,Revenue,CAHD,Supporting People Programme,Grants to Voluntary Bodies,Aspects and Milestones Trust,3441.00, 30-Dec-2019
128,Revenue,CAHD,Supporting People Programme,Grants to Voluntary Bodies,Aspects and Milestones Trust,1725.00, 30-Dec-2019
129,Revenue,CAHD,0-25 Annual Review Team,Interview Expenses,Association of Educational Psychologists,700.00, 06-Dec-2019
130,Revenue,CAHD,South - bed purchasing and direct  payments,Adults - Family Support,Ategi Limited,17625.02, 18-Dec-2019
131,Revenue,CAHD,Shared Lives,Other Supplies & Services,Ategi Limited,51943.75, 30-Dec-2019
132,Revenue,CAHD,Independent Special Placements - Post 16,Other Private Contractors,Aurora Hedgeway School,3703.84, 13-Dec-2019
133,Revenue,CAHD,Independent Special Placements - Pre 16,Other Private Contractors,Aurora Hedgeway School,15154.33, 13-Dec-2019
134,Revenue,CAHD,Independent Special Placements - Pre 16,Other Private Contractors,Aurora Hedgeway School,15154.33, 13-Dec-2019
135,Revenue,CAHD,Independent Special Placements - Pre 16,Other Private Contractors,Aurora Hedgeway School,15154.33, 13-Dec-2019
136,Revenue,CAHD,Independent Special Placements - Pre 16,Other Private Contractors,Aurora Hedgeway School,15154.33, 13-Dec-2019
137,Revenue,CAHD,Independent Special Placements - Post 16,Other Private Contractors,Aurora Hedgeway School,15114.67, 13-Dec-2019
138,Revenue,CAHD,Independent Special Placements - Pre 16,Other Private Contractors,Aurora Hedgeway School,15154.33, 13-Dec-2019
139,Revenue,CAHD,Independent Special Placements - Pre 16,Other Private Contractors,Aurora Hedgeway School,15154.33, 13-Dec-2019
140,Revenue,CAHD,Independent Special Placements - Pre 16,Other Private Contractors,Aurora Hedgeway School,20948.67, 13-Dec-2019
141,Revenue,CAHD,Independent Special Placements - Pre 16,Other Private Contractors,Aurora Hedgeway School,15154.33, 13-Dec-2019
142,Revenue,CAHD,Independent Special Placements - Pre 16,Other Private Contractors,Aurora Hedgeway School,16984.00, 13-Dec-2019
143,Revenue,CAHD,Independent Special Placements - Pre 16,Other Private Contractors,Aurora Hedgeway School,22260.33, 13-Dec-2019
144,Revenue,CAHD,Independent Special Placements - Post 16,Other Private Contractors,Aurora Hedgeway School,18225.33, 13-Dec-2019
145,Revenue,CAHD,Independent Special Placements - Pre 16,Other Private Contractors,Aurora Hedgeway School,15154.33, 13-Dec-2019
146,Revenue,CAHD,Independent Special Placements - Pre 16,Other Private Contractors,Aurora Hedgeway School,15154.33, 13-Dec-2019
147,Revenue,CAHD,Independent Special Placements - Pre 16,Other Private Contractors,Aurora Hedgeway School,15154.33, 13-Dec-2019
148,Revenue,CAHD,Independent Special Placements - Post 16,Other Private Contractors,Aurora Hedgeway School,19773.00, 13-Dec-2019
149,Revenue,CAHD,Independent Special Placements - Pre 16,Other Private Contractors,Aurora Hedgeway School,15154.33, 13-Dec-2019
150,Revenue,CAHD,Independent Special Placements - Pre 16,Other Private Contractors,Aurora Hedgeway School,17258.67, 13-Dec-2019
151,Revenue,CAHD,Independent Special Placements - Post 16,Other Private Contractors,Aurora Hedgeway School,17258.67, 13-Dec-2019
152,Revenue,CAHD,Independent Special Placements - Pre 16,Other Private Contractors,Aurora Hedgeway School,15154.33, 13-Dec-2019
153,Revenue,CAHD,Independent Special Placements - Pre 16,Other Private Contractors,Aurora Hedgeway School,18225.33, 13-Dec-2019
154,Revenue,CAHD,Independent Special Placements - Post 16,Other Private Contractors,Aurora Hedgeway School,20495.04, 13-Dec-2019
155,Revenue,CAHD,South - bed purchasing and direct  payments,Permanent Residential,Autism Specialised Care Homes,6506.88, 17-Dec-2019
156,Revenue,CAHD,CSC - LAC - Counselling & Therapy,Other Supplies & Services,Avon & Wiltshire Mental Health,15000.00, 04-Dec-2019
157,Revenue,CAHD,Younger Adult Mental Health,Health Services (Third Party Payments),Avon & Wiltshire Mental Health,1693.33, 11-Dec-2019
158,Revenue,CAHD,South - bed purchasing and direct  payments,Permanent Nursing,Avon Lodge Care Centre,4256.24, 17-Dec-2019
159,Revenue,CAHD,South Glos Users in South Glos Homes,Permanent Nursing,Avon Lodge Care Centre,662.24, 17-Dec-2019
160,Revenue,CAHD,North - bed purchasing and direct  payments,Permanent Nursing,Avon Lodge Care Centre,4165.48, 17-Dec-2019
161,Revenue,CAHD,South Glos Users in South Glos Homes,Permanent Nursing,Avon Lodge Care Centre,662.24, 17-Dec-2019
162,Revenue,CAHD,South Glos Users in South Glos Homes,Permanent Nursing,Avon Lodge Care Centre,662.24, 17-Dec-2019
163,Revenue,CAHD,South - bed purchasing and direct  payments,Permanent Nursing,Avon Lodge Care Centre,8751.39, 17-Dec-2019
164,Revenue,CAHD,South - bed purchasing and direct  payments,Permanent Nursing,Avon Lodge Care Centre,4537.76, 17-Dec-2019
165,Revenue,CAHD,South - bed purchasing and direct  payments,Fees & Charges Income - General,Avon Lodge Care Centre,1077.79, 17-Dec-2019
166,Revenue,CAHD,South Glos Users in South Glos Homes,Permanent Nursing,Avon Lodge Care Centre,662.24, 17-Dec-2019
167,Revenue,CAHD,South Glos Users in South Glos Homes,Permanent Nursing,Avon Lodge Care Centre,662.24, 17-Dec-2019
168,Revenue,CAHD,South - bed purchasing and direct  payments,Permanent Nursing,Avon Lodge Care Centre,3380.60, 17-Dec-2019
169,Revenue,CAHD,South Glos Users in South Glos Homes,Permanent Nursing,Avon Lodge Care Centre,662.24, 17-Dec-2019
170,Revenue,CAHD,South Glos Users in South Glos Homes,Permanent Nursing,Avon Lodge Care Centre,662.24, 17-Dec-2019
171,Revenue,CAHD,South - bed purchasing and direct  payments,Permanent Nursing,Avon Lodge Care Centre,2863.96, 17-Dec-2019
172,Revenue,CAHD,South Glos Users in South Glos Homes,Permanent Nursing,Avon Lodge Care Centre,662.24, 17-Dec-2019
173,Revenue,CAHD,South - bed purchasing and direct  payments,Permanent Nursing,Avon Lodge Care Centre,4226.64, 17-Dec-2019
174,Revenue,CAHD,South Glos Users in South Glos Homes,Permanent Nursing,Avon Lodge Care Centre,662.24, 17-Dec-2019
175,Revenue,CAHD,South - bed purchasing and direct  payments,Respite Planned - Nursing,Avon Lodge Care Centre,3924.74, 17-Dec-2019
176,Revenue,CAHD,Bed Purchasing - Southmead Hospital,Respite Planned - Nursing,Avon Lodge Care Centre,2415.22, 17-Dec-2019
177,Revenue,CAHD,South - bed purchasing and direct  payments,Permanent Nursing,Avon Lodge Care Centre,3809.28, 17-Dec-2019
178,Revenue,CAHD,South Glos Users in South Glos Homes,Permanent Nursing,Avon Lodge Care Centre,662.24, 17-Dec-2019
179,Revenue,CAHD,South - bed purchasing and direct  payments,Permanent Nursing,Avon Lodge Care Centre,4537.76, 17-Dec-2019
180,Revenue,CAHD,South Glos Users in South Glos Homes,Permanent Nursing,Avon Lodge Care Centre,2719.91, 17-Dec-2019
181,Revenue,CAHD,South Glos Users in South Glos Homes,Permanent Nursing,Avon Lodge Care Centre,662.24, 17-Dec-2019
182,Revenue,CAHD,South Glos Users in South Glos Homes,Permanent Nursing,Avon Lodge Care Centre,662.24, 17-Dec-2019
183,Revenue,CAHD,Central - Bed Purchasing and Direct Payments,Permanent Nursing,Avon Lodge Care Centre,4226.64, 17-Dec-2019
184,Revenue,CAHD,South Glos Users in South Glos Homes,Permanent Nursing,Avon Lodge Care Centre,1773.86, 17-Dec-2019
185,Revenue,CAHD,South Glos Users in South Glos Homes,Permanent Nursing,Avon Lodge Care Centre,662.24, 17-Dec-2019
186,Revenue,CAHD,South - bed purchasing and direct  payments,Permanent Nursing,Avon Lodge Care Centre,4226.64, 17-Dec-2019
187,Revenue,CAHD,South Glos Users in South Glos Homes,Permanent Nursing,Avon Lodge Care Centre,662.24, 17-Dec-2019
188,Revenue,CAHD,South Glos Users in South Glos Homes,Permanent Nursing,Avon Lodge Care Centre,662.24, 17-Dec-2019
189,Revenue,CAHD,South - bed purchasing and direct  payments,Permanent Nursing,Avon Lodge Care Centre,3380.60, 17-Dec-2019
190,Revenue,CAHD,South Glos Users in South Glos Homes,Permanent Nursing,Avon Lodge Care Centre,662.24, 17-Dec-2019
191,Revenue,CAHD,South Glos Users in South Glos Homes,Permanent Nursing,Avon Lodge Care Centre,662.24, 17-Dec-2019
192,Revenue,CAHD,South - bed purchasing and direct  payments,Permanent Nursing,Avon Lodge Care Centre,3380.60, 17-Dec-2019
193,Revenue,CAHD,South Glos Users in South Glos Homes,Permanent Nursing,Avon Lodge Care Centre,662.24, 17-Dec-2019
194,Revenue,CAHD,South - bed purchasing and direct  payments,Permanent Nursing,Avon Lodge Care Centre,4226.64, 17-Dec-2019
195,Revenue,CAHD,South Glos Users in South Glos Homes,Permanent Nursing,Avon Lodge Care Centre,662.24, 17-Dec-2019
196,Revenue,CAHD,South - bed purchasing and direct  payments,Permanent Nursing,Avon Lodge Care Centre,4537.76, 17-Dec-2019
197,Revenue,CAHD,South Glos Users in South Glos Homes,Permanent Nursing,Avon Lodge Care Centre,2128.63, 17-Dec-2019
198,Revenue,CAHD,South Glos Users in South Glos Homes,Permanent Nursing,Avon Lodge Care Centre,662.24, 17-Dec-2019
199,Revenue,CAHD,South - bed purchasing and direct  payments,Permanent Nursing,Avon Lodge Care Centre,4226.64, 17-Dec-2019
200,Revenue,CAHD,South Glos Users in South Glos Homes,Permanent Nursing,Avon Lodge Care Centre,662.24, 17-Dec-2019
201,Revenue,CAHD,South Glos Users in South Glos Homes,Permanent Nursing,Avon Lodge Care Centre,662.24, 17-Dec-2019
202,Revenue,CAHD,South Glos Users in South Glos Homes,Permanent Nursing,Avon Lodge Care Centre,662.24, 17-Dec-2019
203,Revenue,CAHD,South Glos Users in South Glos Homes,Permanent Nursing,Avon Lodge Care Centre,662.24, 17-Dec-2019
204,Revenue,CAHD,South - bed purchasing and direct  payments,Permanent Nursing,Avon Lodge Care Centre,4226.64, 17-Dec-2019
205,Revenue,CAHD,South Glos Users in South Glos Homes,Permanent Nursing,Avon Lodge Care Centre,662.24, 17-Dec-2019
206,Revenue,CAHD,South - bed purchasing and direct  payments,Permanent Nursing,Avon Lodge Care Centre,4317.48, 17-Dec-2019
207,Revenue,CAHD,South Glos Users in South Glos Homes,Permanent Nursing,Avon Lodge Care Centre,662.24, 17-Dec-2019
208,Revenue,CAHD,South - bed purchasing and direct  payments,Permanent Nursing,Avon Lodge Care Centre,4358.40, 17-Dec-2019
209,Revenue,CAHD,South Glos Users in South Glos Homes,Permanent Nursing,Avon Lodge Care Centre,662.24, 17-Dec-2019
210,Revenue,CAHD,South Glos Users in South Glos Homes,Permanent Nursing,Avon Lodge Care Centre,662.24, 17-Dec-2019
211,Revenue,CAHD,South - bed purchasing and direct  payments,Permanent Nursing,Avon Lodge Care Centre,4226.64, 17-Dec-2019
212,Revenue,CAHD,South Glos Users in South Glos Homes,Permanent Nursing,Avon Lodge Care Centre,662.24, 17-Dec-2019
213,Revenue,CAHD,South - bed purchasing and direct  payments,Permanent Nursing,Avon Lodge Care Centre,4214.12, 17-Dec-2019
214,Revenue,CAHD,South Glos Users in South Glos Homes,Permanent Nursing,Avon Lodge Care Centre,662.24, 17-Dec-2019
215,Revenue,CAHD,South Glos Users in South Glos Homes,Permanent Nursing,Avon Lodge Care Centre,662.24, 17-Dec-2019
216,Revenue,CAHD,South Glos Users in South Glos Homes,Permanent Nursing,Avon Lodge Care Centre,1986.72, 17-Dec-2019
217,Revenue,CAHD,North - bed purchasing and direct  payments,Respite Planned - Nursing,Avon Lodge Care Centre,1207.61, 17-Dec-2019
218,Revenue,CAHD,South Glos Users in South Glos Homes,Permanent Nursing,Avon Lodge Care Centre,662.24, 17-Dec-2019
219,Revenue,CAHD,Central - Bed Purchasing and Direct Payments,Permanent Nursing,Avon Lodge Care Centre,3808.64, 17-Dec-2019
220,Revenue,CAHD,South Glos Users in South Glos Homes,Permanent Nursing,Avon Lodge Care Centre,662.24, 17-Dec-2019
221,Revenue,CAHD,South - bed purchasing and direct  payments,Permanent Nursing,Avon Lodge Care Centre,4226.64, 17-Dec-2019
222,Revenue,CAHD,South Glos Users in South Glos Homes,Permanent Nursing,Avon Lodge Care Centre,1892.11, 17-Dec-2019
223,Revenue,CAHD,South Glos Users in South Glos Homes,Permanent Nursing,Avon Lodge Care Centre,662.24, 17-Dec-2019
224,Revenue,CAHD,South - bed purchasing and direct  payments,Fees & Charges Income - General,Avon Lodge Care Centre,1606.52, 17-Dec-2019
225,Revenue,CAHD,South Glos Users in South Glos Homes,Permanent Nursing,Avon Lodge Care Centre,662.24, 17-Dec-2019
226,Revenue,CAHD,South - bed purchasing and direct  payments,Permanent Nursing,Avon Lodge Care Centre,3129.05, 17-Dec-2019
227,Revenue,CAHD,South - bed purchasing and direct  payments,Permanent Nursing,Avon Lodge Care Centre,4226.64, 17-Dec-2019
228,Revenue,CAHD,South Glos Users in South Glos Homes,Permanent Nursing,Avon Lodge Care Centre,662.24, 17-Dec-2019
229,Revenue,CAHD,South Glos Users in South Glos Homes,Permanent Nursing,Avon Lodge Care Centre,662.24, 17-Dec-2019
230,Revenue,CAHD,North - bed purchasing and direct  payments,Respite Planned - Nursing,Avon Lodge Care Centre,4226.64, 17-Dec-2019
231,Revenue,CAHD,North - bed purchasing and direct  payments,Respite Planned - Nursing,Avon Lodge Care Centre,1509.51, 17-Dec-2019
232,Revenue,CAHD,North - bed purchasing and direct  payments,Permanent Nursing,Avon Lodge Care Centre,4226.64, 17-Dec-2019
233,Revenue,CAHD,South - bed purchasing and direct  payments,Permanent Nursing,Avon Lodge Care Centre,4441.20, 17-Dec-2019
234,Revenue,CAHD,South Glos Users in South Glos Homes,Permanent Nursing,Avon Lodge Care Centre,662.24, 17-Dec-2019
235,Revenue,CAHD,South - S117,Permanent Nursing,Avon Lodge Care Centre,3809.28, 17-Dec-2019
236,Revenue,CAHD,South Glos Users in South Glos Homes,Permanent Nursing,Avon Lodge Care Centre,662.24, 17-Dec-2019
237,Revenue,CAHD,South Glos Users in South Glos Homes,Permanent Nursing,Avon Lodge Care Centre,662.24, 17-Dec-2019
238,Revenue,CAHD,South Glos Users in South Glos Homes,Permanent Nursing,Avon Lodge Care Centre,662.24, 17-Dec-2019
239,Revenue,CAHD,South Glos Users in South Glos Homes,Permanent Nursing,Avon Lodge Care Centre,662.24, 17-Dec-2019
240,Revenue,CAHD,South - bed purchasing and direct  payments,Permanent Residential,Avon Valley Care Home,3960.00, 17-Dec-2019
241,Revenue,CAHD,Central - Bed Purchasing and Direct Payments,Respite Planned - Residential,Avon Valley Care Home,4000.00, 17-Dec-2019
242,Revenue,CAHD,Central - Bed Purchasing and Direct Payments,Respite Planned - Residential,Avon Valley Care Home,1857.14, 17-Dec-2019
243,Revenue,CAHD,South - bed purchasing and direct  payments,Permanent Residential,Avon Valley Care Home,4000.00, 17-Dec-2019
244,Revenue,CAHD,South - bed purchasing and direct  payments,Permanent Residential,Avon Valley Care Home,4800.00, 17-Dec-2019
245,Revenue,CAHD,South - bed purchasing and direct  payments,Permanent Residential,Avon Valley Care Home,3428.57, 17-Dec-2019
246,Revenue,CAHD,North - bed purchasing and direct  payments,Permanent Residential,Avonmere Care Home,4200.00, 17-Dec-2019
247,Revenue,CAHD,North - bed purchasing and direct  payments,Permanent Residential,Avonmere Care Home,4300.80, 17-Dec-2019
248,Revenue,CAHD,North - bed purchasing and direct  payments,Permanent Residential,Avonmere Care Home,5420.00, 17-Dec-2019
249,Revenue,CAHD,North - bed purchasing and direct  payments,Permanent Residential,Avonmere Care Home,4420.00, 17-Dec-2019
250,Revenue,CAHD,Central - Bed Purchasing and Direct Payments,Permanent Residential,Avonmere Care Home,5000.00, 17-Dec-2019
251,Revenue,CAHD,CSC - Quality Review Unit,Agency Staff (Admin/Support Staff) Pay,Baltimore Consulting Group,2400.00, 04-Dec-2019
252,Revenue,CAHD,CSC - Quality Review Unit,Agency Staff (Admin/Support Staff) Pay,Baltimore Consulting Group,2400.00, 10-Dec-2019
253,Revenue,CAHD,CSC - Quality Review Unit,Agency Staff (Admin/Support Staff) Pay,Baltimore Consulting Group,2400.00, 18-Dec-2019
254,Revenue,CAHD,CSC - Quality Review Unit,Agency Staff (Admin/Support Staff) Pay,Baltimore Consulting Group,1966.00, 23-Dec-2019
255,Revenue,CAHD,Childrens - Safeguarding Board,Training Expenses,Barnardo Services Limited,450.00, 05-Dec-2019
256,Revenue,CAHD,Pensions - Non DSG,Annual Pension,Bath & North East Somerset Council,107011.51, 03-Dec-2019
257,Revenue,CAHD,Childrens - Safeguarding Board,Premises Hire,Bawa Healthcare & Leisure,517.50, 17-Dec-2019
258,Revenue,CAHD,Pathway 3 - (Complex Beds),Permanent Nursing,Beaufort Care Ltd,5571.00, 05-Dec-2019
259,Revenue,CAHD,South Glos Users in South Glos Homes,Permanent Nursing,Beaufort Grange Care Home,662.24, 17-Dec-2019
260,Revenue,CAHD,South Glos Users in South Glos Homes,Permanent Nursing,Beaufort Grange Care Home,662.24, 17-Dec-2019
261,Revenue,CAHD,South Glos Users in South Glos Homes,Permanent Nursing,Beaufort Grange Care Home,662.24, 17-Dec-2019
262,Revenue,CAHD,South Glos Users in South Glos Homes,Permanent Nursing,Beaufort Grange Care Home,662.24, 17-Dec-2019
263,Revenue,CAHD,South Glos Users in South Glos Homes,Permanent Nursing,Beaufort Grange Care Home,662.24, 17-Dec-2019
264,Revenue,CAHD,South Glos Users in South Glos Homes,Permanent Nursing,Beaufort Grange Care Home,662.24, 17-Dec-2019
265,Revenue,CAHD,South Glos Users in South Glos Homes,Permanent Nursing,Beaufort Grange Care Home,662.24, 17-Dec-2019
266,Revenue,CAHD,South Glos Users in South Glos Homes,Permanent Nursing,Beaufort Grange Care Home,662.24, 17-Dec-2019
267,Revenue,CAHD,South Glos Users in South Glos Homes,Permanent Nursing,Beaufort Grange Care Home,4186.30, 17-Dec-2019
268,Revenue,CAHD,South Glos Users in South Glos Homes,Permanent Nursing,Beaufort Grange Care Home,662.24, 17-Dec-2019
269,Revenue,CAHD,South Glos Users in South Glos Homes,Permanent Nursing,Beaufort Grange Care Home,662.24, 17-Dec-2019
270,Revenue,CAHD,South Glos Users in South Glos Homes,Permanent Nursing,Beaufort Grange Care Home,662.24, 17-Dec-2019
271,Revenue,CAHD,North - S117,Permanent Nursing,Beaufort Grange Care Home,4877.04, 17-Dec-2019
272,Revenue,CAHD,South Glos Users in South Glos Homes,Permanent Nursing,Beaufort Grange Care Home,662.24, 17-Dec-2019
273,Revenue,CAHD,South Glos Users in South Glos Homes,Permanent Nursing,Beaufort Grange Care Home,662.24, 17-Dec-2019
274,Revenue,CAHD,South Glos Users in South Glos Homes,Permanent Nursing,Beaufort Grange Care Home,662.24, 17-Dec-2019
275,Revenue,CAHD,South Glos Users in South Glos Homes,Permanent Nursing,Beaufort Grange Care Home,662.24, 17-Dec-2019
276,Revenue,CAHD,Central - Bed Purchasing and Direct Payments,Permanent Nursing,Beaufort Grange Care Home,4428.00, 17-Dec-2019
277,Revenue,CAHD,South Glos Users in South Glos Homes,Permanent Nursing,Beaufort Grange Care Home,662.24, 17-Dec-2019
278,Revenue,CAHD,South Glos Users in South Glos Homes,Permanent Nursing,Beaufort Grange Care Home,662.24, 17-Dec-2019
279,Revenue,CAHD,South Glos Users in South Glos Homes,Permanent Nursing,Beaufort Grange Care Home,662.24, 17-Dec-2019
280,Revenue,CAHD,North - S117,Permanent Nursing,Beaufort Grange Care Home,5005.76, 17-Dec-2019
281,Revenue,CAHD,South Glos Users in South Glos Homes,Permanent Nursing,Beaufort Grange Care Home,662.24, 17-Dec-2019
282,Revenue,CAHD,South Glos Users in South Glos Homes,Permanent Nursing,Beaufort Grange Care Home,662.24, 17-Dec-2019
283,Revenue,CAHD,South Glos Users in South Glos Homes,Permanent Nursing,Beaufort Grange Care Home,4541.07, 17-Dec-2019
284,Revenue,CAHD,South Glos Users in South Glos Homes,Permanent Nursing,Beaufort Grange Care Home,662.24, 17-Dec-2019
285,Revenue,CAHD,South Glos Users in South Glos Homes,Permanent Nursing,Beaufort Grange Care Home,662.24, 17-Dec-2019
286,Revenue,CAHD,South Glos Users in South Glos Homes,Permanent Nursing,Beaufort Grange Care Home,662.24, 17-Dec-2019
287,Revenue,CAHD,South Glos Users in South Glos Homes,Permanent Nursing,Beaufort Grange Care Home,662.24, 17-Dec-2019
288,Revenue,CAHD,South Glos Users in South Glos Homes,Permanent Nursing,Beaufort Grange Care Home,662.24, 17-Dec-2019
289,Revenue,CAHD,South Glos Users in South Glos Homes,Permanent Nursing,Beaufort Grange Care Home,662.24, 17-Dec-2019
290,Revenue,CAHD,South Glos Users in South Glos Homes,Permanent Nursing,Beaufort Grange Care Home,662.24, 17-Dec-2019
291,Revenue,CAHD,South Glos Users in South Glos Homes,Permanent Nursing,Beaufort Grange Care Home,662.24, 17-Dec-2019
292,Revenue,CAHD,South Glos Users in South Glos Homes,Permanent Nursing,Beaufort Grange Care Home,662.24, 17-Dec-2019
293,Revenue,CAHD,South Glos Users in South Glos Homes,Permanent Nursing,Beaufort Grange Care Home,662.24, 17-Dec-2019
294,Revenue,CAHD,South Glos Users in South Glos Homes,Permanent Nursing,Beaufort Grange Care Home,662.24, 17-Dec-2019
295,Revenue,CAHD,South Glos Users in South Glos Homes,Permanent Nursing,Beaufort Grange Care Home,662.24, 17-Dec-2019
296,Revenue,CAHD,South Glos Users in South Glos Homes,Permanent Nursing,Beaufort Grange Care Home,662.24, 17-Dec-2019
297,Revenue,CAHD,South Glos Users in South Glos Homes,Permanent Nursing,Beaufort Grange Care Home,662.24, 17-Dec-2019
298,Revenue,CAHD,South Glos Users in South Glos Homes,Permanent Nursing,Beaufort Grange Care Home,3287.55, 17-Dec-2019
299,Revenue,CAHD,South Glos Users in South Glos Homes,Permanent Nursing,Beaufort Grange Care Home,662.24, 17-Dec-2019
300,Revenue,CAHD,South Glos Users in South Glos Homes,Permanent Nursing,Beaufort Grange Care Home,3429.46, 17-Dec-2019
301,Revenue,CAHD,South Glos Users in South Glos Homes,Permanent Nursing,Beaufort Grange Care Home,662.24, 17-Dec-2019
302,Revenue,CAHD,South Glos Users in South Glos Homes,Permanent Nursing,Beaufort Grange Care Home,1821.16, 17-Dec-2019
303,Revenue,CAHD,South Glos Users in South Glos Homes,Permanent Nursing,Beaufort Grange Care Home,662.24, 17-Dec-2019
304,Revenue,CAHD,South Glos Users in South Glos Homes,Permanent Nursing,Beaufort Grange Care Home,662.24, 17-Dec-2019
305,Revenue,CAHD,South Glos Users in South Glos Homes,Permanent Nursing,Beaufort Grange Care Home,662.24, 17-Dec-2019
306,Revenue,CAHD,North - bed purchasing and direct  payments,Permanent Nursing,Beaufort Grange Care Home,5405.76, 17-Dec-2019
307,Revenue,CAHD,South Glos Users in South Glos Homes,Permanent Nursing,Beaufort Grange Care Home,662.24, 17-Dec-2019
308,Revenue,CAHD,North - bed purchasing and direct  payments,Permanent Residential,Beaufort House,2549.56, 17-Dec-2019
309,Revenue,CAHD,Central - Bed Purchasing and Direct Payments,Permanent Residential,Beaufort House,2867.20, 17-Dec-2019
310,Revenue,CAHD,Central - Bed Purchasing and Direct Payments,Permanent Residential,Beaufort House,2775.60, 17-Dec-2019
311,Revenue,CAHD,North - bed purchasing and direct  payments,Permanent Residential,Beaufort House,2571.40, 17-Dec-2019
312,Revenue,CAHD,South - bed purchasing and direct  payments,Permanent Residential,Beaufort House,2536.84, 17-Dec-2019
313,Revenue,CAHD,Central - Bed Purchasing and Direct Payments,Permanent Residential,Beaufort House,10321.43, 17-Dec-2019
314,Revenue,CAHD,Central - Bed Purchasing and Direct Payments,Permanent Residential,Beaufort House,3400.00, 17-Dec-2019
315,Revenue,CAHD,South - bed purchasing and direct  payments,Permanent Residential,Beaufort House,5950.00, 17-Dec-2019
316,Revenue,CAHD,South - bed purchasing and direct  payments,Permanent Residential,Beaufort House,3400.00, 17-Dec-2019
317,Revenue,CAHD,North - bed purchasing and direct  payments,Permanent Residential,Beaufort House,3072.00, 17-Dec-2019
318,Revenue,CAHD,North - bed purchasing and direct  payments,Permanent Residential,Beaufort House,2699.92, 17-Dec-2019
319,Revenue,CAHD,Central - Bed Purchasing and Direct Payments,Permanent Residential,Beaufort House,10321.43, 17-Dec-2019
320,Revenue,CAHD,Central - Bed Purchasing and Direct Payments,Permanent Residential,Beaufort House,3400.00, 17-Dec-2019
321,Revenue,CAHD,Central - Bed Purchasing and Direct Payments,Permanent Residential,Beaufort House,3400.00, 17-Dec-2019
322,Revenue,CAHD,Central - Bed Purchasing and Direct Payments,Fees & Charges Income - General,Beaufort House,955.78, 17-Dec-2019
323,Revenue,CAHD,Central - Bed Purchasing and Direct Payments,Respite Planned - Residential,Beaufort House,1800.00, 17-Dec-2019
324,Revenue,CAHD,Central - Bed Purchasing and Direct Payments,Permanent Residential,Beaufort House,3157.14, 17-Dec-2019
325,Revenue,CAHD,South - bed purchasing and direct  payments,Permanent Residential,Beech House,2959.64, 17-Dec-2019
326,Revenue,CAHD,South Glos Users in South Glos Homes,Permanent Nursing,Beech House,662.24, 17-Dec-2019
327,Revenue,CAHD,South Glos Users in South Glos Homes,Permanent Nursing,Beech House,4493.77, 17-Dec-2019
328,Revenue,CAHD,South Glos Users in South Glos Homes,Permanent Nursing,Beech House,2440.18, 17-Dec-2019
329,Revenue,CAHD,South Glos Users in South Glos Homes,Permanent Nursing,Beech House,662.24, 17-Dec-2019
330,Revenue,CAHD,South Glos Users in South Glos Homes,Permanent Nursing,Beech House,662.24, 17-Dec-2019
331,Revenue,CAHD,South Glos Users in South Glos Homes,Permanent Nursing,Beech House,662.24, 17-Dec-2019
332,Revenue,CAHD,South Glos Users in South Glos Homes,Permanent Nursing,Beech House,662.24, 17-Dec-2019
333,Revenue,CAHD,South Glos Users in South Glos Homes,Permanent Nursing,Beech House,662.24, 17-Dec-2019
334,Revenue,CAHD,South Glos Users in South Glos Homes,Permanent Nursing,Beech House,2530.70, 17-Dec-2019
335,Revenue,CAHD,South Glos Users in South Glos Homes,Permanent Nursing,Beech House,662.24, 17-Dec-2019
336,Revenue,CAHD,North - bed purchasing and direct  payments,Permanent Nursing,Beech House,3547.76, 17-Dec-2019
337,Revenue,CAHD,South Glos Users in South Glos Homes,Permanent Nursing,Beech House,662.24, 17-Dec-2019
338,Revenue,CAHD,South Glos Users in South Glos Homes,Permanent Nursing,Beech House,3429.46, 17-Dec-2019
339,Revenue,CAHD,South Glos Users in South Glos Homes,Permanent Nursing,Beech House,662.24, 17-Dec-2019
340,Revenue,CAHD,South Glos Users in South Glos Homes,Permanent Nursing,Beech House,662.24, 17-Dec-2019
341,Revenue,CAHD,North - bed purchasing and direct  payments,Permanent Nursing,Beech House,4283.20, 17-Dec-2019
342,Revenue,CAHD,South Glos Users in South Glos Homes,Permanent Nursing,Beech House,662.24, 17-Dec-2019
343,Revenue,CAHD,South Glos Users in South Glos Homes,Permanent Nursing,Beech House,2104.98, 17-Dec-2019
344,Revenue,CAHD,South Glos Users in South Glos Homes,Permanent Nursing,Beech House,662.24, 17-Dec-2019
345,Revenue,CAHD,South Glos Users in South Glos Homes,Permanent Nursing,Beech House,662.24, 17-Dec-2019
346,Revenue,CAHD,South Glos Users in South Glos Homes,Permanent Nursing,Beech House,662.24, 17-Dec-2019
347,Revenue,CAHD,South Glos Users in South Glos Homes,Permanent Nursing,Beech House,1797.51, 17-Dec-2019
348,Revenue,CAHD,South Glos Users in South Glos Homes,Permanent Nursing,Beech House,662.24, 17-Dec-2019
349,Revenue,CAHD,South Glos Users in South Glos Homes,Permanent Nursing,Beech House,662.24, 17-Dec-2019
350,Revenue,CAHD,North - bed purchasing and direct  payments,Permanent Nursing,Beech House,3993.60, 17-Dec-2019
351,Revenue,CAHD,South Glos Users in South Glos Homes,Permanent Nursing,Beech House,662.24, 17-Dec-2019
352,Revenue,CAHD,South Glos Users in South Glos Homes,Permanent Nursing,Beech House,662.24, 17-Dec-2019
353,Revenue,CAHD,South Glos Users in South Glos Homes,Permanent Nursing,Beech House,662.24, 17-Dec-2019
354,Revenue,CAHD,North - bed purchasing and direct  payments,Permanent Residential,Beech House,4075.52, 17-Dec-2019
355,Revenue,CAHD,South Glos Users in South Glos Homes,Permanent Nursing,Beech House,662.24, 17-Dec-2019
356,Revenue,CAHD,North - bed purchasing and direct  payments,Permanent Nursing,Beech House,4223.56, 17-Dec-2019
357,Revenue,CAHD,South Glos Users in South Glos Homes,Permanent Nursing,Beech House,662.24, 17-Dec-2019
358,Revenue,CAHD,South Glos Users in South Glos Homes,Permanent Nursing,Beech House,662.24, 17-Dec-2019
359,Revenue,CAHD,South Glos Users in South Glos Homes,Permanent Nursing,Beech House,662.24, 17-Dec-2019
360,Revenue,CAHD,North - bed purchasing and direct  payments,Permanent Nursing,Beech House,4100.00, 17-Dec-2019
361,Revenue,CAHD,South Glos Users in South Glos Homes,Permanent Nursing,Beech House,662.24, 17-Dec-2019
362,Revenue,CAHD,South Glos Users in South Glos Homes,Permanent Nursing,Beech House,662.24, 17-Dec-2019
363,Revenue,CAHD,South Glos Users in South Glos Homes,Permanent Nursing,Beech House,662.24, 17-Dec-2019
364,Revenue,CAHD,North - bed purchasing and direct  payments,Permanent Residential,Beech House,4280.32, 17-Dec-2019
365,Revenue,CAHD,South Glos Users in South Glos Homes,Permanent Nursing,Beech House,1915.77, 17-Dec-2019
366,Revenue,CAHD,South Glos Users in South Glos Homes,Permanent Nursing,Beech House,662.24, 17-Dec-2019
367,Revenue,CAHD,South Glos Users in South Glos Homes,Permanent Nursing,Beech House,1490.04, 17-Dec-2019
368,Revenue,CAHD,South Glos Users in South Glos Homes,Permanent Nursing,Beechwood Care Home,1028.00, 17-Dec-2019
369,Revenue,CAHD,18-25 Year Olds,Permanent Residential,Beechwood Court,15254.92, 17-Dec-2019
370,Revenue,CAHD,Independent Special Placements - Pre 16,Other Private Contractors,Belgrave School,7845.70, 23-Dec-2019
371,Revenue,CAHD,Independent Special Placements - Post 16,Other Private Contractors,Belgrave School,4783.33, 23-Dec-2019
372,Revenue,CAHD,Mental Capacity Act / DOLS,Legal Fees,Benjamin Harrison,600.00, 27-Dec-2019
373,Revenue,CAHD,South - S117,Permanent Residential,Bidna House,3692.64, 17-Dec-2019
374,Revenue,CAHD,Statemented Support Payments to OLAs,Other L.A.'s - General,Blaise High School,907.83, 02-Dec-2019
375,Revenue,CAHD,Statemented Support Payments to OLAs,Other L.A.'s - General,Blaise High School,907.83, 23-Dec-2019
376,Revenue,CAHD,Central - Commissioned Services,Other Small Contracts,Blakehill Healthcare Ltd,737.50, 02-Dec-2019
377,Revenue,CAHD,Central - Commissioned Services,Other Small Contracts,Blakehill Healthcare Ltd,4375.00, 13-Dec-2019
378,Revenue,CAHD,Central - Commissioned Services,Other Small Contracts,Blakehill Healthcare Ltd,1206.25, 02-Dec-2019
379,Revenue,CAHD,Central - Commissioned Services,Other Small Contracts,Blakehill Healthcare Ltd,3425.00, 02-Dec-2019
380,Revenue,CAHD,Central - Commissioned Services,Other Small Contracts,Blakehill Healthcare Ltd,1368.75, 06-Dec-2019
381,Revenue,CAHD,Central - Commissioned Services,Other Small Contracts,Blakehill Healthcare Ltd,743.75, 10-Dec-2019
382,Revenue,CAHD,Central - Commissioned Services,Other Small Contracts,Blakehill Healthcare Ltd,4425.00, 12-Dec-2019
383,Revenue,CAHD,Central - Commissioned Services,Other Small Contracts,Blakehill Healthcare Ltd,1637.50, 09-Dec-2019
384,Revenue,CAHD,Central - Commissioned Services,Other Small Contracts,Blakehill Healthcare Ltd,3500.00, 10-Dec-2019
385,Revenue,CAHD,Central - Commissioned Services,Other Small Contracts,Blakehill Healthcare Ltd,1106.25, 09-Dec-2019
386,Revenue,CAHD,Central - Commissioned Services,Other Small Contracts,Blakehill Healthcare Ltd,737.50, 23-Dec-2019
387,Revenue,CAHD,Central - Commissioned Services,Other Small Contracts,Blakehill Healthcare Ltd,4656.25, 23-Dec-2019
388,Revenue,CAHD,Central - Commissioned Services,Other Small Contracts,Blakehill Healthcare Ltd,687.50, 19-Dec-2019
389,Revenue,CAHD,Central - Commissioned Services,Other Small Contracts,Blakehill Healthcare Ltd,1593.75, 19-Dec-2019
390,Revenue,CAHD,Central - Commissioned Services,Other Small Contracts,Blakehill Healthcare Ltd,3475.00, 19-Dec-2019
391,Revenue,CAHD,Central - Commissioned Services,Other Small Contracts,Blakehill Healthcare Ltd,650.00, 23-Dec-2019
392,Revenue,CAHD,Central - Commissioned Services,Other Small Contracts,Blakehill Healthcare Ltd,1275.00, 19-Dec-2019
393,Revenue,CAHD,Central - Commissioned Services,Other Small Contracts,Blakehill Healthcare Ltd,5732.50, 24-Dec-2019
394,Revenue,CAHD,Central - Commissioned Services,Other Small Contracts,Blakehill Healthcare Ltd,1356.25, 19-Dec-2019
395,Revenue,CAHD,Central - Commissioned Services,Other Small Contracts,Blakehill Healthcare Ltd,3500.00, 06-Dec-2019
396,Revenue,CAHD,South - bed purchasing and direct  payments,Permanent Nursing,Blossom Field,4780.36, 17-Dec-2019
397,Revenue,CAHD,South Glos Users in South Glos Homes,Permanent Nursing,Blossom Field,3240.25, 17-Dec-2019
398,Revenue,CAHD,South Glos Users in South Glos Homes,Permanent Nursing,Blossom Field,662.24, 17-Dec-2019
399,Revenue,CAHD,South Glos Users in South Glos Homes,Permanent Nursing,Blossom Field,662.24, 17-Dec-2019
400,Revenue,CAHD,North - bed purchasing and direct  payments,Permanent Nursing,Blossom Field,4770.40, 17-Dec-2019
401,Revenue,CAHD,South Glos Users in South Glos Homes,Permanent Nursing,Blossom Field,662.24, 17-Dec-2019
402,Revenue,CAHD,North - bed purchasing and direct  payments,Permanent Nursing,Blossom Field,3394.29, 17-Dec-2019
403,Revenue,CAHD,South Glos Users in South Glos Homes,Permanent Nursing,Blossom Field,662.24, 17-Dec-2019
404,Revenue,CAHD,North - bed purchasing and direct  payments,Permanent Nursing,Blossom Field,4267.44, 17-Dec-2019
405,Revenue,CAHD,South Glos Users in South Glos Homes,Permanent Nursing,Blossom Field,1419.09, 17-Dec-2019
406,Revenue,CAHD,South Glos Users in South Glos Homes,Permanent Nursing,Blossom Field,662.24, 17-Dec-2019
407,Revenue,CAHD,North - bed purchasing and direct  payments,Permanent Nursing,Blossom Field,5000.00, 17-Dec-2019
408,Revenue,CAHD,South Glos Users in South Glos Homes,Permanent Nursing,Blossom Field,662.24, 17-Dec-2019
409,Revenue,CAHD,South Glos Users in South Glos Homes,Permanent Nursing,Blossom Field,662.24, 17-Dec-2019
410,Revenue,CAHD,South - bed purchasing and direct  payments,Permanent Nursing,Blossom Field,4413.08, 17-Dec-2019
411,Revenue,CAHD,South Glos Users in South Glos Homes,Permanent Nursing,Blossom Field,662.24, 17-Dec-2019
412,Revenue,CAHD,North - bed purchasing and direct  payments,Permanent Nursing,Blossom Field,3533.92, 17-Dec-2019
413,Revenue,CAHD,South Glos Users in South Glos Homes,Permanent Nursing,Blossom Field,662.24, 17-Dec-2019
414,Revenue,CAHD,North - bed purchasing and direct  payments,Permanent Nursing,Blossom Field,4799.88, 17-Dec-2019
415,Revenue,CAHD,South Glos Users in South Glos Homes,Permanent Nursing,Blossom Field,662.24, 17-Dec-2019
416,Revenue,CAHD,South Glos Users in South Glos Homes,Permanent Nursing,Blossom Field,662.24, 17-Dec-2019
417,Revenue,CAHD,North - bed purchasing and direct  payments,Permanent Nursing,Blossom Field,4800.00, 17-Dec-2019
418,Revenue,CAHD,South Glos Users in South Glos Homes,Permanent Nursing,Blossom Field,2814.52, 17-Dec-2019
419,Revenue,CAHD,South Glos Users in South Glos Homes,Permanent Nursing,Blossom Field,662.24, 17-Dec-2019
420,Revenue,CAHD,South Glos Users in South Glos Homes,Permanent Nursing,Blossom Field,662.24, 17-Dec-2019
421,Revenue,CAHD,South Glos Users in South Glos Homes,Permanent Nursing,Blossom Field,662.24, 17-Dec-2019
422,Revenue,CAHD,South Glos Users in South Glos Homes,Permanent Nursing,Blossom Field,662.24, 17-Dec-2019
423,Revenue,CAHD,Central - Bed Purchasing and Direct Payments,Permanent Nursing,Blossom Field,4267.36, 17-Dec-2019
424,Revenue,CAHD,South Glos Users in South Glos Homes,Permanent Nursing,Blossom Field,662.24, 17-Dec-2019
425,Revenue,CAHD,North - bed purchasing and direct  payments,Respite Planned - Nursing,Blossom Field,2800.00, 17-Dec-2019
426,Revenue,CAHD,South Glos Users in South Glos Homes,Permanent Nursing,Blossom Field,662.24, 17-Dec-2019
427,Revenue,CAHD,North - bed purchasing and direct  payments,Permanent Nursing,Blossom Field,4962.96, 17-Dec-2019
428,Revenue,CAHD,South Glos Users in South Glos Homes,Permanent Nursing,Blossom Field,662.24, 17-Dec-2019
429,Revenue,CAHD,North - bed purchasing and direct  payments,Permanent Nursing,Blossom Field,4267.36, 17-Dec-2019
430,Revenue,CAHD,South Glos Users in South Glos Homes,Permanent Nursing,Blossom Field,662.24, 17-Dec-2019
431,Revenue,CAHD,South Glos Users in South Glos Homes,Permanent Nursing,Blossom Field,2790.87, 17-Dec-2019
432,Revenue,CAHD,South Glos Users in South Glos Homes,Permanent Nursing,Blossom Field,662.24, 17-Dec-2019
433,Revenue,CAHD,Central - Bed Purchasing and Direct Payments,Respite Planned - Nursing,Blossom Field,4800.00, 17-Dec-2019
434,Revenue,CAHD,South Glos Users in South Glos Homes,Permanent Nursing,Blossom Field,3145.64, 17-Dec-2019
435,Revenue,CAHD,South Glos Users in South Glos Homes,Permanent Nursing,Blossom Field,662.24, 17-Dec-2019
436,Revenue,CAHD,South Glos Users in South Glos Homes,Permanent Nursing,Blossom Field,662.24, 17-Dec-2019
437,Revenue,CAHD,South Glos Users in South Glos Homes,Permanent Nursing,Blossom Field,662.24, 17-Dec-2019
438,Revenue,CAHD,North - S117,Permanent Nursing,Blossom Field,4400.00, 17-Dec-2019
439,Revenue,CAHD,South Glos Users in South Glos Homes,Permanent Nursing,Blossom Field,1892.11, 17-Dec-2019
440,Revenue,CAHD,South Glos Users in South Glos Homes,Permanent Nursing,Blossom Field,662.24, 17-Dec-2019
441,Revenue,CAHD,North - bed purchasing and direct  payments,Permanent Nursing,Blossom Field,3634.96, 17-Dec-2019
442,Revenue,CAHD,South Glos Users in South Glos Homes,Permanent Nursing,Blossom Field,662.24, 17-Dec-2019
443,Revenue,CAHD,North - bed purchasing and direct  payments,Permanent Nursing,Blossom Field,5000.00, 17-Dec-2019
444,Revenue,CAHD,South Glos Users in South Glos Homes,Permanent Nursing,Blossom Field,662.24, 17-Dec-2019
445,Revenue,CAHD,North - bed purchasing and direct  payments,Permanent Residential,Bluebells,3699.60, 17-Dec-2019
446,Revenue,CAHD,Pathway 1 - Re-Ablement Home Care,Other Small Contracts,Bluebird Care (South Gloucestershire),619.10, 24-Dec-2019
447,Revenue,CAHD,Central - Commissioned Services,Other Small Contracts,Bluebird Care (South Gloucestershire),1268.57, 04-Dec-2019
448,Revenue,CAHD,Central - Commissioned Services,Other Small Contracts,Bluebird Care (South Gloucestershire),3297.03, 09-Dec-2019
449,Revenue,CAHD,South - Commissioned Services,Other Small Contracts,Bluebird Care (South Gloucestershire),1575.69, 09-Dec-2019
450,Revenue,CAHD,North - Community based support,Other Small Contracts,Bluebird Care (South Gloucestershire),4711.66, 09-Dec-2019
451,Revenue,CAHD,Central - Commissioned Services,Other Small Contracts,Bluebird Care (South Gloucestershire),4651.14, 20-Dec-2019
452,Revenue,CAHD,South - Commissioned Services,Other Small Contracts,Bluebird Care (South Gloucestershire),1258.57, 20-Dec-2019
453,Revenue,CAHD,North - Community based support,Other Small Contracts,Bluebird Care (South Gloucestershire),4630.76, 20-Dec-2019
454,Revenue,CAHD,Central - Commissioned Services,Other Small Contracts,Bluebird Care (South Gloucestershire),4650.53, 20-Dec-2019
455,Revenue,CAHD,South - Commissioned Services,Other Small Contracts,Bluebird Care (South Gloucestershire),1517.43, 20-Dec-2019
456,Revenue,CAHD,North - Community based support,Other Small Contracts,Bluebird Care (South Gloucestershire),5258.70, 20-Dec-2019
457,Revenue,CAHD,CSC - Vinney Green Secure Unit,"Provisions (Food, etc)",Booker Cash & Carry,508.56, 30-Dec-2019
458,Revenue,CAHD,S28A cases,Permanent Residential,Bradbury House,6505.16, 17-Dec-2019
459,Revenue,CAHD,18-25 Year Olds,Permanent Residential,Bradbury House,9917.08, 17-Dec-2019
460,Revenue,CAHD,North - S117,Permanent Residential,Bradbury House,5740.24, 17-Dec-2019
461,Revenue,CAHD,Jointly Funded H&SC Packages,Permanent Residential,Bradbury House,7927.00, 17-Dec-2019
462,Revenue,CAHD,South - bed purchasing and direct  payments,Permanent Residential,Bradbury House,9777.00, 17-Dec-2019
463,Revenue,CAHD,North - bed purchasing and direct  payments,Permanent Nursing,Breadstone House Care Centre,2322.76, 17-Dec-2019
464,Revenue,CAHD,North - bed purchasing and direct  payments,Permanent Residential,Breadstone House Care Centre,2088.68, 17-Dec-2019
465,Revenue,CAHD,North - bed purchasing and direct  payments,Permanent Residential,Breadstone House Care Centre,2364.36, 17-Dec-2019
466,Revenue,CAHD,South - bed purchasing and direct  payments,Permanent Nursing,Breadstone House Care Centre,855.64, 17-Dec-2019
467,Revenue,CAHD,North - bed purchasing and direct  payments,Permanent Nursing,Breadstone House Care Centre,2191.68, 17-Dec-2019
468,Revenue,CAHD,Social Lettings Agency,Fees - General,Individual,8.15, 03-Dec-2019
469,Revenue,CAHD,Social Lettings Agency,Other Supplies & Services,Individual,766.10, 03-Dec-2019
470,Revenue,CAHD,North - bed purchasing and direct  payments,Respite Planned - Residential,Bridge House Care Home,2740.00, 17-Dec-2019
471,Revenue,CAHD,North - bed purchasing and direct  payments,Respite Planned - Residential,Bridge House Care Home,1370.00, 17-Dec-2019
472,Revenue,CAHD,North - bed purchasing and direct  payments,Permanent Residential,Bridge House Care Home,2625.52, 17-Dec-2019
473,Revenue,CAHD,North - bed purchasing and direct  payments,Permanent Residential,Bridgwater Court Care Home,10773.64, 17-Dec-2019
474,Revenue,CAHD,"Education, Learning and Skills",Consultants Fees,Brio Limited,800.00, 23-Dec-2019
475,Revenue,CAHD,Health Inequalities,Other Small Contracts,Bristol & Avon Chinese Womens Group,500.00, 30-Dec-2019
476,Revenue,CAHD,Statemented Support Academies,Other Public Bodies,Bristol & South Gloucestershire UTC,990.36, 02-Dec-2019
477,Revenue,CAHD,Older People's Commissioned Se,Grants to Voluntary Bodies,Bristol Area Stroke Foundation,19052.75, 30-Dec-2019
478,Revenue,CAHD,Purchase of RAC places,Other L.A.'s - General,Bristol City Council,6876.54, 10-Dec-2019
479,Revenue,CAHD,Placements OLA Special Schools and RB,Other L.A.'s - General,Bristol City Council - Schools,2578.00, 24-Dec-2019
480,Revenue,CAHD,Placements OLA Special Schools and RB,Other L.A.'s - General,Bristol City Council - Schools,1381.00, 24-Dec-2019
481,Revenue,CAHD,Statemented Support Payments to OLAs,Other L.A.'s - General,Bristol City Council - Schools,1379.43, 02-Dec-2019
482,Revenue,CAHD,Statemented Support Payments to OLAs,Other L.A.'s - General,Bristol City Council - Schools,1379.43, 23-Dec-2019
483,Revenue,CAHD,Placements OLA Special Schools and RB,Other L.A.'s - General,Bristol City Council - Schools,914.33, 24-Dec-2019
484,Revenue,CAHD,Placements OLA Special Schools and RB,Other L.A.'s - General,Bristol City Council - Schools,1305.58, 24-Dec-2019
485,Revenue,CAHD,Statemented Support Payments to OLAs,Other L.A.'s - General,Bristol City Council - Schools,660.24, 02-Dec-2019
486,Revenue,CAHD,Statemented Support Payments to OLAs,Other L.A.'s - General,Bristol City Council - Schools,660.24, 23-Dec-2019
487,Revenue,CAHD,Placements OLA Special Schools and RB,Other L.A.'s - General,Bristol City Council - Schools,3356.33, 24-Dec-2019
488,Revenue,CAHD,Placements OLA Special Schools and RB,Other L.A.'s - General,Bristol City Council - Schools,2578.00, 24-Dec-2019
489,Revenue,CAHD,Placements OLA Special Schools and RB,Other L.A.'s - General,Bristol City Council - Schools,1381.00, 24-Dec-2019
490,Revenue,CAHD,Placements OLA Special Schools and RB,Other L.A.'s - General,Bristol City Council - Schools,2050.17, 24-Dec-2019
491,Revenue,CAHD,Placements OLA Special Schools and RB,Other L.A.'s - General,Bristol City Council - Schools,1381.00, 24-Dec-2019
492,Revenue,CAHD,Placements OLA Special Schools and RB,Other L.A.'s - General,Bristol City Council - Schools,1381.00, 24-Dec-2019
493,Revenue,CAHD,Placements OLA Special Schools and RB,Other L.A.'s - General,Bristol City Council - Schools,2050.17, 24-Dec-2019
494,Revenue,CAHD,Placements OLA Special Schools and RB,Other L.A.'s - General,Bristol City Council - Schools,1675.30, 24-Dec-2019
495,Revenue,CAHD,Placements OLA Special Schools and RB,Other L.A.'s - General,Bristol City Council - Schools,809.00, 24-Dec-2019
496,Revenue,CAHD,Placements OLA Special Schools and RB,Other L.A.'s - General,Bristol City Council - Schools,883.50, 24-Dec-2019
497,Revenue,CAHD,Placements OLA Special Schools and RB,Other L.A.'s - General,Bristol City Council - Schools,4107.54, 24-Dec-2019
498,Revenue,CAHD,Placements OLA Special Schools and RB,Other L.A.'s - General,Bristol City Council - Schools,777.50, 24-Dec-2019
499,Revenue,CAHD,Placements OLA Special Schools and RB,Other L.A.'s - General,Bristol City Council - Schools,1031.20, 24-Dec-2019
500,Revenue,CAHD,Placements OLA Special Schools and RB,Other L.A.'s - General,Bristol City Council - Schools,2783.92, 24-Dec-2019
501,Revenue,CAHD,Placements OLA Special Schools and RB,Other L.A.'s - General,Bristol City Council - Schools,2578.00, 24-Dec-2019
502,Revenue,CAHD,Placements OLA Special Schools and RB,Other L.A.'s - General,Bristol City Council - Schools,809.00, 24-Dec-2019
503,Revenue,CAHD,Placements OLA Special Schools and RB,Other L.A.'s - General,Bristol City Council - Schools,2578.00, 24-Dec-2019
504,Revenue,CAHD,Placements OLA Special Schools and RB,Other L.A.'s - General,Bristol City Council - Schools,3405.92, 24-Dec-2019
505,Revenue,CAHD,Placements OLA Special Schools and RB,Other L.A.'s - General,Bristol City Council - Schools,2062.40, 24-Dec-2019
506,Revenue,CAHD,Placements OLA Special Schools and RB,Other L.A.'s - General,Bristol City Council - Schools,2578.00, 24-Dec-2019
507,Revenue,CAHD,Placements OLA Special Schools and RB,Other L.A.'s - General,Bristol City Council - Schools,1305.58, 24-Dec-2019
508,Revenue,CAHD,Bed and Breakfast,Bed & Breakfast,Bristol Housing & Support Limited,420.00, 02-Dec-2019
509,Revenue,CAHD,Bed and Breakfast,Bed & Breakfast,Bristol Housing & Support Limited,420.00, 09-Dec-2019
510,Revenue,CAHD,Bed and Breakfast,Bed & Breakfast,Bristol Housing & Support Limited,420.00, 23-Dec-2019
511,Revenue,CAHD,Training - Adult Services,Training Expenses,Bristol MIND,1920.00, 13-Dec-2019
512,Revenue,CAHD,SEN High Needs - Not at School Base,Other Private Contractors,Bristol Tuition Limited,781.00, 18-Dec-2019
513,Revenue,CAHD,Statemented Support Payments to OLAs,Other L.A.'s - General,Broadlands Academy,1332.27, 02-Dec-2019
514,Revenue,CAHD,Statemented Support Payments to OLAs,Other L.A.'s - General,Broadlands Academy,1332.27, 23-Dec-2019
515,Revenue,CAHD,South Glos Users in South Glos Homes,Permanent Nursing,Brunelcare,709.54, 20-Dec-2019
516,Revenue,CAHD,South Glos Users in South Glos Homes,Permanent Nursing,Brunelcare,709.54, 20-Dec-2019
517,Revenue,CAHD,South Glos Users in South Glos Homes,Permanent Nursing,Brunelcare,709.54, 20-Dec-2019
518,Revenue,CAHD,South Glos Users in South Glos Homes,Permanent Nursing,Brunelcare,709.54, 20-Dec-2019
519,Revenue,CAHD,South Glos Users in South Glos Homes,Permanent Nursing,Brunelcare,709.54, 20-Dec-2019
520,Revenue,CAHD,South Glos Users in South Glos Homes,Permanent Nursing,Brunelcare,709.54, 20-Dec-2019
521,Revenue,CAHD,South Glos Users in South Glos Homes,Permanent Nursing,Brunelcare,709.54, 20-Dec-2019
522,Revenue,CAHD,South Glos Users in South Glos Homes,Permanent Nursing,Brunelcare,709.54, 20-Dec-2019
523,Revenue,CAHD,South Glos Users in South Glos Homes,Permanent Nursing,Brunelcare,709.54, 20-Dec-2019
524,Revenue,CAHD,South Glos Users in South Glos Homes,Permanent Nursing,Brunelcare,709.54, 20-Dec-2019
525,Revenue,CAHD,South Glos Users in South Glos Homes,Permanent Nursing,Brunelcare,709.54, 20-Dec-2019
526,Revenue,CAHD,South Glos Users in South Glos Homes,Permanent Nursing,Brunelcare,709.54, 20-Dec-2019
527,Revenue,CAHD,South - S117,Permanent Nursing,Brunelcare,3550.71, 20-Dec-2019
528,Revenue,CAHD,North - S117,Permanent Nursing,Brunelcare,3550.71, 20-Dec-2019
529,Revenue,CAHD,North - S117,Permanent Nursing,Brunelcare,3550.71, 20-Dec-2019
530,Revenue,CAHD,South - bed purchasing and direct  payments,Permanent Nursing,Brunelcare,3550.71, 20-Dec-2019
531,Revenue,CAHD,South - bed purchasing and direct  payments,Permanent Nursing,Brunelcare,980.21, 20-Dec-2019
532,Revenue,CAHD,South - bed purchasing and direct  payments,Permanent Nursing,Brunelcare,2588.57, 20-Dec-2019
533,Revenue,CAHD,South - bed purchasing and direct  payments,Permanent Nursing,Brunelcare,2740.63, 20-Dec-2019
534,Revenue,CAHD,South - bed purchasing and direct  payments,Permanent Nursing,Brunelcare,2843.53, 20-Dec-2019
535,Revenue,CAHD,South - bed purchasing and direct  payments,Permanent Nursing,Brunelcare,2957.79, 20-Dec-2019
536,Revenue,CAHD,South - bed purchasing and direct  payments,Permanent Nursing,Brunelcare,2577.94, 20-Dec-2019
537,Revenue,CAHD,South - bed purchasing and direct  payments,Permanent Nursing,Brunelcare,1420.29, 20-Dec-2019
538,Revenue,CAHD,South - bed purchasing and direct  payments,Permanent Nursing,Brunelcare,1568.34, 20-Dec-2019
539,Revenue,CAHD,Enhanced Dementia Beds,Respite Planned - Nursing,Brunelcare,3810.86, 20-Dec-2019
540,Revenue,CAHD,South - bed purchasing and direct  payments,Respite Planned - Nursing,Brunelcare,710.14, 20-Dec-2019
541,Revenue,CAHD,North - bed purchasing and direct  payments,Permanent Nursing,Brunelcare,2850.09, 20-Dec-2019
542,Revenue,CAHD,North - bed purchasing and direct  payments,Permanent Nursing,Brunelcare,2843.70, 20-Dec-2019
543,Revenue,CAHD,North - bed purchasing and direct  payments,Permanent Nursing,Brunelcare,3550.71, 20-Dec-2019
544,Revenue,CAHD,North - bed purchasing and direct  payments,Respite Planned - Nursing,Brunelcare,946.86, 20-Dec-2019
545,Revenue,CAHD,North - bed purchasing and direct  payments,Respite Planned - Nursing,Brunelcare,852.05, 20-Dec-2019
546,Revenue,CAHD,North - bed purchasing and direct  payments,Respite Planned - Nursing,Brunelcare,1136.07, 20-Dec-2019
547,Revenue,CAHD,South Glos Users in South Glos Homes,Permanent Nursing,Brunelcare,969.71, 20-Dec-2019
548,Revenue,CAHD,Central - Bed Purchasing and Direct Payments,Respite Planned - Nursing,Brunelcare,946.86, 20-Dec-2019
549,Revenue,CAHD,Central - Bed Purchasing and Direct Payments,Permanent Nursing,Brunelcare,2940.64, 20-Dec-2019
550,Revenue,CAHD,South - Commissioned Services,Other Small Contracts,Brunelcare,19653.15, 06-Dec-2019
551,Revenue,CAHD,North - Community based support,Other Small Contracts,Brunelcare,293.26, 06-Dec-2019
552,Revenue,CAHD,South - Commissioned Services,Other Small Contracts,Brunelcare,19388.27, 11-Dec-2019
553,Revenue,CAHD,North - Community based support,Other Small Contracts,Brunelcare,302.72, 11-Dec-2019
554,Revenue,CAHD,South - Commissioned Services,Other Small Contracts,Brunelcare,19634.23, 13-Dec-2019
555,Revenue,CAHD,North - Community based support,Other Small Contracts,Brunelcare,288.53, 13-Dec-2019
556,Revenue,CAHD,South - Commissioned Services,Other Small Contracts,Brunelcare,19776.13, 13-Dec-2019
557,Revenue,CAHD,North - Community based support,Other Small Contracts,Brunelcare,307.45, 13-Dec-2019
558,Revenue,CAHD,South - Commissioned Services,Other Small Contracts,Brunelcare,19052.44, 20-Dec-2019
559,Revenue,CAHD,North - Community based support,Other Small Contracts,Brunelcare,288.53, 20-Dec-2019
560,Revenue,CAHD,South - Commissioned Services,Other Small Contracts,Brunelcare,19525.44, 20-Dec-2019
561,Revenue,CAHD,North - Community based support,Other Small Contracts,Brunelcare,288.53, 20-Dec-2019
562,Revenue,CAHD,South - Commissioned Services,Day Care / Social Activities,Brunelcare,222.31, 24-Dec-2019
563,Revenue,CAHD,South - Commissioned Services,Other Small Contracts,Brunelcare,19019.33, 24-Dec-2019
564,Revenue,CAHD,North - Community based support,Other Small Contracts,Brunelcare,316.91, 24-Dec-2019
565,Revenue,CAHD,South - Commissioned Services,Day Care / Social Activities,Brunelcare,227.04, 30-Dec-2019
566,Revenue,CAHD,South - Commissioned Services,Other Small Contracts,Brunelcare,19303.13, 30-Dec-2019
567,Revenue,CAHD,North - Community based support,Other Small Contracts,Brunelcare,283.80, 30-Dec-2019
568,Revenue,CAHD,South - Commissioned Services,Day Care / Social Activities,Brunelcare,57.36, 30-Dec-2019
569,Revenue,CAHD,South - Commissioned Services,Other Small Contracts,Brunelcare,18828.42, 30-Dec-2019
570,Revenue,CAHD,North - Community based support,Other Small Contracts,Brunelcare,310.70, 30-Dec-2019
571,Revenue,CAHD,South - Commissioned Services,Other Small Contracts,Brunelcare,18417.34, 30-Dec-2019
572,Revenue,CAHD,North - Community based support,Other Small Contracts,Brunelcare,291.58, 30-Dec-2019
573,Revenue,CAHD,Pathway 1 - Re-Ablement Home Care,Other Small Contracts,Brunelcare,10865.28, 05-Dec-2019
574,Revenue,CAHD,North - S117,Permanent Residential,Buckland Care,3600.00, 17-Dec-2019
575,Revenue,CAHD,CSC - Ofsted Work,Training Expenses,BW Training & Coaching Ltd,5000.00, 09-Dec-2019
576,Revenue,CAHD,CSC - Vinney Green Secure Unit,R & M by Departments,BWS Standfast Fire & Security Systems,18000.00, 27-Dec-2019
577,Revenue,CAHD,CSC - Agency Fostering,Foster Parent Allowances,By the Bridge Ltd,4350.00, 30-Dec-2019
578,Revenue,CAHD,Social Lettings Agency,Fees - General,Individual,16.16, 24-Dec-2019
579,Revenue,CAHD,Social Lettings Agency,Other Supplies & Services,Individual,710.96, 24-Dec-2019
580,Revenue,CAHD,CSC - Vinney Green Secure Unit,Furniture & Fittings Loose,C W Jones Carpet & Flooring Limited,785.00, 27-Dec-2019
581,Revenue,CAHD,CSC - LAC Placements,Personal Needs of Clients,Cabot Learning Federation,10500.00, 13-Dec-2019
582,Revenue,CAHD,Statemented Support Payments to OLAs,Other L.A.'s - General,Cabot Learning Federation,1544.49, 02-Dec-2019
583,Revenue,CAHD,Statemented Support Payments to OLAs,Other L.A.'s - General,Cabot Learning Federation,1544.49, 23-Dec-2019
584,Revenue,CAHD,Academy Resource Base Funding,Other Public Bodies,Cabot Learning Federation,1698.31, 24-Dec-2019
585,Revenue,CAHD,Academy Resource Base Funding,Other Public Bodies,Cabot Learning Federation,1172.69, 24-Dec-2019
586,Revenue,CAHD,Academy Resource Base Funding,Other Public Bodies,Cabot Learning Federation,1536.63, 24-Dec-2019
587,Revenue,CAHD,Academy Resource Base Funding,Other Public Bodies,Cabot Learning Federation,1536.63, 24-Dec-2019
588,Revenue,CAHD,Academy Resource Base Funding,Other Public Bodies,Cabot Learning Federation,1172.69, 24-Dec-2019
589,Revenue,CAHD,Academy Resource Base Funding,Other Public Bodies,Cabot Learning Federation,1172.69, 24-Dec-2019
590,Revenue,CAHD,Academy Resource Base Funding,Other Public Bodies,Cabot Learning Federation,1698.31, 24-Dec-2019
591,Revenue,CAHD,Academy Resource Base Funding,Other Public Bodies,Cabot Learning Federation,646.93, 24-Dec-2019
592,Revenue,CAHD,Academy Resource Base Funding,Other Public Bodies,Cabot Learning Federation,1172.69, 24-Dec-2019
593,Revenue,CAHD,Academy Resource Base Funding,Other Public Bodies,Cabot Learning Federation,1172.69, 24-Dec-2019
594,Revenue,CAHD,Academy Resource Base Funding,Other Public Bodies,Cabot Learning Federation,1172.69, 24-Dec-2019
595,Revenue,CAHD,Academy Resource Base Funding,Other Public Bodies,Cabot Learning Federation,1172.69, 24-Dec-2019
596,Revenue,CAHD,Academy Resource Base Funding,Other Public Bodies,Cabot Learning Federation,646.93, 24-Dec-2019
597,Revenue,CAHD,Academy Resource Base Funding,Other Public Bodies,Cabot Learning Federation,1698.31, 24-Dec-2019
598,Revenue,CAHD,Academy Resource Base Funding,Other Public Bodies,Cabot Learning Federation,1536.63, 24-Dec-2019
599,Revenue,CAHD,Academy Resource Base Funding,Other Public Bodies,Cabot Learning Federation,1536.63, 24-Dec-2019
600,Revenue,CAHD,Academy Resource Base Funding,Other Public Bodies,Cabot Learning Federation,2183.55, 24-Dec-2019
601,Revenue,CAHD,Academy Resource Base Funding,Other Public Bodies,Cabot Learning Federation,1010.95, 24-Dec-2019
602,Revenue,CAHD,Statemented Support Academies,Other Public Bodies,Cabot Learning Federation,918.71, 02-Dec-2019
603,Revenue,CAHD,Statemented Support Academies,Other Public Bodies,Cabot Learning Federation,918.71, 23-Dec-2019
604,Revenue,CAHD,Statemented Support Academies,Other Public Bodies,Cabot Learning Federation,1202.39, 02-Dec-2019
605,Revenue,CAHD,Statemented Support Academies,Other Public Bodies,Cabot Learning Federation,1202.39, 23-Dec-2019
606,Revenue,CAHD,Statemented Support Academies,Other Public Bodies,Cabot Learning Federation,2364.66, 02-Dec-2019
607,Revenue,CAHD,Statemented Support Academies,Other Public Bodies,Cabot Learning Federation,788.22, 23-Dec-2019
608,Revenue,CAHD,Statemented Support Academies,Other Public Bodies,Cabot Learning Federation,518.76, 02-Dec-2019
609,Revenue,CAHD,Statemented Support Academies,Other Public Bodies,Cabot Learning Federation,518.76, 23-Dec-2019
610,Revenue,CAHD,Statemented Support Academies,Other Public Bodies,Cabot Learning Federation,2723.49, 02-Dec-2019
611,Revenue,CAHD,Statemented Support Academies,Other Public Bodies,Cabot Learning Federation,907.83, 23-Dec-2019
612,Revenue,CAHD,Statemented Support Academies,Other Public Bodies,Cabot Learning Federation,554.13, 02-Dec-2019
613,Revenue,CAHD,Statemented Support Academies,Other Public Bodies,Cabot Learning Federation,554.13, 23-Dec-2019
614,Revenue,CAHD,Statemented Support Academies,Other Public Bodies,Cabot Learning Federation,565.92, 02-Dec-2019
615,Revenue,CAHD,Statemented Support Academies,Other Public Bodies,Cabot Learning Federation,565.92, 23-Dec-2019
616,Revenue,CAHD,Statemented Support Academies,Other Public Bodies,Cabot Learning Federation,1048.67, 02-Dec-2019
617,Revenue,CAHD,Statemented Support Academies,Other Public Bodies,Cabot Learning Federation,1048.67, 23-Dec-2019
618,Revenue,CAHD,Statemented Support Academies,Other Public Bodies,Cabot Learning Federation,2616.63, 02-Dec-2019
619,Revenue,CAHD,Statemented Support Academies,Other Public Bodies,Cabot Learning Federation,2616.63, 23-Dec-2019
620,Revenue,CAHD,Statemented Support Payments to OLAs,Other L.A.'s - General,Cabot Learning Federation,1013.94, 02-Dec-2019
621,Revenue,CAHD,Statemented Support Payments to OLAs,Other L.A.'s - General,Cabot Learning Federation,1013.94, 23-Dec-2019
622,Revenue,CAHD,Statemented Support Academies,Other Public Bodies,Cabot Learning Federation,695.61, 02-Dec-2019
623,Revenue,CAHD,Statemented Support Academies,Other Public Bodies,Cabot Learning Federation,695.61, 23-Dec-2019
624,Revenue,CAHD,Statemented Support Academies,Other Public Bodies,Cabot Learning Federation,530.55, 02-Dec-2019
625,Revenue,CAHD,Statemented Support Academies,Other Public Bodies,Cabot Learning Federation,530.55, 23-Dec-2019
626,Revenue,CAHD,Statemented Support Academies,Other Public Bodies,Cabot Learning Federation,918.75, 02-Dec-2019
627,Revenue,CAHD,Statemented Support Academies,Other Public Bodies,Cabot Learning Federation,918.75, 23-Dec-2019
628,Revenue,CAHD,Statemented Support Payments to OLAs,Other L.A.'s - General,Cabot Learning Federation,872.46, 02-Dec-2019
629,Revenue,CAHD,Statemented Support Payments to OLAs,Other L.A.'s - General,Cabot Learning Federation,872.46, 23-Dec-2019
630,Revenue,CAHD,Statemented Support Academies,Other Public Bodies,Cabot Learning Federation,554.13, 02-Dec-2019
631,Revenue,CAHD,Statemented Support Academies,Other Public Bodies,Cabot Learning Federation,554.13, 23-Dec-2019
632,Revenue,CAHD,Statemented Support Academies,Other Public Bodies,Cabot Learning Federation,742.77, 02-Dec-2019
633,Revenue,CAHD,Statemented Support Academies,Other Public Bodies,Cabot Learning Federation,742.77, 23-Dec-2019
634,Revenue,CAHD,Statemented Support Academies,Other Public Bodies,Cabot Learning Federation,778.14, 02-Dec-2019
635,Revenue,CAHD,Statemented Support Academies,Other Public Bodies,Cabot Learning Federation,778.14, 23-Dec-2019
636,Revenue,CAHD,Statemented Support Academies,Other Public Bodies,Cabot Learning Federation,943.20, 02-Dec-2019
637,Revenue,CAHD,Statemented Support Academies,Other Public Bodies,Cabot Learning Federation,943.20, 23-Dec-2019
638,Revenue,CAHD,Statemented Support Academies,Other Public Bodies,Cabot Learning Federation,813.51, 02-Dec-2019
639,Revenue,CAHD,Statemented Support Academies,Other Public Bodies,Cabot Learning Federation,813.51, 23-Dec-2019
640,Revenue,CAHD,Statemented Support Payments to OLAs,Other L.A.'s - General,Cabot Learning Federation,601.29, 02-Dec-2019
641,Revenue,CAHD,Statemented Support Payments to OLAs,Other L.A.'s - General,Cabot Learning Federation,601.29, 23-Dec-2019
642,Revenue,CAHD,Statemented Support Academies,Other Public Bodies,Cabot Learning Federation,860.67, 02-Dec-2019
643,Revenue,CAHD,Statemented Support Academies,Other Public Bodies,Cabot Learning Federation,860.67, 23-Dec-2019
644,Revenue,CAHD,Statemented Support Academies,Other Public Bodies,Cabot Learning Federation,589.50, 02-Dec-2019
645,Revenue,CAHD,Statemented Support Academies,Other Public Bodies,Cabot Learning Federation,589.50, 23-Dec-2019
646,Revenue,CAHD,Statemented Support Academies,Other Public Bodies,Cabot Learning Federation,801.72, 02-Dec-2019
647,Revenue,CAHD,Statemented Support Academies,Other Public Bodies,Cabot Learning Federation,801.72, 23-Dec-2019
648,Revenue,CAHD,Statemented Support Academies,Other Public Bodies,Cabot Learning Federation,1096.47, 02-Dec-2019
649,Revenue,CAHD,Statemented Support Academies,Other Public Bodies,Cabot Learning Federation,1096.47, 23-Dec-2019
650,Revenue,CAHD,Statemented Support Academies,Other Public Bodies,Cabot Learning Federation,730.98, 02-Dec-2019
651,Revenue,CAHD,Statemented Support Academies,Other Public Bodies,Cabot Learning Federation,730.98, 23-Dec-2019
652,Revenue,CAHD,Statemented Support Academies,Other Public Bodies,Cabot Learning Federation,907.83, 02-Dec-2019
653,Revenue,CAHD,Statemented Support Academies,Other Public Bodies,Cabot Learning Federation,907.83, 23-Dec-2019
654,Revenue,CAHD,Statemented Support Academies,Other Public Bodies,Cabot Learning Federation,530.55, 02-Dec-2019
655,Revenue,CAHD,Statemented Support Academies,Other Public Bodies,Cabot Learning Federation,530.55, 23-Dec-2019
656,Revenue,CAHD,Statemented Support Academies,Other Public Bodies,Cabot Learning Federation,742.77, 02-Dec-2019
657,Revenue,CAHD,Statemented Support Academies,Other Public Bodies,Cabot Learning Federation,907.83, 02-Dec-2019
658,Revenue,CAHD,Statemented Support Academies,Other Public Bodies,Cabot Learning Federation,907.83, 23-Dec-2019
659,Revenue,CAHD,Academy Resource Base Funding,Other Public Bodies,Cabot Learning Federation,1643.53, 02-Dec-2019
660,Revenue,CAHD,Academy Resource Base Funding,Other Public Bodies,Cabot Learning Federation,1487.06, 02-Dec-2019
661,Revenue,CAHD,Academy Resource Base Funding,Other Public Bodies,Cabot Learning Federation,1487.06, 02-Dec-2019
662,Revenue,CAHD,Academy Resource Base Funding,Other Public Bodies,Cabot Learning Federation,1134.86, 02-Dec-2019
663,Revenue,CAHD,Academy Resource Base Funding,Other Public Bodies,Cabot Learning Federation,1643.53, 02-Dec-2019
664,Revenue,CAHD,Academy Resource Base Funding,Other Public Bodies,Cabot Learning Federation,1134.86, 02-Dec-2019
665,Revenue,CAHD,Academy Resource Base Funding,Other Public Bodies,Cabot Learning Federation,1134.86, 02-Dec-2019
666,Revenue,CAHD,Academy Resource Base Funding,Other Public Bodies,Cabot Learning Federation,626.06, 02-Dec-2019
667,Revenue,CAHD,Academy Resource Base Funding,Other Public Bodies,Cabot Learning Federation,1134.86, 02-Dec-2019
668,Revenue,CAHD,Academy Resource Base Funding,Other Public Bodies,Cabot Learning Federation,1134.86, 02-Dec-2019
669,Revenue,CAHD,Academy Resource Base Funding,Other Public Bodies,Cabot Learning Federation,1134.86, 02-Dec-2019
670,Revenue,CAHD,Academy Resource Base Funding,Other Public Bodies,Cabot Learning Federation,1134.86, 02-Dec-2019
671,Revenue,CAHD,Academy Resource Base Funding,Other Public Bodies,Cabot Learning Federation,1643.53, 02-Dec-2019
672,Revenue,CAHD,Academy Resource Base Funding,Other Public Bodies,Cabot Learning Federation,626.06, 02-Dec-2019
673,Revenue,CAHD,Academy Resource Base Funding,Other Public Bodies,Cabot Learning Federation,1487.06, 02-Dec-2019
674,Revenue,CAHD,Academy Resource Base Funding,Other Public Bodies,Cabot Learning Federation,1487.06, 02-Dec-2019
675,Revenue,CAHD,Academy Resource Base Funding,Other Public Bodies,Cabot Learning Federation,978.34, 02-Dec-2019
676,Revenue,CAHD,Academy Resource Base Funding,Other Public Bodies,Cabot Learning Federation,2113.11, 02-Dec-2019
677,Revenue,CAHD,Statemented Support Payments to OLAs,Other L.A.'s - General,Cabot Learning Federation,1072.89, 02-Dec-2019
678,Revenue,CAHD,Statemented Support Payments to OLAs,Other L.A.'s - General,Cabot Learning Federation,1072.89, 23-Dec-2019
679,Revenue,CAHD,Statemented Support Academies,Other Public Bodies,Cabot Learning Federation,1296.90, 02-Dec-2019
680,Revenue,CAHD,Statemented Support Academies,Other Public Bodies,Cabot Learning Federation,1296.90, 23-Dec-2019
681,Revenue,CAHD,Statemented Support Academies,Other Public Bodies,Cabot Learning Federation,872.46, 02-Dec-2019
682,Revenue,CAHD,Statemented Support Academies,Other Public Bodies,Cabot Learning Federation,872.46, 23-Dec-2019
683,Revenue,CAHD,Early Years High Needs Support,Other Private Contractors,Caerleon Childcare,515.71, 23-Dec-2019
684,Revenue,CAHD,North - bed purchasing and direct  payments,Permanent Nursing,Caernarvon House,3201.68, 17-Dec-2019
685,Revenue,CAHD,North - bed purchasing and direct  payments,Permanent Nursing,Caernarvon House,4800.00, 17-Dec-2019
686,Revenue,CAHD,North - bed purchasing and direct  payments,Permanent Nursing,Caernarvon House,4710.40, 17-Dec-2019
687,Revenue,CAHD,South - bed purchasing and direct  payments,Permanent Nursing,Caernarvon House,4710.40, 17-Dec-2019
688,Revenue,CAHD,North - S117,Permanent Nursing,Caernarvon House,3990.24, 17-Dec-2019
689,Revenue,CAHD,South - bed purchasing and direct  payments,Permanent Nursing,Caernarvon House,4915.20, 17-Dec-2019
690,Revenue,CAHD,South - bed purchasing and direct  payments,Permanent Nursing,Caernarvon House,4800.00, 17-Dec-2019
691,Revenue,CAHD,South - bed purchasing and direct  payments,Permanent Nursing,Caernarvon House,4300.80, 17-Dec-2019
692,Revenue,CAHD,South - S117,Permanent Nursing,Caernarvon House,4915.20, 17-Dec-2019
693,Revenue,CAHD,North - bed purchasing and direct  payments,Permanent Nursing,Caernarvon House,4800.00, 17-Dec-2019
694,Revenue,CAHD,North - bed purchasing and direct  payments,Fees & Charges Income - General,Caernarvon House,2826.66, 17-Dec-2019
695,Revenue,CAHD,CSC - Residential Placements,Permanent Residential,Cambian Childcare Ltd,19285.80, 20-Dec-2019
696,Revenue,CAHD,CSC - Residential Placements,Permanent Residential,Cambian Childcare Ltd,18428.70, 23-Dec-2019
697,Revenue,CAHD,CSC - Residential Placements,Permanent Residential,Cambian Childcare Ltd,22500.00, 23-Dec-2019
698,Revenue,CAHD,CSC - Residential Placements,Permanent Residential,Cambian Childcare Ltd,19928.66, 20-Dec-2019
699,Revenue,CAHD,CSC - Residential Placements,Permanent Residential,Cambian Childcare Ltd,19042.99, 20-Dec-2019
700,Revenue,CAHD,CSC - Residential Placements,Permanent Residential,Cambian Childcare Ltd,23250.00, 20-Dec-2019
701,Revenue,CAHD,Post 16 High Needs Placements,Other Private Contractors,Cambian Whinfell School Limited,27833.33, 23-Dec-2019
702,Revenue,CAHD,Post 16 High Needs Placements,Other Private Contractors,Cambian Whinfell School Limited,48238.15, 23-Dec-2019
703,Revenue,CAHD,Post 16 High Needs Placements,Other Private Contractors,Cambian Whinfell School Limited,28734.89, 23-Dec-2019
704,Revenue,CAHD,Post 16 High Needs Placements,Other Private Contractors,Cambian Whinfell School Limited,28867.27, 23-Dec-2019
705,Revenue,CAHD,Post 16 High Needs Placements,Other Private Contractors,Cambian Whinfell School Limited,27747.77, 23-Dec-2019
706,Revenue,CAHD,Post 16 High Needs Placements,Other Private Contractors,Cambian Whinfell School Limited,24166.67, 23-Dec-2019
707,Revenue,CAHD,CSC - Vinney Green Secure Unit,R & M by Departments,Cambridge Skip Hire,480.00, 24-Dec-2019
708,Revenue,CAHD,North - Community based support,Day Care / Social Activities,Camphill Communities Thornbury Limited,1007.49, 06-Dec-2019
709,Revenue,CAHD,North - Community based support,Other Small Contracts,Camphill Communities Thornbury Limited,165.55, 06-Dec-2019
710,Revenue,CAHD,North - Community based support,Supported Living,Camphill Communities Thornbury Limited,695.31, 06-Dec-2019
711,Revenue,CAHD,North - Community based support,Day Care / Social Activities,Camphill Communities Thornbury Limited,1012.22, 13-Dec-2019
712,Revenue,CAHD,North - Community based support,Other Small Contracts,Camphill Communities Thornbury Limited,175.01, 13-Dec-2019
713,Revenue,CAHD,North - Community based support,Supported Living,Camphill Communities Thornbury Limited,860.86, 13-Dec-2019
714,Revenue,CAHD,North - Community based support,Day Care / Social Activities,Camphill Communities Thornbury Limited,1135.20, 20-Dec-2019
715,Revenue,CAHD,North - Community based support,Other Small Contracts,Camphill Communities Thornbury Limited,170.28, 20-Dec-2019
716,Revenue,CAHD,North - Community based support,Supported Living,Camphill Communities Thornbury Limited,1045.33, 20-Dec-2019
717,Revenue,CAHD,North - Community based support,Day Care / Social Activities,Camphill Communities Thornbury Limited,922.35, 27-Dec-2019
718,Revenue,CAHD,North - Community based support,Other Small Contracts,Camphill Communities Thornbury Limited,170.28, 27-Dec-2019
719,Revenue,CAHD,North - Community based support,Supported Living,Camphill Communities Thornbury Limited,1050.06, 27-Dec-2019
720,Revenue,CAHD,North - S117,Permanent Residential,Canjayor,3937.76, 17-Dec-2019
721,Revenue,CAHD,Practitioner Training Grant (PT),Grant Income - Government Depts,Capita Business Services Limited,1373.94, 11-Dec-2019
722,Revenue,CAHD,Practitioner Training Grant (PT),Grant Income - Government Depts,Capita Business Services Limited,1373.94, 11-Dec-2019
723,Revenue,CAHD,Practitioner Training Grant (PT),Grant Income - Government Depts,Capita Business Services Limited,1373.94, 11-Dec-2019
724,Revenue,CAHD,CSC - Asylum Seekers - Unaccompanied,Foster Parent Allowances,Capstone Foster Care (South West) Limited,769.02, 05-Dec-2019
725,Revenue,CAHD,CSC - Asylum Seekers - Unaccompanied,Foster Parent Allowances,Capstone Foster Care (South West) Limited,3295.80, 05-Dec-2019
726,Revenue,CAHD,CSC - Asylum Seekers - Unaccompanied,Foster Parent Allowances,Capstone Foster Care (South West) Limited,3405.66, 30-Dec-2019
727,Revenue,CAHD,Central - Commissioned Services,Other Small Contracts,Care 1st Homecare,2929.92, 04-Dec-2019
728,Revenue,CAHD,Central - Commissioned Services,Other Small Contracts,Care 1st Homecare,2934.28, 16-Dec-2019
729,Revenue,CAHD,Central - Commissioned Services,Other Small Contracts,Care 1st Homecare,2929.92, 11-Dec-2019
730,Revenue,CAHD,Central - Commissioned Services,Other Small Contracts,Care 1st Homecare,2929.92, 11-Dec-2019
731,Revenue,CAHD,Central - Commissioned Services,Other Small Contracts,Care 1st Homecare,2929.92, 30-Dec-2019
732,Revenue,CAHD,Central - Commissioned Services,Other Small Contracts,Care 1st Homecare,2929.92, 30-Dec-2019
733,Revenue,CAHD,North - Community based support,Supported Living,Care Horizons,5328.72, 17-Dec-2019
734,Revenue,CAHD,North - Community based support,Supported Living,Care Horizons,5328.72, 17-Dec-2019
735,Revenue,CAHD,Central - Commissioned Services,Other Small Contracts,Care Horizons Limited,1231.65, 06-Dec-2019
736,Revenue,CAHD,South - Commissioned Services,Other Small Contracts,Care Horizons Limited,217.35, 06-Dec-2019
737,Revenue,CAHD,North - Community based support,Day Care / Social Activities,Care Horizons Limited,410.55, 06-Dec-2019
738,Revenue,CAHD,North - Community based support,Other Small Contracts,Care Horizons Limited,618.24, 06-Dec-2019
739,Revenue,CAHD,Younger MH non-res purchasing,Other Small Contracts,Care Horizons Limited,309.12, 06-Dec-2019
740,Revenue,CAHD,Central - Commissioned Services,Other Small Contracts,Care Horizons Limited,1362.06, 09-Dec-2019
741,Revenue,CAHD,South - Commissioned Services,Other Small Contracts,Care Horizons Limited,169.05, 09-Dec-2019
742,Revenue,CAHD,North - Community based support,Day Care / Social Activities,Care Horizons Limited,405.72, 09-Dec-2019
743,Revenue,CAHD,North - Community based support,Other Small Contracts,Care Horizons Limited,748.65, 09-Dec-2019
744,Revenue,CAHD,Younger MH non-res purchasing,Other Small Contracts,Care Horizons Limited,386.40, 09-Dec-2019
745,Revenue,CAHD,Central - Commissioned Services,Other Small Contracts,Care Horizons Limited,1313.76, 06-Dec-2019
746,Revenue,CAHD,South - Commissioned Services,Other Small Contracts,Care Horizons Limited,125.58, 06-Dec-2019
747,Revenue,CAHD,North - Community based support,Day Care / Social Activities,Care Horizons Limited,400.89, 06-Dec-2019
748,Revenue,CAHD,North - Community based support,Other Small Contracts,Care Horizons Limited,685.86, 06-Dec-2019
749,Revenue,CAHD,Younger MH non-res purchasing,Other Small Contracts,Care Horizons Limited,328.44, 06-Dec-2019
750,Revenue,CAHD,Central - Commissioned Services,Other Small Contracts,Care Horizons Limited,1347.57, 23-Dec-2019
751,Revenue,CAHD,South - Commissioned Services,Other Small Contracts,Care Horizons Limited,140.07, 23-Dec-2019
752,Revenue,CAHD,North - Community based support,Day Care / Social Activities,Care Horizons Limited,405.72, 23-Dec-2019
753,Revenue,CAHD,North - Community based support,Other Small Contracts,Care Horizons Limited,637.56, 23-Dec-2019
754,Revenue,CAHD,Younger MH non-res purchasing,Other Small Contracts,Care Horizons Limited,328.44, 23-Dec-2019
755,Revenue,CAHD,Younger MH non-res purchasing,Other Small Contracts,Care Horizons Limited,693.86, 24-Dec-2019
756,Revenue,CAHD,Central - Commissioned Services,Other Small Contracts,Carepride Ltd,4976.90, 17-Dec-2019
757,Revenue,CAHD,Central - Commissioned Services,Other Small Contracts,Carepride Ltd,517.44, 23-Dec-2019
758,Revenue,CAHD,North - Community based support,Other Small Contracts,Carepride Ltd,507.15, 09-Dec-2019
759,Revenue,CAHD,SLA Grants - Support Serv,Grants to Voluntary Bodies,Carers Support Centre,12275.00, 30-Dec-2019
760,Revenue,CAHD,SLA Grants - Support Serv,Grants to Voluntary Bodies,Carers Support Centre,25275.00, 30-Dec-2019
761,Revenue,CAHD,Health Inequalities,Other Small Contracts,Carers Support Centre,60477.00, 30-Dec-2019
762,Revenue,CAHD,CSC - Care Leavers Independent Living,Independent Living,Caring for Communities and People,17915.13, 27-Dec-2019
763,Revenue,CAHD,Central - Commissioned Services,Other Small Contracts,Cartrefi Cymru Co-operative Ltd,1063.20, 10-Dec-2019
764,Revenue,CAHD,Central - Commissioned Services,Other Small Contracts,Cartrefi Cymru Co-operative Ltd,7194.32, 03-Dec-2019
765,Revenue,CAHD,Statemented Support Academies,Other Public Bodies,Castle School Education Trust,530.55, 02-Dec-2019
766,Revenue,CAHD,Statemented Support Academies,Other Public Bodies,Castle School Education Trust,530.55, 23-Dec-2019
767,Revenue,CAHD,Statemented Support Academies,Other Public Bodies,Castle School Education Trust,565.92, 02-Dec-2019
768,Revenue,CAHD,Statemented Support Academies,Other Public Bodies,Castle School Education Trust,565.92, 23-Dec-2019
769,Revenue,CAHD,Statemented Support Academies,Other Public Bodies,Castle School Education Trust,778.14, 02-Dec-2019
770,Revenue,CAHD,Statemented Support Academies,Other Public Bodies,Castle School Education Trust,778.14, 23-Dec-2019
771,Revenue,CAHD,Statemented Support Academies,Other Public Bodies,Castle School Education Trust,931.41, 02-Dec-2019
772,Revenue,CAHD,Statemented Support Academies,Other Public Bodies,Castle School Education Trust,931.41, 23-Dec-2019
773,Revenue,CAHD,Statemented Support Academies,Other Public Bodies,Castle School Education Trust,542.34, 02-Dec-2019
774,Revenue,CAHD,Statemented Support Academies,Other Public Bodies,Castle School Education Trust,542.34, 23-Dec-2019
775,Revenue,CAHD,Statemented Support Academies,Other Public Bodies,Castle School Education Trust,672.03, 02-Dec-2019
776,Revenue,CAHD,Statemented Support Academies,Other Public Bodies,Castle School Education Trust,672.03, 23-Dec-2019
777,Revenue,CAHD,Statemented Support Academies,Other Public Bodies,Castle School Education Trust,577.71, 02-Dec-2019
778,Revenue,CAHD,Statemented Support Academies,Other Public Bodies,Castle School Education Trust,577.71, 23-Dec-2019
779,Revenue,CAHD,Statemented Support Academies,Other Public Bodies,Castle School Education Trust,505.08, 02-Dec-2019
780,Revenue,CAHD,Statemented Support Academies,Other Public Bodies,Castle School Education Trust,505.08, 23-Dec-2019
781,Revenue,CAHD,Statemented Support Academies,Other Public Bodies,Castle School Education Trust,860.67, 02-Dec-2019
782,Revenue,CAHD,Statemented Support Academies,Other Public Bodies,Castle School Education Trust,860.67, 23-Dec-2019
783,Revenue,CAHD,Statemented Support Academies,Other Public Bodies,Castle School Education Trust,1461.96, 02-Dec-2019
784,Revenue,CAHD,Statemented Support Academies,Other Public Bodies,Castle School Education Trust,1461.96, 23-Dec-2019
785,Revenue,CAHD,Statemented Support Academies,Other Public Bodies,Castle School Education Trust,860.67, 02-Dec-2019
786,Revenue,CAHD,Statemented Support Academies,Other Public Bodies,Castle School Education Trust,860.67, 23-Dec-2019
787,Revenue,CAHD,Statemented Support Academies,Other Public Bodies,Castle School Education Trust,1002.15, 02-Dec-2019
788,Revenue,CAHD,Statemented Support Academies,Other Public Bodies,Castle School Education Trust,1002.15, 23-Dec-2019
789,Revenue,CAHD,Statemented Support Academies,Other Public Bodies,Castle School Education Trust,1226.16, 02-Dec-2019
790,Revenue,CAHD,Statemented Support Academies,Other Public Bodies,Castle School Education Trust,613.08, 23-Dec-2019
791,Revenue,CAHD,Statemented Support Academies,Other Public Bodies,Castle School Education Trust,672.03, 02-Dec-2019
792,Revenue,CAHD,Statemented Support Academies,Other Public Bodies,Castle School Education Trust,672.03, 23-Dec-2019
793,Revenue,CAHD,Statemented Support Academies,Other Public Bodies,Castle School Education Trust,1120.05, 02-Dec-2019
794,Revenue,CAHD,Statemented Support Academies,Other Public Bodies,Castle School Education Trust,1120.05, 23-Dec-2019
795,Revenue,CAHD,Statemented Support Academies,Other Public Bodies,Castle School Education Trust,506.97, 02-Dec-2019
796,Revenue,CAHD,Statemented Support Academies,Other Public Bodies,Castle School Education Trust,506.97, 23-Dec-2019
797,Revenue,CAHD,Statemented Support Academies,Other Public Bodies,Castle School Education Trust,636.66, 02-Dec-2019
798,Revenue,CAHD,Statemented Support Academies,Other Public Bodies,Castle School Education Trust,636.66, 23-Dec-2019
799,Revenue,CAHD,Statemented Support Academies,Other Public Bodies,Castle School Education Trust,589.50, 02-Dec-2019
800,Revenue,CAHD,Statemented Support Academies,Other Public Bodies,Castle School Education Trust,589.50, 23-Dec-2019
801,Revenue,CAHD,Statemented Support Academies,Other Public Bodies,Castle School Education Trust,3819.96, 23-Dec-2019
802,Revenue,CAHD,Statemented Support Academies,Other Public Bodies,Castle School Education Trust,577.71, 02-Dec-2019
803,Revenue,CAHD,Statemented Support Academies,Other Public Bodies,Castle School Education Trust,577.71, 23-Dec-2019
804,Revenue,CAHD,Statemented Support Academies,Other Public Bodies,Castle School Education Trust,624.87, 02-Dec-2019
805,Revenue,CAHD,Statemented Support Academies,Other Public Bodies,Castle School Education Trust,624.87, 23-Dec-2019
806,Revenue,CAHD,Statemented Support Academies,Other Public Bodies,Castle School Education Trust,825.30, 02-Dec-2019
807,Revenue,CAHD,Statemented Support Academies,Other Public Bodies,Castle School Education Trust,825.30, 23-Dec-2019
808,Revenue,CAHD,Statemented Support Academies,Other Public Bodies,Castle School Education Trust,1190.79, 02-Dec-2019
809,Revenue,CAHD,Statemented Support Academies,Other Public Bodies,Castle School Education Trust,1190.79, 23-Dec-2019
810,Revenue,CAHD,Statemented Support Academies,Other Public Bodies,Castle School Education Trust,848.88, 02-Dec-2019
811,Revenue,CAHD,Statemented Support Academies,Other Public Bodies,Castle School Education Trust,848.88, 23-Dec-2019
812,Revenue,CAHD,Statemented Support Academies,Other Public Bodies,Castle School Education Trust,1237.95, 02-Dec-2019
813,Revenue,CAHD,Statemented Support Academies,Other Public Bodies,Castle School Education Trust,1237.95, 23-Dec-2019
814,Revenue,CAHD,Statemented Support Academies,Other Public Bodies,Castle School Education Trust,1061.10, 02-Dec-2019
815,Revenue,CAHD,Statemented Support Academies,Other Public Bodies,Castle School Education Trust,1061.10, 23-Dec-2019
816,Revenue,CAHD,Statemented Support Academies,Other Public Bodies,Castle School Education Trust,518.76, 02-Dec-2019
817,Revenue,CAHD,Statemented Support Academies,Other Public Bodies,Castle School Education Trust,518.76, 23-Dec-2019
818,Revenue,CAHD,Statemented Support Academies,Other Public Bodies,Castle School Education Trust,577.71, 02-Dec-2019
819,Revenue,CAHD,Statemented Support Academies,Other Public Bodies,Castle School Education Trust,577.71, 23-Dec-2019
820,Revenue,CAHD,Statemented Support Academies,Other Public Bodies,Castle School Education Trust,1143.63, 02-Dec-2019
821,Revenue,CAHD,Statemented Support Academies,Other Public Bodies,Castle School Education Trust,1143.63, 23-Dec-2019
822,Revenue,CAHD,Statemented Support Academies,Other Public Bodies,Castle School Education Trust,1072.89, 02-Dec-2019
823,Revenue,CAHD,Statemented Support Academies,Other Public Bodies,Castle School Education Trust,1072.89, 23-Dec-2019
824,Revenue,CAHD,Statemented Support Academies,Other Public Bodies,Castle School Education Trust,825.30, 02-Dec-2019
825,Revenue,CAHD,Statemented Support Academies,Other Public Bodies,Castle School Education Trust,1485.54, 02-Dec-2019
826,Revenue,CAHD,Statemented Support Academies,Other Public Bodies,Castle School Education Trust,1485.54, 23-Dec-2019
827,Revenue,CAHD,Academy Resource Base Funding,Other Public Bodies,Castle School Education Trust,1698.31, 24-Dec-2019
828,Revenue,CAHD,Academy Resource Base Funding,Other Public Bodies,Castle School Education Trust,1698.31, 24-Dec-2019
829,Revenue,CAHD,Academy Resource Base Funding,Other Public Bodies,Castle School Education Trust,1698.31, 24-Dec-2019
830,Revenue,CAHD,Academy Resource Base Funding,Other Public Bodies,Castle School Education Trust,1698.31, 24-Dec-2019
831,Revenue,CAHD,Academy Resource Base Funding,Other Public Bodies,Castle School Education Trust,1698.31, 24-Dec-2019
832,Revenue,CAHD,Academy Resource Base Funding,Other Public Bodies,Castle School Education Trust,1698.31, 24-Dec-2019
833,Revenue,CAHD,Academy Resource Base Funding,Other Public Bodies,Castle School Education Trust,1698.31, 24-Dec-2019
834,Revenue,CAHD,Academy Resource Base Funding,Other Public Bodies,Castle School Education Trust,1698.31, 24-Dec-2019
835,Revenue,CAHD,Academy Resource Base Funding,Other Public Bodies,Castle School Education Trust,1698.31, 24-Dec-2019
836,Revenue,CAHD,Academy Resource Base Funding,Other Public Bodies,Castle School Education Trust,1698.31, 24-Dec-2019
837,Revenue,CAHD,Statemented Support Academies,Other Public Bodies,Castle School Education Trust,1322.75, 02-Dec-2019
838,Revenue,CAHD,Statemented Support Academies,Other Public Bodies,Castle School Education Trust,1322.75, 23-Dec-2019
839,Revenue,CAHD,Statemented Support Academies,Other Public Bodies,Castle School Education Trust,1517.92, 02-Dec-2019
840,Revenue,CAHD,Statemented Support Academies,Other Public Bodies,Castle School Education Trust,1267.50, 23-Dec-2019
841,Revenue,CAHD,Statemented Support Academies,Other Public Bodies,Castle School Education Trust,672.03, 02-Dec-2019
842,Revenue,CAHD,Statemented Support Academies,Other Public Bodies,Castle School Education Trust,672.03, 23-Dec-2019
843,Revenue,CAHD,Statemented Support Academies,Other Public Bodies,Castle School Education Trust,872.46, 02-Dec-2019
844,Revenue,CAHD,Statemented Support Academies,Other Public Bodies,Castle School Education Trust,872.46, 23-Dec-2019
845,Revenue,CAHD,Statemented Support Academies,Other Public Bodies,Castle School Education Trust,848.88, 02-Dec-2019
846,Revenue,CAHD,Statemented Support Academies,Other Public Bodies,Castle School Education Trust,848.88, 23-Dec-2019
847,Revenue,CAHD,Statemented Support Academies,Other Public Bodies,Castle School Education Trust,1556.28, 02-Dec-2019
848,Revenue,CAHD,Statemented Support Academies,Other Public Bodies,Castle School Education Trust,1556.28, 23-Dec-2019
849,Revenue,CAHD,Statemented Support Academies,Other Public Bodies,Castle School Education Trust,1025.73, 02-Dec-2019
850,Revenue,CAHD,Statemented Support Academies,Other Public Bodies,Castle School Education Trust,1025.73, 23-Dec-2019
851,Revenue,CAHD,Academy Resource Base Funding,Other Public Bodies,Castle School Education Trust,1643.53, 02-Dec-2019
852,Revenue,CAHD,Academy Resource Base Funding,Other Public Bodies,Castle School Education Trust,1643.53, 02-Dec-2019
853,Revenue,CAHD,Academy Resource Base Funding,Other Public Bodies,Castle School Education Trust,1643.53, 02-Dec-2019
854,Revenue,CAHD,Academy Resource Base Funding,Other Public Bodies,Castle School Education Trust,1643.53, 02-Dec-2019
855,Revenue,CAHD,Academy Resource Base Funding,Other Public Bodies,Castle School Education Trust,1643.53, 02-Dec-2019
856,Revenue,CAHD,Academy Resource Base Funding,Other Public Bodies,Castle School Education Trust,1643.53, 02-Dec-2019
857,Revenue,CAHD,Academy Resource Base Funding,Other Public Bodies,Castle School Education Trust,4985.37, 02-Dec-2019
858,Revenue,CAHD,Academy Resource Base Funding,Other Public Bodies,Castle School Education Trust,1643.53, 02-Dec-2019
859,Revenue,CAHD,Academy Resource Base Funding,Other Public Bodies,Castle School Education Trust,1643.53, 02-Dec-2019
860,Revenue,CAHD,Academy Resource Base Funding,Other Public Bodies,Castle School Education Trust,2027.02, 02-Dec-2019
861,Revenue,CAHD,Statemented Support Academies,Other Public Bodies,Castle School Education Trust,630.58, 02-Dec-2019
862,Revenue,CAHD,Statemented Support Academies,Other Public Bodies,Castle School Education Trust,630.58, 23-Dec-2019
863,Revenue,CAHD,Statemented Support Academies,Other Public Bodies,Castle School Education Trust,778.14, 02-Dec-2019
864,Revenue,CAHD,Statemented Support Academies,Other Public Bodies,Castle School Education Trust,778.14, 23-Dec-2019
865,Revenue,CAHD,Statemented Support Academies,Other Public Bodies,Castle School Education Trust,613.08, 02-Dec-2019
866,Revenue,CAHD,Statemented Support Academies,Other Public Bodies,Castle School Education Trust,613.08, 23-Dec-2019
867,Revenue,CAHD,Statemented Support Academies,Other Public Bodies,Castle School Educational Turust,1148.20, 23-Dec-2019
868,Revenue,CAHD,Statemented Support Academies,Other Public Bodies,Castle School Educational Turust,1497.33, 23-Dec-2019
869,Revenue,CAHD,Social Lettings Agency,Fees - General,Individual,10.53, 30-Dec-2019
870,Revenue,CAHD,Social Lettings Agency,Fees & Charges Income - General,Individual,595.11, 30-Dec-2019
871,Revenue,CAHD,North - Community based support,Day Care / Social Activities,Causeway House,2133.96, 17-Dec-2019
872,Revenue,CAHD,Central - Commissioned Services,Day Care / Social Activities,Causeway House,1136.76, 17-Dec-2019
873,Revenue,CAHD,South - Commissioned Services,Day Care / Social Activities,Causeway House,5253.12, 17-Dec-2019
874,Revenue,CAHD,18-25 Year Olds,Day Care / Social Activities,Causeway House,1418.72, 17-Dec-2019
875,Revenue,CAHD,18-25 Year Olds,Day Care / Social Activities,Causeway House,4414.64, 17-Dec-2019
876,Revenue,CAHD,Central - Commissioned Services,Day Care / Social Activities,Causeway House,3891.60, 17-Dec-2019
877,Revenue,CAHD,Central - Commissioned Services,Day Care / Social Activities,Causeway House,1704.96, 17-Dec-2019
878,Revenue,CAHD,North - Community based support,Day Care / Social Activities,Causeway House,3226.20, 17-Dec-2019
879,Revenue,CAHD,North - Community based support,Day Care / Social Activities,Causeway House,4806.44, 17-Dec-2019
880,Revenue,CAHD,Central - Commissioned Services,Day Care / Social Activities,Causeway House,3652.12, 17-Dec-2019
881,Revenue,CAHD,North - Community based support,Day Care / Social Activities,Causeway House,3149.08, 17-Dec-2019
882,Revenue,CAHD,North - Community based support,Day Care / Social Activities,Causeway House,568.32, 17-Dec-2019
883,Revenue,CAHD,North - bed purchasing and direct  payments,Permanent Residential,Cepen Lodge,2741.48, 17-Dec-2019
884,Revenue,CAHD,South - bed purchasing and direct  payments,Permanent Residential,Challenge House,2834.44, 17-Dec-2019
885,Revenue,CAHD,North - S117,Permanent Residential,Challenge House,2571.40, 17-Dec-2019
886,Revenue,CAHD,North - bed purchasing and direct  payments,Permanent Residential,Challenge House,2233.00, 17-Dec-2019
887,Revenue,CAHD,North - bed purchasing and direct  payments,Permanent Residential,Challenge House,2900.00, 17-Dec-2019
888,Revenue,CAHD,Central - Bed Purchasing and Direct Payments,Permanent Residential,Challenge House,2365.60, 17-Dec-2019
889,Revenue,CAHD,Central - Bed Purchasing and Direct Payments,Permanent Residential,Challenge House,2363.40, 17-Dec-2019
890,Revenue,CAHD,North - bed purchasing and direct  payments,Permanent Residential,Challenge House,2363.40, 17-Dec-2019
891,Revenue,CAHD,North - bed purchasing and direct  payments,Permanent Residential,Challenge House,2834.40, 17-Dec-2019
892,Revenue,CAHD,North - bed purchasing and direct  payments,Permanent Nursing,Challenge House,3130.36, 17-Dec-2019
893,Revenue,CAHD,Central - Bed Purchasing and Direct Payments,Permanent Nursing,Challenge House,3000.00, 17-Dec-2019
894,Revenue,CAHD,North - S117,Permanent Nursing,Challenge House,2395.80, 17-Dec-2019
895,Revenue,CAHD,Central - Bed Purchasing and Direct Payments,Permanent Nursing,Challenge House,3056.00, 17-Dec-2019
896,Revenue,CAHD,North - bed purchasing and direct  payments,Permanent Nursing,Challenge House,8999.90, 17-Dec-2019
897,Revenue,CAHD,North - bed purchasing and direct  payments,Permanent Nursing,Challenge House,2571.40, 17-Dec-2019
898,Revenue,CAHD,North - bed purchasing and direct  payments,Fees & Charges Income - General,Challenge House,1861.36, 17-Dec-2019
899,Revenue,CAHD,North - bed purchasing and direct  payments,Fees & Charges Income - General,Challenge House,1315.98, 17-Dec-2019
900,Revenue,CAHD,North - bed purchasing and direct  payments,Fees & Charges Income - General,Challenge House,1555.25, 17-Dec-2019
901,Revenue,CAHD,North - bed purchasing and direct  payments,Permanent Nursing,Challenge House,2395.80, 17-Dec-2019
902,Revenue,CAHD,North - bed purchasing and direct  payments,Permanent Nursing,Challenge House,3130.36, 17-Dec-2019
903,Revenue,CAHD,South Glos Users in South Glos Homes,Permanent Nursing,Challenge House,662.24, 17-Dec-2019
904,Revenue,CAHD,South Glos Users in South Glos Homes,Permanent Nursing,Challenge House,662.24, 17-Dec-2019
905,Revenue,CAHD,South Glos Users in South Glos Homes,Permanent Nursing,Challenge House,662.24, 17-Dec-2019
906,Revenue,CAHD,North - Community based support,Day Care / Social Activities,Challenge House,1437.20, 17-Dec-2019
907,Revenue,CAHD,North - bed purchasing and direct  payments,Respite Planned - Nursing,Challenge House,3000.00, 17-Dec-2019
908,Revenue,CAHD,North - bed purchasing and direct  payments,Respite Planned - Nursing,Challenge House,2785.71, 17-Dec-2019
909,Revenue,CAHD,South - bed purchasing and direct  payments,Permanent Nursing,Challenge House,2884.20, 17-Dec-2019
910,Revenue,CAHD,South Glos Users in South Glos Homes,Permanent Nursing,Challenge House,662.24, 17-Dec-2019
911,Revenue,CAHD,North - bed purchasing and direct  payments,Permanent Nursing,Challenge House,3335.08, 17-Dec-2019
912,Revenue,CAHD,North - bed purchasing and direct  payments,Permanent Nursing,Challenge House,3208.48, 17-Dec-2019
913,Revenue,CAHD,South Glos Users in South Glos Homes,Permanent Nursing,Challenge House,662.24, 17-Dec-2019
914,Revenue,CAHD,South Glos Users in South Glos Homes,Permanent Nursing,Challenge House,662.24, 17-Dec-2019
915,Revenue,CAHD,North - bed purchasing and direct  payments,Permanent Nursing,Challenge House,3338.84, 17-Dec-2019
916,Revenue,CAHD,South Glos Users in South Glos Homes,Permanent Nursing,Challenge House,662.24, 17-Dec-2019
917,Revenue,CAHD,South - bed purchasing and direct  payments,Permanent Nursing,Challenge House,3000.00, 17-Dec-2019
918,Revenue,CAHD,South Glos Users in South Glos Homes,Permanent Nursing,Challenge House,662.24, 17-Dec-2019
919,Revenue,CAHD,South - bed purchasing and direct  payments,Permanent Residential,Challenge House,3000.00, 17-Dec-2019
920,Revenue,CAHD,South Glos Users in South Glos Homes,Permanent Nursing,Challenge House,662.24, 17-Dec-2019
921,Revenue,CAHD,South Glos Users in South Glos Homes,Permanent Nursing,Challenge House,662.24, 17-Dec-2019
922,Revenue,CAHD,South Glos Users in South Glos Homes,Permanent Nursing,Challenge House,662.24, 17-Dec-2019
923,Revenue,CAHD,Central - Bed Purchasing and Direct Payments,Permanent Nursing,Challenge House,3000.00, 17-Dec-2019
924,Revenue,CAHD,South - bed purchasing and direct  payments,Permanent Nursing,Challenge House,3000.00, 17-Dec-2019
925,Revenue,CAHD,South Glos Users in South Glos Homes,Permanent Nursing,Challenge House,1442.74, 17-Dec-2019
926,Revenue,CAHD,South Glos Users in South Glos Homes,Permanent Nursing,Challenge House,4257.26, 17-Dec-2019
927,Revenue,CAHD,South Glos Users in South Glos Homes,Permanent Nursing,Challenge House,662.24, 17-Dec-2019
928,Revenue,CAHD,North - bed purchasing and direct  payments,Permanent Nursing,Challenge House,2827.52, 17-Dec-2019
929,Revenue,CAHD,South Glos Users in South Glos Homes,Permanent Nursing,Challenge House,662.24, 17-Dec-2019
930,Revenue,CAHD,North - bed purchasing and direct  payments,Fees & Charges Income - General,Challenge House,4853.42, 17-Dec-2019
931,Revenue,CAHD,North - bed purchasing and direct  payments,Permanent Nursing,Challenge House,3338.84, 17-Dec-2019
932,Revenue,CAHD,South Glos Users in South Glos Homes,Permanent Nursing,Challenge House,662.24, 17-Dec-2019
933,Revenue,CAHD,South Glos Users in South Glos Homes,Permanent Nursing,Challenge House,662.24, 17-Dec-2019
934,Revenue,CAHD,South Glos Users in South Glos Homes,Permanent Nursing,Challenge House,662.24, 17-Dec-2019
935,Revenue,CAHD,North - bed purchasing and direct  payments,Permanent Nursing,Challenge House,2827.52, 17-Dec-2019
936,Revenue,CAHD,South Glos Users in South Glos Homes,Permanent Nursing,Challenge House,662.24, 17-Dec-2019
937,Revenue,CAHD,South Glos Users in South Glos Homes,Permanent Nursing,Challenge House,662.24, 17-Dec-2019
938,Revenue,CAHD,North - bed purchasing and direct  payments,Permanent Nursing,Challenge House,3263.84, 17-Dec-2019
939,Revenue,CAHD,South Glos Users in South Glos Homes,Permanent Nursing,Challenge House,662.24, 17-Dec-2019
940,Revenue,CAHD,Mental Capacity Act / DOLS,Legal Fees,Individual,665.00, 24-Dec-2019
941,Revenue,CAHD,Statemented Support Academies,Other Public Bodies,Charlton Wood Primary Academy,702.17, 02-Dec-2019
942,Revenue,CAHD,Statemented Support Academies,Other Public Bodies,Charlton Wood Primary Academy,702.17, 23-Dec-2019
943,Revenue,CAHD,Central - Commissioned Services,Other Small Contracts,Cherish Able Care Limited,1977.14, 11-Dec-2019
944,Revenue,CAHD,South - Commissioned Services,Other Small Contracts,Cherish Able Care Limited,4450.98, 11-Dec-2019
945,Revenue,CAHD,North - Community based support,Other Small Contracts,Cherish Able Care Limited,742.61, 11-Dec-2019
946,Revenue,CAHD,Central - Commissioned Services,Other Small Contracts,Cherish Able Care Limited,2109.58, 17-Dec-2019
947,Revenue,CAHD,South - Commissioned Services,Other Small Contracts,Cherish Able Care Limited,4823.47, 17-Dec-2019
948,Revenue,CAHD,North - Community based support,Other Small Contracts,Cherish Able Care Limited,1239.26, 17-Dec-2019
949,Revenue,CAHD,Central - Commissioned Services,Other Small Contracts,Cherish Able Care Limited,2090.66, 23-Dec-2019
950,Revenue,CAHD,South - Commissioned Services,Other Small Contracts,Cherish Able Care Limited,5026.86, 23-Dec-2019
951,Revenue,CAHD,North - Community based support,Other Small Contracts,Cherish Able Care Limited,1277.10, 23-Dec-2019
952,Revenue,CAHD,Central - Commissioned Services,Other Small Contracts,Cherish Able Care Limited,2104.85, 27-Dec-2019
953,Revenue,CAHD,South - Commissioned Services,Other Small Contracts,Cherish Able Care Limited,5011.98, 27-Dec-2019
954,Revenue,CAHD,North - Community based support,Other Small Contracts,Cherish Able Care Limited,1277.10, 27-Dec-2019
955,Revenue,CAHD,South - Commissioned Services,Supported Living,Cherry Orchards,1286.56, 20-Dec-2019
956,Revenue,CAHD,South - Commissioned Services,Other Small Contracts,Cherry Orchards,6357.12, 23-Dec-2019
957,Revenue,CAHD,18-25 Year Olds,Other Small Contracts,Cherry Orchards,1173.04, 20-Dec-2019
958,Revenue,CAHD,18-25 Year Olds,Other Small Contracts,Cherry Orchards,3216.40, 23-Dec-2019
959,Revenue,CAHD,18-25 Year Olds,Supported Living,Cherry Orchards,1682.00, 17-Dec-2019
960,Revenue,CAHD,Supported Living (S28a) South,Supported Living,Cherry Orchards,1997.24, 17-Dec-2019
961,Revenue,CAHD,18-25 Year Olds,Supported Living,Cherry Orchards,1720.16, 17-Dec-2019
962,Revenue,CAHD,North - Community based support,Supported Living,Cherry Orchards,1022.52, 17-Dec-2019
963,Revenue,CAHD,S28A cases,Permanent Residential,Chescombe Trust Ltd,9764.44, 17-Dec-2019
964,Revenue,CAHD,CSC - LAC Placements,"Holidays, Outings & Visits",Childrens Contact Services Ltd,3048.79, 16-Dec-2019
965,Revenue,CAHD,CSC - LAC Placements,"Holidays, Outings & Visits",Childrens Contact Services Ltd,836.00, 16-Dec-2019
966,Revenue,CAHD,CSC - LAC Placements,"Holidays, Outings & Visits",Childrens Contact Services Ltd,878.60, 17-Dec-2019
967,Revenue,CAHD,EARLY YEARS DISABILITY  ACCES FUND,Preventative Assistance,Chipping Sodbury Pre School,615.00, 16-Dec-2019
968,Revenue,CAHD,18-25 Year Olds,Other Small Contracts,Cintre,39.04, 11-Dec-2019
969,Revenue,CAHD,Central - Commissioned Services,Other Small Contracts,Cintre,229.36, 11-Dec-2019
970,Revenue,CAHD,South - Commissioned Services,Other Small Contracts,Cintre,741.76, 11-Dec-2019
971,Revenue,CAHD,18-25 Year Olds,Other Small Contracts,Cintre,73.20, 24-Dec-2019
972,Revenue,CAHD,Central - Commissioned Services,Other Small Contracts,Cintre,312.32, 24-Dec-2019
973,Revenue,CAHD,South - Commissioned Services,Other Small Contracts,Cintre,658.80, 24-Dec-2019
974,Revenue,CAHD,18-25 Year Olds,Other Small Contracts,Cintre,78.08, 20-Dec-2019
975,Revenue,CAHD,Central - Commissioned Services,Other Small Contracts,Cintre,268.40, 20-Dec-2019
976,Revenue,CAHD,South - Commissioned Services,Other Small Contracts,Cintre,746.64, 20-Dec-2019
977,Revenue,CAHD,18-25 Year Olds,Other Small Contracts,Cintre,78.08, 27-Dec-2019
978,Revenue,CAHD,Central - Commissioned Services,Other Small Contracts,Cintre,380.64, 27-Dec-2019
979,Revenue,CAHD,South - Commissioned Services,Other Small Contracts,Cintre,1015.04, 27-Dec-2019
980,Revenue,CAHD,Training - Adult Services,Training Expenses,City & Guilds,2328.70, 24-Dec-2019
981,Revenue,CAHD,Post 16 High Needs Placements,Other Private Contractors,City of Bristol College,214510.79, 20-Dec-2019
982,Revenue,CAHD,South - bed purchasing and direct  payments,Permanent Residential,Clearwater Care,5280.28, 17-Dec-2019
983,Revenue,CAHD,South - bed purchasing and direct  payments,Permanent Residential,Cleeve Lodge,3686.40, 17-Dec-2019
984,Revenue,CAHD,South - bed purchasing and direct  payments,Permanent Residential,Cleeve Lodge,3686.40, 17-Dec-2019
985,Revenue,CAHD,South - bed purchasing and direct  payments,Permanent Residential,Cleeve Lodge,1308.44, 17-Dec-2019
986,Revenue,CAHD,South - bed purchasing and direct  payments,Permanent Residential,Cleeve Lodge,2921.68, 17-Dec-2019
987,Revenue,CAHD,South - bed purchasing and direct  payments,Permanent Residential,Cleeve Lodge,3086.48, 17-Dec-2019
988,Revenue,CAHD,South - bed purchasing and direct  payments,Respite Emergency - Residential,Cleeve Lodge,2200.00, 17-Dec-2019
989,Revenue,CAHD,South - bed purchasing and direct  payments,Permanent Residential,Cleeve Lodge,4000.00, 17-Dec-2019
990,Revenue,CAHD,MH Purchasing - Younger,Respite Emergency - Residential,Cleeve Lodge,8428.57, 17-Dec-2019
991,Revenue,CAHD,MH Purchasing - Younger,Respite Emergency - Residential,Cleeve Lodge,1571.43, 17-Dec-2019
992,Revenue,CAHD,North - bed purchasing and direct  payments,Respite Planned - Residential,Cleeve Lodge,1900.00, 17-Dec-2019
993,Revenue,CAHD,Bed Purchasing - Southmead Hospital,Permanent Residential,Cleeve Lodge,4000.00, 17-Dec-2019
994,Revenue,CAHD,Bed Purchasing - Southmead Hospital,Permanent Residential,Cleeve Lodge,2000.00, 17-Dec-2019
995,Revenue,CAHD,South - bed purchasing and direct  payments,Permanent Residential,Cleeve Lodge,2893.00, 17-Dec-2019
996,Revenue,CAHD,South - bed purchasing and direct  payments,Fees & Charges Income - General,Cleeve Lodge,5346.38, 17-Dec-2019
997,Revenue,CAHD,South - bed purchasing and direct  payments,Permanent Residential,Cleeve Lodge,2635.60, 17-Dec-2019
998,Revenue,CAHD,North - bed purchasing and direct  payments,Permanent Nursing,Clevedon Court Nursing Home,3448.16, 17-Dec-2019
999,Revenue,CAHD,Independent Special Placements - Pre 16,Other Private Contractors,Clifton College,8380.00, 24-Dec-2019
1000,Revenue,CAHD,North - Community based support,Other Small Contracts,Clover Health and Home Care Ltd,509.76, 19-Dec-2019
1001,Revenue,CAHD,Central - Commissioned Services,Other Small Contracts,Clover Health and Home Care Ltd,860.22, 13-Dec-2019
1002,Revenue,CAHD,Sexual Health,Other Small Contracts,Cohesian Consultancy,500.00, 30-Dec-2019
1003,Revenue,CAHD,Sexual Health,Other Small Contracts,Cohesian Consultancy,500.00, 30-Dec-2019
1004,Revenue,CAHD,South - bed purchasing and direct  payments,Permanent Residential,Collingwood Care Home,2826.24, 17-Dec-2019
1005,Revenue,CAHD,South - bed purchasing and direct  payments,Permanent Residential,Collingwood Care Home,2241.28, 17-Dec-2019
1006,Revenue,CAHD,South - bed purchasing and direct  payments,Permanent Residential,Collingwood Care Home,2420.80, 17-Dec-2019
1007,Revenue,CAHD,North - bed purchasing and direct  payments,Permanent Residential,Collingwood Care Home,3000.00, 17-Dec-2019
1008,Revenue,CAHD,South - bed purchasing and direct  payments,Permanent Residential,Collingwood Care Home,2504.28, 17-Dec-2019
1009,Revenue,CAHD,Grange School Holding Account,Premises Maintenance by Contractor,Commercial Transfer Limited,3110.24, 23-Dec-2019
1010,Revenue,CAHD,South - bed purchasing and direct  payments,Permanent Residential,Community Theraputic Services,7893.40, 17-Dec-2019
1011,Revenue,CAHD,Jointly Funded H&SC Packages,Permanent Residential,Community Theraputic Services,4875.84, 17-Dec-2019
1012,Revenue,CAHD,Jointly Funded H&SC Packages,Permanent Residential,Community Theraputic Services,2027.52, 17-Dec-2019
1013,Revenue,CAHD,North - bed purchasing and direct  payments,Permanent Residential,Community Theraputic Services,8119.76, 17-Dec-2019
1014,Revenue,CAHD,CSC - Vinney Green Secure Unit,R & M by Departments,Complete Weed Control (North Wessex) Ltd,610.00, 18-Dec-2019
1015,Revenue,CAHD,South - bed purchasing and direct  payments,Respite Planned - Residential,Concorde Lodge,19007.60, 17-Dec-2019
1016,Revenue,CAHD,Bed and Breakfast,Bed & Breakfast,Connolly & Callaghan Limited,504.00, 13-Dec-2019
1017,Revenue,CAHD,Bed and Breakfast,Bed & Breakfast,Connolly & Callaghan Limited,490.00, 13-Dec-2019
1018,Revenue,CAHD,Bed and Breakfast,Bed & Breakfast,Connolly & Callaghan Limited,497.00, 17-Dec-2019
1019,Revenue,CAHD,Bed and Breakfast,Bed & Breakfast,Connolly & Callaghan Limited,497.00, 13-Dec-2019
1020,Revenue,CAHD,Bed and Breakfast,Bed & Breakfast,Connolly & Callaghan Limited,490.00, 13-Dec-2019
1021,Revenue,CAHD,Bed and Breakfast,Bed & Breakfast,Connolly & Callaghan Limited,497.00, 24-Dec-2019
1022,Revenue,CAHD,Bed and Breakfast,Bed & Breakfast,Connolly & Callaghan Limited,714.00, 20-Dec-2019
1023,Revenue,CAHD,Bed and Breakfast,Bed & Breakfast,Connolly & Callaghan Limited,714.00, 24-Dec-2019
1024,Revenue,CAHD,Bed and Breakfast,Bed & Breakfast,Connolly & Callaghan Limited,455.00, 24-Dec-2019
1025,Revenue,CAHD,Bed and Breakfast,Bed & Breakfast,Connolly & Callaghan Limited,497.00, 23-Dec-2019
1026,Revenue,CAHD,Bed and Breakfast,Bed & Breakfast,Connolly & Callaghan Limited,497.00, 23-Dec-2019
1027,Revenue,CAHD,Bed and Breakfast,Bed & Breakfast,Connolly & Callaghan Limited,665.00, 24-Dec-2019
1028,Revenue,CAHD,Bed and Breakfast,Bed & Breakfast,Connolly & Callaghan Limited,910.00, 27-Dec-2019
1029,Revenue,CAHD,Bed and Breakfast,Bed & Breakfast,Connolly & Callaghan Limited,504.00, 23-Dec-2019
1030,Revenue,CAHD,Bed and Breakfast,Bed & Breakfast,Connolly & Callaghan Limited,714.00, 24-Dec-2019
1031,Revenue,CAHD,Bed and Breakfast,Bed & Breakfast,Connolly & Callaghan Limited,455.00, 27-Dec-2019
1032,Revenue,CAHD,Bed and Breakfast,Bed & Breakfast,Connolly & Callaghan Limited,497.00, 23-Dec-2019
1033,Revenue,CAHD,Bed and Breakfast,Bed & Breakfast,Connolly & Callaghan Limited,483.00, 27-Dec-2019
1034,Revenue,CAHD,Bed and Breakfast,Bed & Breakfast,Connolly & Callaghan Limited,498.00, 27-Dec-2019
1035,Revenue,CAHD,Bed and Breakfast,Bed & Breakfast,Connolly & Callaghan Limited,539.00, 24-Dec-2019
1036,Revenue,CAHD,Bed and Breakfast,Bed & Breakfast,Connolly & Callaghan Limited,420.00, 23-Dec-2019
1037,Revenue,CAHD,Bed and Breakfast,Bed & Breakfast,Connolly & Callaghan Limited,455.00, 24-Dec-2019
1038,Revenue,CAHD,Bed and Breakfast,Bed & Breakfast,Connolly & Callaghan Limited,497.00, 23-Dec-2019
1039,Revenue,CAHD,Bed and Breakfast,Bed & Breakfast,Connolly & Callaghan Limited,497.00, 23-Dec-2019
1040,Revenue,CAHD,Bed and Breakfast,Bed & Breakfast,Connolly & Callaghan Limited,665.00, 23-Dec-2019
1041,Revenue,CAHD,Bed and Breakfast,Bed & Breakfast,Connolly & Callaghan Limited,910.00, 27-Dec-2019
1042,Revenue,CAHD,Bed and Breakfast,Bed & Breakfast,Connolly & Callaghan Limited,504.00, 23-Dec-2019
1043,Revenue,CAHD,Bed and Breakfast,Bed & Breakfast,Connolly & Callaghan Limited,581.00, 23-Dec-2019
1044,Revenue,CAHD,Bed and Breakfast,Bed & Breakfast,Connolly & Callaghan Limited,714.00, 24-Dec-2019
1045,Revenue,CAHD,Bed and Breakfast,Bed & Breakfast,Connolly & Callaghan Limited,455.00, 27-Dec-2019
1046,Revenue,CAHD,Bed and Breakfast,Bed & Breakfast,Connolly & Callaghan Limited,497.00, 23-Dec-2019
1047,Revenue,CAHD,Bed and Breakfast,Bed & Breakfast,Connolly & Callaghan Limited,483.00, 23-Dec-2019
1048,Revenue,CAHD,Bed and Breakfast,Bed & Breakfast,Connolly & Callaghan Limited,581.00, 23-Dec-2019
1049,Revenue,CAHD,Bed and Breakfast,Bed & Breakfast,Connolly & Callaghan Limited,539.00, 23-Dec-2019
1050,Revenue,CAHD,Bed and Breakfast,Bed & Breakfast,Connolly & Callaghan Limited,420.00, 23-Dec-2019
1051,Revenue,CAHD,Bed and Breakfast,Bed & Breakfast,Connolly & Callaghan Limited,581.00, 13-Dec-2019
1052,Revenue,CAHD,Bed and Breakfast,Bed & Breakfast,Connolly & Callaghan Limited,420.00, 13-Dec-2019
1053,Revenue,CAHD,Bed and Breakfast,Bed & Breakfast,Connolly & Callaghan Limited,497.00, 13-Dec-2019
1054,Revenue,CAHD,Bed and Breakfast,Bed & Breakfast,Connolly & Callaghan Limited,910.00, 20-Dec-2019
1055,Revenue,CAHD,Bed and Breakfast,Bed & Breakfast,Connolly & Callaghan Limited,581.00, 13-Dec-2019
1056,Revenue,CAHD,Bed and Breakfast,Bed & Breakfast,Connolly & Callaghan Limited,420.00, 13-Dec-2019
1057,Revenue,CAHD,Bed and Breakfast,Bed & Breakfast,Connolly & Callaghan Limited,497.00, 13-Dec-2019
1058,Revenue,CAHD,Bed and Breakfast,Bed & Breakfast,Connolly & Callaghan Limited,581.00, 13-Dec-2019
1059,Revenue,CAHD,Bed and Breakfast,Bed & Breakfast,Connolly & Callaghan Limited,420.00, 13-Dec-2019
1060,Revenue,CAHD,Bed and Breakfast,Bed & Breakfast,Connolly & Callaghan Limited,497.00, 13-Dec-2019
1061,Revenue,CAHD,Bed and Breakfast,Bed & Breakfast,Connolly & Callaghan Limited,581.00, 13-Dec-2019
1062,Revenue,CAHD,Bed and Breakfast,Bed & Breakfast,Connolly & Callaghan Limited,420.00, 13-Dec-2019
1063,Revenue,CAHD,Bed and Breakfast,Bed & Breakfast,Connolly & Callaghan Limited,497.00, 13-Dec-2019
1064,Revenue,CAHD,Bed and Breakfast,Bed & Breakfast,Connolly & Callaghan Limited,581.00, 13-Dec-2019
1065,Revenue,CAHD,Bed and Breakfast,Bed & Breakfast,Connolly & Callaghan Limited,420.00, 13-Dec-2019
1066,Revenue,CAHD,Bed and Breakfast,Bed & Breakfast,Connolly & Callaghan Limited,490.00, 16-Dec-2019
1067,Revenue,CAHD,Bed and Breakfast,Bed & Breakfast,Connolly & Callaghan Limited,910.00, 18-Dec-2019
1068,Revenue,CAHD,Bed and Breakfast,Bed & Breakfast,Connolly & Callaghan Limited,539.00, 18-Dec-2019
1069,Revenue,CAHD,Bed and Breakfast,Bed & Breakfast,Connolly & Callaghan Limited,504.00, 16-Dec-2019
1070,Revenue,CAHD,Bed and Breakfast,Bed & Breakfast,Connolly & Callaghan Limited,714.00, 17-Dec-2019
1071,Revenue,CAHD,Bed and Breakfast,Bed & Breakfast,Connolly & Callaghan Limited,490.00, 17-Dec-2019
1072,Revenue,CAHD,Bed and Breakfast,Bed & Breakfast,Connolly & Callaghan Limited,497.00, 17-Dec-2019
1073,Revenue,CAHD,Bed and Breakfast,Bed & Breakfast,Connolly & Callaghan Limited,581.00, 17-Dec-2019
1074,Revenue,CAHD,Bed and Breakfast,Bed & Breakfast,Connolly & Callaghan Limited,497.00, 18-Dec-2019
1075,Revenue,CAHD,Bed and Breakfast,Bed & Breakfast,Connolly & Callaghan Limited,420.00, 17-Dec-2019
1076,Revenue,CAHD,Bed and Breakfast,Bed & Breakfast,Connolly & Callaghan Limited,490.00, 13-Dec-2019
1077,Revenue,CAHD,Bed and Breakfast,Bed & Breakfast,Connolly & Callaghan Limited,910.00, 13-Dec-2019
1078,Revenue,CAHD,Bed and Breakfast,Bed & Breakfast,Connolly & Callaghan Limited,539.00, 13-Dec-2019
1079,Revenue,CAHD,Bed and Breakfast,Bed & Breakfast,Connolly & Callaghan Limited,504.00, 13-Dec-2019
1080,Revenue,CAHD,Bed and Breakfast,Bed & Breakfast,Connolly & Callaghan Limited,714.00, 13-Dec-2019
1081,Revenue,CAHD,Bed and Breakfast,Bed & Breakfast,Connolly & Callaghan Limited,490.00, 13-Dec-2019
1082,Revenue,CAHD,Bed and Breakfast,Bed & Breakfast,Connolly & Callaghan Limited,497.00, 20-Dec-2019
1083,Revenue,CAHD,Bed and Breakfast,Bed & Breakfast,Connolly & Callaghan Limited,581.00, 19-Dec-2019
1084,Revenue,CAHD,Bed and Breakfast,Bed & Breakfast,Connolly & Callaghan Limited,497.00, 13-Dec-2019
1085,Revenue,CAHD,Bed and Breakfast,Bed & Breakfast,Connolly & Callaghan Limited,420.00, 19-Dec-2019
1086,Revenue,CAHD,Bed and Breakfast,Bed & Breakfast,Connolly & Callaghan Limited,490.00, 30-Dec-2019
1087,Revenue,CAHD,Bed and Breakfast,Bed & Breakfast,Connolly & Callaghan Limited,910.00, 20-Dec-2019
1088,Revenue,CAHD,Bed and Breakfast,Bed & Breakfast,Connolly & Callaghan Limited,539.00, 20-Dec-2019
1089,Revenue,CAHD,Bed and Breakfast,Bed & Breakfast,Connolly & Callaghan Limited,455.00, 20-Dec-2019
1090,Revenue,CAHD,Bed and Breakfast,Bed & Breakfast,Connolly & Callaghan Limited,504.00, 20-Dec-2019
1091,Revenue,CAHD,Bed and Breakfast,Bed & Breakfast,Connolly & Callaghan Limited,714.00, 30-Dec-2019
1092,Revenue,CAHD,Bed and Breakfast,Bed & Breakfast,Connolly & Callaghan Limited,490.00, 20-Dec-2019
1093,Revenue,CAHD,Bed and Breakfast,Bed & Breakfast,Connolly & Callaghan Limited,497.00, 20-Dec-2019
1094,Revenue,CAHD,Bed and Breakfast,Bed & Breakfast,Connolly & Callaghan Limited,581.00, 27-Dec-2019
1095,Revenue,CAHD,Bed and Breakfast,Bed & Breakfast,Connolly & Callaghan Limited,497.00, 20-Dec-2019
1096,Revenue,CAHD,Bed and Breakfast,Bed & Breakfast,Connolly & Callaghan Limited,420.00, 20-Dec-2019
1097,Revenue,CAHD,Bed and Breakfast,Bed & Breakfast,Connolly & Callaghan Limited,490.00, 27-Dec-2019
1098,Revenue,CAHD,Bed and Breakfast,Bed & Breakfast,Connolly & Callaghan Limited,910.00, 27-Dec-2019
1099,Revenue,CAHD,Bed and Breakfast,Bed & Breakfast,Connolly & Callaghan Limited,539.00, 27-Dec-2019
1100,Revenue,CAHD,Bed and Breakfast,Bed & Breakfast,Connolly & Callaghan Limited,455.00, 27-Dec-2019
1101,Revenue,CAHD,Bed and Breakfast,Bed & Breakfast,Connolly & Callaghan Limited,504.00, 30-Dec-2019
1102,Revenue,CAHD,Bed and Breakfast,Bed & Breakfast,Connolly & Callaghan Limited,714.00, 27-Dec-2019
1103,Revenue,CAHD,Bed and Breakfast,Bed & Breakfast,Connolly & Callaghan Limited,490.00, 27-Dec-2019
1104,Revenue,CAHD,Bed and Breakfast,Bed & Breakfast,Connolly & Callaghan Limited,497.00, 30-Dec-2019
1105,Revenue,CAHD,Bed and Breakfast,Bed & Breakfast,Connolly & Callaghan Limited,581.00, 30-Dec-2019
1106,Revenue,CAHD,Bed and Breakfast,Bed & Breakfast,Connolly & Callaghan Limited,497.00, 27-Dec-2019
1107,Revenue,CAHD,Bed and Breakfast,Bed & Breakfast,Connolly & Callaghan Limited,420.00, 27-Dec-2019
1108,Revenue,CAHD,CSC - Vinney Green Secure Unit,Service Contracts (Premises),Cool-Rite Limited,697.00, 24-Dec-2019
1109,Revenue,CAHD,Independent Special Placements - Pre 16,Other Private Contractors,Cotswold Chine School,25223.25, 12-Dec-2019
1110,Revenue,CAHD,Independent Special Placements - Pre 16,Other Private Contractors,Cotswold Chine School,25223.25, 12-Dec-2019
1111,Revenue,CAHD,S28A cases,Permanent Residential,Creedy Court,10597.96, 17-Dec-2019
1112,Revenue,CAHD,S28A cases,Permanent Residential,Creedy Court,8904.92, 17-Dec-2019
1113,Revenue,CAHD,North - bed purchasing and direct  payments,Permanent Residential,Creedy Court,14054.00, 17-Dec-2019
1114,Revenue,CAHD,CSC - Vinney Green Secure Unit,Operational Equipment,CRT View Point,1906.00, 16-Dec-2019
1115,Revenue,CAHD,Training Budget - Children`s Social Serv,Training Expenses,Cruidin Training and Consultancy Ltd,1054.79, 03-Dec-2019
1116,Revenue,CAHD,Telecare,Other Supplies & Services,CSL Dualcom,468.00, 09-Dec-2019
1117,Revenue,CAHD,Discretionary Housing Payment,Other Supplies & Services,Curo Housing Group,1249.55, 03-Dec-2019
1118,Revenue,CAHD,South - bed purchasing and direct  payments,Permanent Residential,Daneswood,12268.80, 17-Dec-2019
1119,Revenue,CAHD,South - Commissioned Services,Day Care / Social Activities,Daneswood,1413.28, 17-Dec-2019
1120,Revenue,CAHD,North - bed purchasing and direct  payments,Permanent Residential,Daneswood,10264.00, 17-Dec-2019
1121,Revenue,CAHD,North - S117,Permanent Nursing,Danshell Healthcare Group,10872.28, 17-Dec-2019
1122,Revenue,CAHD,Jointly Funded H&SC Packages,Permanent Nursing,Danshell Healthcare Group,1613.28, 17-Dec-2019
1123,Revenue,CAHD,Learning Difficulties PSL,Other Supplies & Services,Individual,2400.00, 20-Dec-2019
1124,Revenue,CAHD,Children Centres - North Locality,Printing & Stationery,De Lage Landen Leasing Ltd,2234.45, 04-Dec-2019
1125,Revenue,CAHD,South - Commissioned Services,Supported Living,Design House,2661.20, 17-Dec-2019
1126,Revenue,CAHD,South - Commissioned Services,Supported Living,Design House,3063.00, 17-Dec-2019
1127,Revenue,CAHD,South - Commissioned Services,Supported Living,Design House,3132.76, 17-Dec-2019
1128,Revenue,CAHD,South - Commissioned Services,Supported Living,Design House,2993.28, 17-Dec-2019
1129,Revenue,CAHD,South - Commissioned Services,Day Care / Social Activities,Design House,516.32, 17-Dec-2019
1130,Revenue,CAHD,South - Commissioned Services,Day Care / Social Activities,Design House,1183.20, 17-Dec-2019
1131,Revenue,CAHD,Central - Commissioned Services,Day Care / Social Activities,Design House,2440.84, 17-Dec-2019
1132,Revenue,CAHD,South - Commissioned Services,Day Care / Social Activities,Design House,921.28, 17-Dec-2019
1133,Revenue,CAHD,South - Commissioned Services,Supported Living,Design House,2638.60, 17-Dec-2019
1134,Revenue,CAHD,South - Commissioned Services,Supported Living,Design House,2638.60, 17-Dec-2019
1135,Revenue,CAHD,South - Commissioned Services,Supported Living,Design House,2149.32, 17-Dec-2019
1136,Revenue,CAHD,South - Commissioned Services,Day Care / Social Activities,Design House,516.32, 17-Dec-2019
1137,Revenue,CAHD,South - Commissioned Services,Supported Living,Design House,1896.52, 17-Dec-2019
1138,Revenue,CAHD,South - Commissioned Services,Supported Living,Design House,2516.60, 17-Dec-2019
1139,Revenue,CAHD,South - Commissioned Services,Supported Living,Design House,4307.12, 17-Dec-2019
1140,Revenue,CAHD,North - Community based support,Supported Living,Design House,3054.24, 17-Dec-2019
1141,Revenue,CAHD,South - Commissioned Services,Day Care / Social Activities,Design House,1505.96, 17-Dec-2019
1142,Revenue,CAHD,South - Commissioned Services,Supported Living,Design House,2924.68, 17-Dec-2019
1143,Revenue,CAHD,South - Commissioned Services,Supported Living,Design House,2542.80, 17-Dec-2019
1144,Revenue,CAHD,South - Commissioned Services,Supported Living,Design House,2257.48, 17-Dec-2019
1145,Revenue,CAHD,South - Commissioned Services,Supported Living,Design House,2257.48, 17-Dec-2019
1146,Revenue,CAHD,Central - Commissioned Services,Other Small Contracts,Dhek Bhal,42.16, 27-Dec-2019
1147,Revenue,CAHD,South - Commissioned Services,Other Small Contracts,Dhek Bhal,490.46, 27-Dec-2019
1148,Revenue,CAHD,18-25 Social Care 18-25 Support Team,Operational Equipment,Digital hearing Care,2824.17, 10-Dec-2019
1149,Revenue,CAHD,South - bed purchasing and direct  payments,Permanent Residential,Dimensions  Suite 2,5630.76, 17-Dec-2019
1150,Revenue,CAHD,South - bed purchasing and direct  payments,Permanent Residential,Dimensions  Suite 2,2806.12, 17-Dec-2019
1151,Revenue,CAHD,CSC - Vinney Green Secure Unit,Training Expenses,Dods Parliamentary Communications Limited,470.00, 10-Dec-2019
1152,Revenue,CAHD,Personnel Costs,Legal Fees,Douglas Leach,22000.00, 30-Dec-2019
1153,Revenue,CAHD,Statemented Support Academies,Other Public Bodies,Downend School,978.57, 02-Dec-2019
1154,Revenue,CAHD,Statemented Support Academies,Other Public Bodies,Downend School,978.57, 23-Dec-2019
1155,Revenue,CAHD,Statemented Support Academies,Other Public Bodies,Downend School,660.24, 02-Dec-2019
1156,Revenue,CAHD,Statemented Support Academies,Other Public Bodies,Downend School,660.24, 23-Dec-2019
1157,Revenue,CAHD,Statemented Support Academies,Other Public Bodies,Downend School,1025.73, 02-Dec-2019
1158,Revenue,CAHD,Statemented Support Academies,Other Public Bodies,Downend School,1025.73, 23-Dec-2019
1159,Revenue,CAHD,Statemented Support Academies,Other Public Bodies,Downend School,1013.94, 02-Dec-2019
1160,Revenue,CAHD,Statemented Support Academies,Other Public Bodies,Downend School,1013.94, 23-Dec-2019
1161,Revenue,CAHD,Statemented Support Academies,Other Public Bodies,Downend School,801.72, 02-Dec-2019
1162,Revenue,CAHD,Statemented Support Academies,Other Public Bodies,Downend School,801.72, 23-Dec-2019
1163,Revenue,CAHD,Statemented Support Academies,Other Public Bodies,Downend School,530.55, 02-Dec-2019
1164,Revenue,CAHD,Statemented Support Academies,Other Public Bodies,Downend School,530.55, 23-Dec-2019
1165,Revenue,CAHD,Statemented Support Academies,Other Public Bodies,Downend School,1108.26, 02-Dec-2019
1166,Revenue,CAHD,Statemented Support Academies,Other Public Bodies,Downend School,1108.26, 23-Dec-2019
1167,Revenue,CAHD,Statemented Support Academies,Other Public Bodies,Downend School,554.13, 02-Dec-2019
1168,Revenue,CAHD,Statemented Support Academies,Other Public Bodies,Downend School,554.13, 23-Dec-2019
1169,Revenue,CAHD,Statemented Support Academies,Other Public Bodies,Downend School,1438.38, 02-Dec-2019
1170,Revenue,CAHD,Statemented Support Academies,Other Public Bodies,Downend School,1438.38, 23-Dec-2019
1171,Revenue,CAHD,Statemented Support Academies,Other Public Bodies,Downend School,1709.55, 02-Dec-2019
1172,Revenue,CAHD,Statemented Support Academies,Other Public Bodies,Downend School,1709.55, 23-Dec-2019
1173,Revenue,CAHD,Statemented Support Academies,Other Public Bodies,Downend School,1544.49, 02-Dec-2019
1174,Revenue,CAHD,Statemented Support Academies,Other Public Bodies,Downend School,1544.49, 23-Dec-2019
1175,Revenue,CAHD,Social Lettings Agency,Other Supplies & Services,Individual,605.64, 24-Dec-2019
1176,Revenue,CAHD,Central - Bed Purchasing and Direct Payments,Fees & Charges Income - General,Drakes Court,1187.34, 17-Dec-2019
1177,Revenue,CAHD,Central - Bed Purchasing and Direct Payments,Permanent Nursing,Drakes Court,3242.12, 17-Dec-2019
1178,Revenue,CAHD,Central - Bed Purchasing and Direct Payments,Permanent Nursing,Drakes Court,2663.17, 17-Dec-2019
1179,Revenue,CAHD,Central - Bed Purchasing and Direct Payments,Permanent Nursing,Drakes Court,1042.11, 17-Dec-2019
1180,Revenue,CAHD,Schools Specific Grant Income,Other Public Bodies,Durham School,630.00, 03-Dec-2019
1181,Revenue,CAHD,CSC - Residential Placements,Permanent Residential,East Sussex County Council,30535.00, 05-Dec-2019
1182,Revenue,CAHD,Minor Adaptations Service,Operational Equipment,Eastman & Co (Timber) Limited,861.00, 13-Dec-2019
1183,Revenue,CAHD,Future Bright,Fees - General,e-Careers Limited,832.50, 23-Dec-2019
1184,Revenue,CAHD,South - bed purchasing and direct  payments,Permanent Residential,Edgemont House Ltd,3200.00, 17-Dec-2019
1185,Revenue,CAHD,South - bed purchasing and direct  payments,Permanent Residential,Edgemont House Ltd,2826.24, 17-Dec-2019
1186,Revenue,CAHD,South - bed purchasing and direct  payments,Permanent Residential,Edgemont House Ltd,2022.76, 17-Dec-2019
1187,Revenue,CAHD,South Glos Users in South Glos Homes,Permanent Nursing,Edgemont View Ltd,662.24, 17-Dec-2019
1188,Revenue,CAHD,South Glos Users in South Glos Homes,Permanent Nursing,Edgemont View Ltd,3926.14, 17-Dec-2019
1189,Revenue,CAHD,South - bed purchasing and direct  payments,Permanent Nursing,Edgemont View Ltd,3584.00, 17-Dec-2019
1190,Revenue,CAHD,South Glos Users in South Glos Homes,Permanent Nursing,Edgemont View Ltd,662.24, 17-Dec-2019
1191,Revenue,CAHD,South - bed purchasing and direct  payments,Permanent Nursing,Edgemont View Ltd,3400.00, 17-Dec-2019
1192,Revenue,CAHD,South - bed purchasing and direct  payments,Permanent Nursing,Edgemont View Ltd,1457.14, 17-Dec-2019
1193,Revenue,CAHD,South Glos Users in South Glos Homes,Permanent Nursing,Edgemont View Ltd,662.24, 17-Dec-2019
1194,Revenue,CAHD,South - bed purchasing and direct  payments,Permanent Nursing,Edgemont View Ltd,2560.00, 17-Dec-2019
1195,Revenue,CAHD,South Glos Users in South Glos Homes,Permanent Nursing,Edgemont View Ltd,662.24, 17-Dec-2019
1196,Revenue,CAHD,South - bed purchasing and direct  payments,Permanent Nursing,Edgemont View Ltd,4129.44, 17-Dec-2019
1197,Revenue,CAHD,South Glos Users in South Glos Homes,Permanent Nursing,Edgemont View Ltd,662.24, 17-Dec-2019
1198,Revenue,CAHD,South Glos Users in South Glos Homes,Permanent Nursing,Edgemont View Ltd,662.24, 17-Dec-2019
1199,Revenue,CAHD,South Glos Users in South Glos Homes,Permanent Nursing,Edgemont View Ltd,662.24, 17-Dec-2019
1200,Revenue,CAHD,South Glos Users in South Glos Homes,Permanent Nursing,Edgemont View Ltd,662.24, 17-Dec-2019
1201,Revenue,CAHD,South Glos Users in South Glos Homes,Permanent Nursing,Edgemont View Ltd,662.24, 17-Dec-2019
1202,Revenue,CAHD,South - bed purchasing and direct  payments,Permanent Nursing,Edgemont View Ltd,3005.16, 17-Dec-2019
1203,Revenue,CAHD,South Glos Users in South Glos Homes,Permanent Nursing,Edgemont View Ltd,662.24, 17-Dec-2019
1204,Revenue,CAHD,South Glos Users in South Glos Homes,Permanent Nursing,Edgemont View Ltd,662.24, 17-Dec-2019
1205,Revenue,CAHD,South Glos Users in South Glos Homes,Permanent Nursing,Edgemont View Ltd,662.24, 17-Dec-2019
1206,Revenue,CAHD,South - bed purchasing and direct  payments,Respite Emergency - Residential,Edgemont View Ltd,6192.86, 17-Dec-2019
1207,Revenue,CAHD,South Glos Users in South Glos Homes,Permanent Nursing,Edgemont View Ltd,1206.22, 17-Dec-2019
1208,Revenue,CAHD,South Glos Users in South Glos Homes,Permanent Nursing,Edgemont View Ltd,3902.49, 17-Dec-2019
1209,Revenue,CAHD,South - bed purchasing and direct  payments,Respite Emergency - Residential,Edgemont View Ltd,1875.00, 17-Dec-2019
1210,Revenue,CAHD,South Glos Users in South Glos Homes,Permanent Nursing,Edgemont View Ltd,662.24, 17-Dec-2019
1211,Revenue,CAHD,South Glos Users in South Glos Homes,Permanent Nursing,Edgemont View Ltd,662.24, 17-Dec-2019
1212,Revenue,CAHD,South Glos Users in South Glos Homes,Permanent Nursing,Edgemont View Ltd,662.24, 17-Dec-2019
1213,Revenue,CAHD,South - bed purchasing and direct  payments,Permanent Nursing,Edgemont View Ltd,3584.00, 17-Dec-2019
1214,Revenue,CAHD,South Glos Users in South Glos Homes,Permanent Nursing,Edgemont View Ltd,662.24, 17-Dec-2019
1215,Revenue,CAHD,South - bed purchasing and direct  payments,Permanent Nursing,Edgemont View Ltd,3400.00, 17-Dec-2019
1216,Revenue,CAHD,South Glos Users in South Glos Homes,Permanent Nursing,Edgemont View Ltd,662.24, 17-Dec-2019
1217,Revenue,CAHD,Planning and Partnerships Procurement,Other Supplies & Services,Eldercare,2814.00, 30-Dec-2019
1218,Revenue,CAHD,Planning and Partnerships Procurement,Other Supplies & Services,Eldercare,2629.10, 30-Dec-2019
1219,Revenue,CAHD,Supporting People Programme,Grants to Voluntary Bodies,Elim Housing Association Limited,5372.63, 30-Dec-2019
1220,Revenue,CAHD,Pathway 1 - Re-Ablement Home Care,Other Small Contracts,Elite Home Care Ltd,912.64, 05-Dec-2019
1221,Revenue,CAHD,Pathway 1 - Re-Ablement Home Care,Other Small Contracts,Elite Home Care Ltd,1507.84, 24-Dec-2019
1222,Revenue,CAHD,South - Commissioned Services,Day Care / Social Activities,Elite Home Care Ltd,213.28, 02-Dec-2019
1223,Revenue,CAHD,South - Commissioned Services,Other Small Contracts,Elite Home Care Ltd,8347.27, 02-Dec-2019
1224,Revenue,CAHD,North - Community based support,Other Small Contracts,Elite Home Care Ltd,436.48, 02-Dec-2019
1225,Revenue,CAHD,South - Commissioned Services,Day Care / Social Activities,Elite Home Care Ltd,198.40, 11-Dec-2019
1226,Revenue,CAHD,South - Commissioned Services,Other Small Contracts,Elite Home Care Ltd,8263.69, 11-Dec-2019
1227,Revenue,CAHD,North - Community based support,Other Small Contracts,Elite Home Care Ltd,421.60, 11-Dec-2019
1228,Revenue,CAHD,South - Commissioned Services,Day Care / Social Activities,Elite Home Care Ltd,198.40, 16-Dec-2019
1229,Revenue,CAHD,South - Commissioned Services,Other Small Contracts,Elite Home Care Ltd,8145.22, 16-Dec-2019
1230,Revenue,CAHD,North - Community based support,Other Small Contracts,Elite Home Care Ltd,421.60, 16-Dec-2019
1231,Revenue,CAHD,South - Commissioned Services,Day Care / Social Activities,Elite Home Care Ltd,188.48, 16-Dec-2019
1232,Revenue,CAHD,South - Commissioned Services,Other Small Contracts,Elite Home Care Ltd,7778.75, 16-Dec-2019
1233,Revenue,CAHD,North - Community based support,Other Small Contracts,Elite Home Care Ltd,441.44, 16-Dec-2019
1234,Revenue,CAHD,South - Commissioned Services,Day Care / Social Activities,Elite Home Care Ltd,198.40, 24-Dec-2019
1235,Revenue,CAHD,South - Commissioned Services,Other Small Contracts,Elite Home Care Ltd,7722.08, 24-Dec-2019
1236,Revenue,CAHD,North - Community based support,Other Small Contracts,Elite Home Care Ltd,441.44, 24-Dec-2019
1237,Revenue,CAHD,Special ISB,Other Public Bodies,Enable Trust,646.93, 24-Dec-2019
1238,Revenue,CAHD,Special ISB,Other Public Bodies,Enable Trust,1172.69, 24-Dec-2019
1239,Revenue,CAHD,Special ISB,Other Public Bodies,Enable Trust,1698.31, 24-Dec-2019
1240,Revenue,CAHD,Special ISB,Other Public Bodies,Enable Trust,1172.69, 24-Dec-2019
1241,Revenue,CAHD,Special ISB,Other Public Bodies,Enable Trust,1172.69, 24-Dec-2019
1242,Revenue,CAHD,Special ISB,Other Public Bodies,Enable Trust,1536.63, 24-Dec-2019
1243,Revenue,CAHD,Special ISB,Other Public Bodies,Enable Trust,1536.63, 24-Dec-2019
1244,Revenue,CAHD,Special ISB,Other Public Bodies,Enable Trust,1536.63, 24-Dec-2019
1245,Revenue,CAHD,Special ISB,Other Public Bodies,Enable Trust,889.61, 24-Dec-2019
1246,Revenue,CAHD,Special ISB,Other Public Bodies,Enable Trust,889.61, 24-Dec-2019
1247,Revenue,CAHD,Special ISB,Other Public Bodies,Enable Trust,1172.69, 24-Dec-2019
1248,Revenue,CAHD,Special ISB,Other Public Bodies,Enable Trust,1536.63, 24-Dec-2019
1249,Revenue,CAHD,Special ISB,Other Public Bodies,Enable Trust,1172.69, 24-Dec-2019
1250,Revenue,CAHD,Special ISB,Other Public Bodies,Enable Trust,1172.69, 24-Dec-2019
1251,Revenue,CAHD,Special ISB,Other Public Bodies,Enable Trust,1172.69, 24-Dec-2019
1252,Revenue,CAHD,Special ISB,Other Public Bodies,Enable Trust,1536.63, 24-Dec-2019
1253,Revenue,CAHD,Special ISB,Other Public Bodies,Enable Trust,1172.69, 24-Dec-2019
1254,Revenue,CAHD,Special ISB,Other Public Bodies,Enable Trust,1172.69, 24-Dec-2019
1255,Revenue,CAHD,Special ISB,Other Public Bodies,Enable Trust,2183.55, 24-Dec-2019
1256,Revenue,CAHD,Special ISB,Other Public Bodies,Enable Trust,889.61, 24-Dec-2019
1257,Revenue,CAHD,Special ISB,Other Public Bodies,Enable Trust,1172.69, 24-Dec-2019
1258,Revenue,CAHD,Special ISB,Other Public Bodies,Enable Trust,1172.69, 24-Dec-2019
1259,Revenue,CAHD,Special ISB,Other Public Bodies,Enable Trust,1172.69, 24-Dec-2019
1260,Revenue,CAHD,Special ISB,Other Public Bodies,Enable Trust,1172.69, 24-Dec-2019
1261,Revenue,CAHD,Special ISB,Other Public Bodies,Enable Trust,1536.63, 24-Dec-2019
1262,Revenue,CAHD,Special ISB,Other Public Bodies,Enable Trust,889.61, 24-Dec-2019
1263,Revenue,CAHD,Special ISB,Other Public Bodies,Enable Trust,2183.55, 24-Dec-2019
1264,Revenue,CAHD,Special ISB,Other Public Bodies,Enable Trust,1536.63, 24-Dec-2019
1265,Revenue,CAHD,Special ISB,Other Public Bodies,Enable Trust,2183.55, 24-Dec-2019
1266,Revenue,CAHD,Special ISB,Other Public Bodies,Enable Trust,1172.69, 24-Dec-2019
1267,Revenue,CAHD,Special ISB,Other Public Bodies,Enable Trust,1536.63, 24-Dec-2019
1268,Revenue,CAHD,Special ISB,Other Public Bodies,Enable Trust,1536.63, 24-Dec-2019
1269,Revenue,CAHD,Special ISB,Other Public Bodies,Enable Trust,1172.69, 24-Dec-2019
1270,Revenue,CAHD,Special ISB,Other Public Bodies,Enable Trust,1172.69, 24-Dec-2019
1271,Revenue,CAHD,Special ISB,Other Public Bodies,Enable Trust,1172.69, 24-Dec-2019
1272,Revenue,CAHD,Special ISB,Other Public Bodies,Enable Trust,1172.69, 24-Dec-2019
1273,Revenue,CAHD,Special ISB,Other Public Bodies,Enable Trust,1172.69, 24-Dec-2019
1274,Revenue,CAHD,Special ISB,Other Public Bodies,Enable Trust,1172.69, 24-Dec-2019
1275,Revenue,CAHD,Special ISB,Other Public Bodies,Enable Trust,889.61, 24-Dec-2019
1276,Revenue,CAHD,Special ISB,Other Public Bodies,Enable Trust,1536.63, 24-Dec-2019
1277,Revenue,CAHD,Special ISB,Other Public Bodies,Enable Trust,1172.69, 24-Dec-2019
1278,Revenue,CAHD,Special ISB,Other Public Bodies,Enable Trust,889.61, 24-Dec-2019
1279,Revenue,CAHD,Special ISB,Other Public Bodies,Enable Trust,1536.63, 24-Dec-2019
1280,Revenue,CAHD,Special ISB,Other Public Bodies,Enable Trust,889.61, 24-Dec-2019
1281,Revenue,CAHD,Special ISB,Other Public Bodies,Enable Trust,1536.63, 24-Dec-2019
1282,Revenue,CAHD,Special ISB,Other Public Bodies,Enable Trust,889.61, 24-Dec-2019
1283,Revenue,CAHD,Special ISB,Other Public Bodies,Enable Trust,1172.69, 24-Dec-2019
1284,Revenue,CAHD,Special ISB,Other Public Bodies,Enable Trust,646.93, 24-Dec-2019
1285,Revenue,CAHD,Special ISB,Other Public Bodies,Enable Trust,889.61, 24-Dec-2019
1286,Revenue,CAHD,Special ISB,Other Public Bodies,Enable Trust,1172.69, 24-Dec-2019
1287,Revenue,CAHD,Special ISB,Other Public Bodies,Enable Trust,1172.69, 24-Dec-2019
1288,Revenue,CAHD,Special ISB,Other Public Bodies,Enable Trust,1536.63, 24-Dec-2019
1289,Revenue,CAHD,Special ISB,Other Public Bodies,Enable Trust,1172.69, 24-Dec-2019
1290,Revenue,CAHD,Special ISB,Other Public Bodies,Enable Trust,1536.63, 24-Dec-2019
1291,Revenue,CAHD,Special ISB,Other Public Bodies,Enable Trust,1536.63, 24-Dec-2019
1292,Revenue,CAHD,Special ISB,Other Public Bodies,Enable Trust,1536.63, 24-Dec-2019
1293,Revenue,CAHD,Special ISB,Other Public Bodies,Enable Trust,1536.63, 24-Dec-2019
1294,Revenue,CAHD,Special ISB,Other Public Bodies,Enable Trust,889.61, 24-Dec-2019
1295,Revenue,CAHD,Special ISB,Other Public Bodies,Enable Trust,1172.69, 24-Dec-2019
1296,Revenue,CAHD,Special ISB,Other Public Bodies,Enable Trust,1172.69, 24-Dec-2019
1297,Revenue,CAHD,Special ISB,Other Public Bodies,Enable Trust,889.61, 24-Dec-2019
1298,Revenue,CAHD,Special ISB,Other Public Bodies,Enable Trust,1172.69, 24-Dec-2019
1299,Revenue,CAHD,Special ISB,Other Public Bodies,Enable Trust,1172.69, 24-Dec-2019
1300,Revenue,CAHD,Special ISB,Other Public Bodies,Enable Trust,1536.63, 24-Dec-2019
1301,Revenue,CAHD,Special ISB,Other Public Bodies,Enable Trust,1172.69, 24-Dec-2019
1302,Revenue,CAHD,Special ISB,Other Public Bodies,Enable Trust,1172.69, 24-Dec-2019
1303,Revenue,CAHD,Special ISB,Other Public Bodies,Enable Trust,1172.69, 24-Dec-2019
1304,Revenue,CAHD,Special ISB,Other Public Bodies,Enable Trust,889.61, 24-Dec-2019
1305,Revenue,CAHD,Special ISB,Other Public Bodies,Enable Trust,1536.63, 24-Dec-2019
1306,Revenue,CAHD,Special ISB,Other Public Bodies,Enable Trust,889.61, 24-Dec-2019
1307,Revenue,CAHD,Special ISB,Other Public Bodies,Enable Trust,1172.69, 24-Dec-2019
1308,Revenue,CAHD,Special ISB,Other Public Bodies,Enable Trust,1172.69, 24-Dec-2019
1309,Revenue,CAHD,Special ISB,Other Public Bodies,Enable Trust,1172.69, 24-Dec-2019
1310,Revenue,CAHD,Special ISB,Other Public Bodies,Enable Trust,1172.69, 24-Dec-2019
1311,Revenue,CAHD,Special ISB,Other Public Bodies,Enable Trust,889.61, 24-Dec-2019
1312,Revenue,CAHD,Special ISB,Other Public Bodies,Enable Trust,2183.55, 24-Dec-2019
1313,Revenue,CAHD,Special ISB,Other Public Bodies,Enable Trust,1172.69, 24-Dec-2019
1314,Revenue,CAHD,Special ISB,Other Public Bodies,Enable Trust,1172.69, 24-Dec-2019
1315,Revenue,CAHD,Special ISB,Other Public Bodies,Enable Trust,1172.69, 24-Dec-2019
1316,Revenue,CAHD,Special ISB,Other Public Bodies,Enable Trust,1698.31, 24-Dec-2019
1317,Revenue,CAHD,Special ISB,Other Public Bodies,Enable Trust,889.61, 24-Dec-2019
1318,Revenue,CAHD,Special ISB,Other Public Bodies,Enable Trust,889.61, 24-Dec-2019
1319,Revenue,CAHD,Special ISB,Other Public Bodies,Enable Trust,889.61, 24-Dec-2019
1320,Revenue,CAHD,Special ISB,Other Public Bodies,Enable Trust,1698.31, 24-Dec-2019
1321,Revenue,CAHD,Special ISB,Other Public Bodies,Enable Trust,889.61, 24-Dec-2019
1322,Revenue,CAHD,Special ISB,Other Public Bodies,Enable Trust,889.61, 24-Dec-2019
1323,Revenue,CAHD,Special ISB,Other Public Bodies,Enable Trust,1504.21, 24-Dec-2019
1324,Revenue,CAHD,Special ISB,Other Public Bodies,Enable Trust,1172.69, 24-Dec-2019
1325,Revenue,CAHD,Special ISB,Other Public Bodies,Enable Trust,1172.69, 24-Dec-2019
1326,Revenue,CAHD,Special ISB,Other Public Bodies,Enable Trust,1172.69, 24-Dec-2019
1327,Revenue,CAHD,Special ISB,Other Public Bodies,Enable Trust,1698.31, 24-Dec-2019
1328,Revenue,CAHD,Special ISB,Other Public Bodies,Enable Trust,1172.69, 24-Dec-2019
1329,Revenue,CAHD,Special ISB,Other Public Bodies,Enable Trust,889.61, 24-Dec-2019
1330,Revenue,CAHD,Special ISB,Other Public Bodies,Enable Trust,2183.55, 24-Dec-2019
1331,Revenue,CAHD,Special ISB,Other Public Bodies,Enable Trust,1172.69, 24-Dec-2019
1332,Revenue,CAHD,Special ISB,Other Public Bodies,Enable Trust,1010.95, 24-Dec-2019
1333,Revenue,CAHD,Special ISB,Other Public Bodies,Enable Trust,1172.69, 24-Dec-2019
1334,Revenue,CAHD,Special ISB,Other Public Bodies,Enable Trust,646.93, 24-Dec-2019
1335,Revenue,CAHD,Special ISB,Other Public Bodies,Enable Trust,1698.31, 24-Dec-2019
1336,Revenue,CAHD,Special ISB,Other Public Bodies,Enable Trust,1172.69, 24-Dec-2019
1337,Revenue,CAHD,Special ISB,Other Public Bodies,Enable Trust,1536.63, 24-Dec-2019
1338,Revenue,CAHD,Special ISB,Other Public Bodies,Enable Trust,646.93, 24-Dec-2019
1339,Revenue,CAHD,Special ISB,Other Public Bodies,Enable Trust,889.61, 24-Dec-2019
1340,Revenue,CAHD,Special ISB,Other Public Bodies,Enable Trust,1698.31, 24-Dec-2019
1341,Revenue,CAHD,Special ISB,Other Public Bodies,Enable Trust,1698.31, 24-Dec-2019
1342,Revenue,CAHD,Special ISB,Other Public Bodies,Enable Trust,889.61, 24-Dec-2019
1343,Revenue,CAHD,Special ISB,Other Public Bodies,Enable Trust,1536.63, 24-Dec-2019
1344,Revenue,CAHD,Special ISB,Other Public Bodies,Enable Trust,1172.69, 24-Dec-2019
1345,Revenue,CAHD,Special ISB,Other Public Bodies,Enable Trust,1172.69, 24-Dec-2019
1346,Revenue,CAHD,Special ISB,Other Public Bodies,Enable Trust,1172.69, 24-Dec-2019
1347,Revenue,CAHD,Special ISB,Other Public Bodies,Enable Trust,1698.31, 24-Dec-2019
1348,Revenue,CAHD,Special ISB,Other Public Bodies,Enable Trust,1172.69, 24-Dec-2019
1349,Revenue,CAHD,Special ISB,Other Public Bodies,Enable Trust,2183.55, 24-Dec-2019
1350,Revenue,CAHD,Special ISB,Other Public Bodies,Enable Trust,1698.31, 24-Dec-2019
1351,Revenue,CAHD,Special ISB,Other Public Bodies,Enable Trust,889.61, 24-Dec-2019
1352,Revenue,CAHD,Special ISB,Other Public Bodies,Enable Trust,889.61, 24-Dec-2019
1353,Revenue,CAHD,Special ISB,Other Public Bodies,Enable Trust,889.61, 24-Dec-2019
1354,Revenue,CAHD,Special ISB,Other Public Bodies,Enable Trust,1172.69, 24-Dec-2019
1355,Revenue,CAHD,Special ISB,Other Public Bodies,Enable Trust,1172.69, 24-Dec-2019
1356,Revenue,CAHD,Special ISB,Other Public Bodies,Enable Trust,1172.69, 24-Dec-2019
1357,Revenue,CAHD,Special ISB,Other Public Bodies,Enable Trust,889.61, 24-Dec-2019
1358,Revenue,CAHD,Special ISB,Other Public Bodies,Enable Trust,889.61, 24-Dec-2019
1359,Revenue,CAHD,Special ISB,Other Public Bodies,Enable Trust,1698.31, 24-Dec-2019
1360,Revenue,CAHD,Special ISB,Other Public Bodies,Enable Trust,1698.31, 24-Dec-2019
1361,Revenue,CAHD,Special ISB,Other Public Bodies,Enable Trust,1698.31, 24-Dec-2019
1362,Revenue,CAHD,Special ISB,Other Public Bodies,Enable Trust,1698.31, 24-Dec-2019
1363,Revenue,CAHD,Special ISB,Other Public Bodies,Enable Trust,889.61, 24-Dec-2019
1364,Revenue,CAHD,Special ISB,Other Public Bodies,Enable Trust,1172.69, 24-Dec-2019
1365,Revenue,CAHD,Special ISB,Other Public Bodies,Enable Trust,1698.31, 24-Dec-2019
1366,Revenue,CAHD,Special ISB,Other Public Bodies,Enable Trust,2507.01, 24-Dec-2019
1367,Revenue,CAHD,Special ISB,Other Public Bodies,Enable Trust,1698.31, 24-Dec-2019
1368,Revenue,CAHD,Special ISB,Other Public Bodies,Enable Trust,1698.31, 24-Dec-2019
1369,Revenue,CAHD,Special ISB,Other Public Bodies,Enable Trust,1172.69, 24-Dec-2019
1370,Revenue,CAHD,Special ISB,Other Public Bodies,Enable Trust,1698.31, 24-Dec-2019
1371,Revenue,CAHD,Special ISB,Other Public Bodies,Enable Trust,889.61, 24-Dec-2019
1372,Revenue,CAHD,Special ISB,Other Public Bodies,Enable Trust,889.61, 24-Dec-2019
1373,Revenue,CAHD,Special ISB,Other Public Bodies,Enable Trust,1172.69, 24-Dec-2019
1374,Revenue,CAHD,Special ISB,Other Public Bodies,Enable Trust,2183.55, 24-Dec-2019
1375,Revenue,CAHD,Special ISB,Other Public Bodies,Enable Trust,889.61, 24-Dec-2019
1376,Revenue,CAHD,Special ISB,Other Public Bodies,Enable Trust,1698.31, 24-Dec-2019
1377,Revenue,CAHD,Special ISB,Other Public Bodies,Enable Trust,2507.01, 24-Dec-2019
1378,Revenue,CAHD,Special ISB,Other Public Bodies,Enable Trust,1698.31, 24-Dec-2019
1379,Revenue,CAHD,Special ISB,Other Public Bodies,Enable Trust,889.61, 24-Dec-2019
1380,Revenue,CAHD,Special ISB,Other Public Bodies,Enable Trust,2183.55, 24-Dec-2019
1381,Revenue,CAHD,Special ISB,Other Public Bodies,Enable Trust,1172.69, 24-Dec-2019
1382,Revenue,CAHD,Special ISB,Other Public Bodies,Enable Trust,2183.55, 24-Dec-2019
1383,Revenue,CAHD,Special ISB,Other Public Bodies,Enable Trust,1172.69, 24-Dec-2019
1384,Revenue,CAHD,Special ISB,Other Public Bodies,Enable Trust,1172.69, 24-Dec-2019
1385,Revenue,CAHD,Special ISB,Other Public Bodies,Enable Trust,1698.31, 24-Dec-2019
1386,Revenue,CAHD,Special ISB,Other Public Bodies,Enable Trust,889.61, 24-Dec-2019
1387,Revenue,CAHD,Special ISB,Other Public Bodies,Enable Trust,1698.31, 24-Dec-2019
1388,Revenue,CAHD,Special ISB,Other Public Bodies,Enable Trust,1172.69, 24-Dec-2019
1389,Revenue,CAHD,Special ISB,Other Public Bodies,Enable Trust,1172.69, 24-Dec-2019
1390,Revenue,CAHD,Special ISB,Other Public Bodies,Enable Trust,1172.69, 24-Dec-2019
1391,Revenue,CAHD,Special ISB,Other Public Bodies,Enable Trust,1698.31, 24-Dec-2019
1392,Revenue,CAHD,Special ISB,Other Public Bodies,Enable Trust,2507.01, 24-Dec-2019
1393,Revenue,CAHD,Special ISB,Other Public Bodies,Enable Trust,1698.31, 24-Dec-2019
1394,Revenue,CAHD,Special ISB,Other Public Bodies,Enable Trust,2183.55, 24-Dec-2019
1395,Revenue,CAHD,Special ISB,Other Public Bodies,Enable Trust,1172.69, 24-Dec-2019
1396,Revenue,CAHD,Special ISB,Other Public Bodies,Enable Trust,889.61, 24-Dec-2019
1397,Revenue,CAHD,Special ISB,Other Public Bodies,Enable Trust,1134.86, 02-Dec-2019
1398,Revenue,CAHD,Special ISB,Other Public Bodies,Enable Trust,1134.86, 02-Dec-2019
1399,Revenue,CAHD,Special ISB,Other Public Bodies,Enable Trust,1134.86, 02-Dec-2019
1400,Revenue,CAHD,Special ISB,Other Public Bodies,Enable Trust,626.06, 02-Dec-2019
1401,Revenue,CAHD,Special ISB,Other Public Bodies,Enable Trust,1487.06, 02-Dec-2019
1402,Revenue,CAHD,Special ISB,Other Public Bodies,Enable Trust,1643.53, 02-Dec-2019
1403,Revenue,CAHD,Special ISB,Other Public Bodies,Enable Trust,1487.06, 02-Dec-2019
1404,Revenue,CAHD,Special ISB,Other Public Bodies,Enable Trust,1487.06, 02-Dec-2019
1405,Revenue,CAHD,Special ISB,Other Public Bodies,Enable Trust,1134.86, 02-Dec-2019
1406,Revenue,CAHD,Special ISB,Other Public Bodies,Enable Trust,1134.86, 02-Dec-2019
1407,Revenue,CAHD,Special ISB,Other Public Bodies,Enable Trust,1487.06, 02-Dec-2019
1408,Revenue,CAHD,Special ISB,Other Public Bodies,Enable Trust,860.91, 02-Dec-2019
1409,Revenue,CAHD,Special ISB,Other Public Bodies,Enable Trust,1134.86, 02-Dec-2019
1410,Revenue,CAHD,Special ISB,Other Public Bodies,Enable Trust,1134.86, 02-Dec-2019
1411,Revenue,CAHD,Special ISB,Other Public Bodies,Enable Trust,860.91, 02-Dec-2019
1412,Revenue,CAHD,Special ISB,Other Public Bodies,Enable Trust,1487.06, 02-Dec-2019
1413,Revenue,CAHD,Special ISB,Other Public Bodies,Enable Trust,1134.86, 02-Dec-2019
1414,Revenue,CAHD,Special ISB,Other Public Bodies,Enable Trust,860.91, 02-Dec-2019
1415,Revenue,CAHD,Special ISB,Other Public Bodies,Enable Trust,1487.06, 02-Dec-2019
1416,Revenue,CAHD,Special ISB,Other Public Bodies,Enable Trust,2113.11, 02-Dec-2019
1417,Revenue,CAHD,Special ISB,Other Public Bodies,Enable Trust,1134.86, 02-Dec-2019
1418,Revenue,CAHD,Special ISB,Other Public Bodies,Enable Trust,1134.86, 02-Dec-2019
1419,Revenue,CAHD,Special ISB,Other Public Bodies,Enable Trust,860.91, 02-Dec-2019
1420,Revenue,CAHD,Special ISB,Other Public Bodies,Enable Trust,1134.86, 02-Dec-2019
1421,Revenue,CAHD,Special ISB,Other Public Bodies,Enable Trust,3366.74, 02-Dec-2019
1422,Revenue,CAHD,Special ISB,Other Public Bodies,Enable Trust,1134.86, 02-Dec-2019
1423,Revenue,CAHD,Special ISB,Other Public Bodies,Enable Trust,1134.86, 02-Dec-2019
1424,Revenue,CAHD,Special ISB,Other Public Bodies,Enable Trust,1487.06, 02-Dec-2019
1425,Revenue,CAHD,Special ISB,Other Public Bodies,Enable Trust,2113.11, 02-Dec-2019
1426,Revenue,CAHD,Special ISB,Other Public Bodies,Enable Trust,1487.06, 02-Dec-2019
1427,Revenue,CAHD,Special ISB,Other Public Bodies,Enable Trust,1134.86, 02-Dec-2019
1428,Revenue,CAHD,Special ISB,Other Public Bodies,Enable Trust,1134.86, 02-Dec-2019
1429,Revenue,CAHD,Special ISB,Other Public Bodies,Enable Trust,1487.06, 02-Dec-2019
1430,Revenue,CAHD,Special ISB,Other Public Bodies,Enable Trust,3442.40, 02-Dec-2019
1431,Revenue,CAHD,Special ISB,Other Public Bodies,Enable Trust,1487.06, 02-Dec-2019
1432,Revenue,CAHD,Special ISB,Other Public Bodies,Enable Trust,1134.86, 02-Dec-2019
1433,Revenue,CAHD,Special ISB,Other Public Bodies,Enable Trust,1134.86, 02-Dec-2019
1434,Revenue,CAHD,Special ISB,Other Public Bodies,Enable Trust,1487.06, 02-Dec-2019
1435,Revenue,CAHD,Special ISB,Other Public Bodies,Enable Trust,1134.86, 02-Dec-2019
1436,Revenue,CAHD,Special ISB,Other Public Bodies,Enable Trust,860.91, 02-Dec-2019
1437,Revenue,CAHD,Special ISB,Other Public Bodies,Enable Trust,1134.86, 02-Dec-2019
1438,Revenue,CAHD,Special ISB,Other Public Bodies,Enable Trust,860.91, 02-Dec-2019
1439,Revenue,CAHD,Special ISB,Other Public Bodies,Enable Trust,860.91, 02-Dec-2019
1440,Revenue,CAHD,Special ISB,Other Public Bodies,Enable Trust,626.06, 02-Dec-2019
1441,Revenue,CAHD,Special ISB,Other Public Bodies,Enable Trust,860.91, 02-Dec-2019
1442,Revenue,CAHD,Special ISB,Other Public Bodies,Enable Trust,1134.86, 02-Dec-2019
1443,Revenue,CAHD,Special ISB,Other Public Bodies,Enable Trust,860.91, 02-Dec-2019
1444,Revenue,CAHD,Special ISB,Other Public Bodies,Enable Trust,1487.06, 02-Dec-2019
1445,Revenue,CAHD,Special ISB,Other Public Bodies,Enable Trust,1134.86, 02-Dec-2019
1446,Revenue,CAHD,Special ISB,Other Public Bodies,Enable Trust,1487.06, 02-Dec-2019
1447,Revenue,CAHD,Special ISB,Other Public Bodies,Enable Trust,1134.86, 02-Dec-2019
1448,Revenue,CAHD,Special ISB,Other Public Bodies,Enable Trust,1487.06, 02-Dec-2019
1449,Revenue,CAHD,Special ISB,Other Public Bodies,Enable Trust,1487.06, 02-Dec-2019
1450,Revenue,CAHD,Special ISB,Other Public Bodies,Enable Trust,860.91, 02-Dec-2019
1451,Revenue,CAHD,Special ISB,Other Public Bodies,Enable Trust,1134.86, 02-Dec-2019
1452,Revenue,CAHD,Special ISB,Other Public Bodies,Enable Trust,860.91, 02-Dec-2019
1453,Revenue,CAHD,Special ISB,Other Public Bodies,Enable Trust,1487.06, 02-Dec-2019
1454,Revenue,CAHD,Special ISB,Other Public Bodies,Enable Trust,1134.86, 02-Dec-2019
1455,Revenue,CAHD,Special ISB,Other Public Bodies,Enable Trust,1487.06, 02-Dec-2019
1456,Revenue,CAHD,Special ISB,Other Public Bodies,Enable Trust,1134.86, 02-Dec-2019
1457,Revenue,CAHD,Special ISB,Other Public Bodies,Enable Trust,1487.06, 02-Dec-2019
1458,Revenue,CAHD,Special ISB,Other Public Bodies,Enable Trust,1487.06, 02-Dec-2019
1459,Revenue,CAHD,Special ISB,Other Public Bodies,Enable Trust,1134.86, 02-Dec-2019
1460,Revenue,CAHD,Special ISB,Other Public Bodies,Enable Trust,1487.06, 02-Dec-2019
1461,Revenue,CAHD,Special ISB,Other Public Bodies,Enable Trust,860.91, 02-Dec-2019
1462,Revenue,CAHD,Special ISB,Other Public Bodies,Enable Trust,1134.86, 02-Dec-2019
1463,Revenue,CAHD,Special ISB,Other Public Bodies,Enable Trust,860.91, 02-Dec-2019
1464,Revenue,CAHD,Special ISB,Other Public Bodies,Enable Trust,3442.40, 02-Dec-2019
1465,Revenue,CAHD,Special ISB,Other Public Bodies,Enable Trust,1134.86, 02-Dec-2019
1466,Revenue,CAHD,Special ISB,Other Public Bodies,Enable Trust,1134.86, 02-Dec-2019
1467,Revenue,CAHD,Special ISB,Other Public Bodies,Enable Trust,2113.11, 02-Dec-2019
1468,Revenue,CAHD,Special ISB,Other Public Bodies,Enable Trust,1134.86, 02-Dec-2019
1469,Revenue,CAHD,Special ISB,Other Public Bodies,Enable Trust,860.91, 02-Dec-2019
1470,Revenue,CAHD,Special ISB,Other Public Bodies,Enable Trust,1134.86, 02-Dec-2019
1471,Revenue,CAHD,Special ISB,Other Public Bodies,Enable Trust,1134.86, 02-Dec-2019
1472,Revenue,CAHD,Special ISB,Other Public Bodies,Enable Trust,1134.86, 02-Dec-2019
1473,Revenue,CAHD,Special ISB,Other Public Bodies,Enable Trust,860.91, 02-Dec-2019
1474,Revenue,CAHD,Special ISB,Other Public Bodies,Enable Trust,1643.53, 02-Dec-2019
1475,Revenue,CAHD,Special ISB,Other Public Bodies,Enable Trust,1134.86, 02-Dec-2019
1476,Revenue,CAHD,Special ISB,Other Public Bodies,Enable Trust,860.91, 02-Dec-2019
1477,Revenue,CAHD,Special ISB,Other Public Bodies,Enable Trust,1134.86, 02-Dec-2019
1478,Revenue,CAHD,Special ISB,Other Public Bodies,Enable Trust,1134.86, 02-Dec-2019
1479,Revenue,CAHD,Special ISB,Other Public Bodies,Enable Trust,860.91, 02-Dec-2019
1480,Revenue,CAHD,Special ISB,Other Public Bodies,Enable Trust,860.91, 02-Dec-2019
1481,Revenue,CAHD,Special ISB,Other Public Bodies,Enable Trust,1643.53, 02-Dec-2019
1482,Revenue,CAHD,Special ISB,Other Public Bodies,Enable Trust,860.91, 02-Dec-2019
1483,Revenue,CAHD,Special ISB,Other Public Bodies,Enable Trust,1455.69, 02-Dec-2019
1484,Revenue,CAHD,Special ISB,Other Public Bodies,Enable Trust,2113.11, 02-Dec-2019
1485,Revenue,CAHD,Special ISB,Other Public Bodies,Enable Trust,1643.53, 02-Dec-2019
1486,Revenue,CAHD,Special ISB,Other Public Bodies,Enable Trust,860.91, 02-Dec-2019
1487,Revenue,CAHD,Special ISB,Other Public Bodies,Enable Trust,1643.53, 02-Dec-2019
1488,Revenue,CAHD,Special ISB,Other Public Bodies,Enable Trust,1134.86, 02-Dec-2019
1489,Revenue,CAHD,Special ISB,Other Public Bodies,Enable Trust,626.06, 02-Dec-2019
1490,Revenue,CAHD,Special ISB,Other Public Bodies,Enable Trust,1487.06, 02-Dec-2019
1491,Revenue,CAHD,Special ISB,Other Public Bodies,Enable Trust,1134.86, 02-Dec-2019
1492,Revenue,CAHD,Special ISB,Other Public Bodies,Enable Trust,978.34, 02-Dec-2019
1493,Revenue,CAHD,Special ISB,Other Public Bodies,Enable Trust,1643.53, 02-Dec-2019
1494,Revenue,CAHD,Special ISB,Other Public Bodies,Enable Trust,1134.86, 02-Dec-2019
1495,Revenue,CAHD,Special ISB,Other Public Bodies,Enable Trust,860.91, 02-Dec-2019
1496,Revenue,CAHD,Special ISB,Other Public Bodies,Enable Trust,626.06, 02-Dec-2019
1497,Revenue,CAHD,Special ISB,Other Public Bodies,Enable Trust,1134.86, 02-Dec-2019
1498,Revenue,CAHD,Special ISB,Other Public Bodies,Enable Trust,860.91, 02-Dec-2019
1499,Revenue,CAHD,Special ISB,Other Public Bodies,Enable Trust,1134.86, 02-Dec-2019
1500,Revenue,CAHD,Special ISB,Other Public Bodies,Enable Trust,1134.86, 02-Dec-2019
1501,Revenue,CAHD,Special ISB,Other Public Bodies,Enable Trust,1134.86, 02-Dec-2019
1502,Revenue,CAHD,Special ISB,Other Public Bodies,Enable Trust,1643.53, 02-Dec-2019
1503,Revenue,CAHD,Special ISB,Other Public Bodies,Enable Trust,860.91, 02-Dec-2019
1504,Revenue,CAHD,Special ISB,Other Public Bodies,Enable Trust,1643.53, 02-Dec-2019
1505,Revenue,CAHD,Special ISB,Other Public Bodies,Enable Trust,860.91, 02-Dec-2019
1506,Revenue,CAHD,Special ISB,Other Public Bodies,Enable Trust,1134.86, 02-Dec-2019
1507,Revenue,CAHD,Special ISB,Other Public Bodies,Enable Trust,2113.11, 02-Dec-2019
1508,Revenue,CAHD,Special ISB,Other Public Bodies,Enable Trust,1643.53, 02-Dec-2019
1509,Revenue,CAHD,Special ISB,Other Public Bodies,Enable Trust,1487.06, 02-Dec-2019
1510,Revenue,CAHD,Special ISB,Other Public Bodies,Enable Trust,1134.86, 02-Dec-2019
1511,Revenue,CAHD,Special ISB,Other Public Bodies,Enable Trust,1134.86, 02-Dec-2019
1512,Revenue,CAHD,Special ISB,Other Public Bodies,Enable Trust,1134.86, 02-Dec-2019
1513,Revenue,CAHD,Special ISB,Other Public Bodies,Enable Trust,1134.86, 02-Dec-2019
1514,Revenue,CAHD,Special ISB,Other Public Bodies,Enable Trust,860.91, 02-Dec-2019
1515,Revenue,CAHD,Special ISB,Other Public Bodies,Enable Trust,1134.86, 02-Dec-2019
1516,Revenue,CAHD,Special ISB,Other Public Bodies,Enable Trust,1643.53, 02-Dec-2019
1517,Revenue,CAHD,Special ISB,Other Public Bodies,Enable Trust,860.91, 02-Dec-2019
1518,Revenue,CAHD,Special ISB,Other Public Bodies,Enable Trust,860.91, 02-Dec-2019
1519,Revenue,CAHD,Special ISB,Other Public Bodies,Enable Trust,2426.14, 02-Dec-2019
1520,Revenue,CAHD,Special ISB,Other Public Bodies,Enable Trust,1134.86, 02-Dec-2019
1521,Revenue,CAHD,Special ISB,Other Public Bodies,Enable Trust,1134.86, 02-Dec-2019
1522,Revenue,CAHD,Special ISB,Other Public Bodies,Enable Trust,1643.53, 02-Dec-2019
1523,Revenue,CAHD,Special ISB,Other Public Bodies,Enable Trust,1643.53, 02-Dec-2019
1524,Revenue,CAHD,Special ISB,Other Public Bodies,Enable Trust,1134.86, 02-Dec-2019
1525,Revenue,CAHD,Special ISB,Other Public Bodies,Enable Trust,1643.53, 02-Dec-2019
1526,Revenue,CAHD,Special ISB,Other Public Bodies,Enable Trust,1643.53, 02-Dec-2019
1527,Revenue,CAHD,Special ISB,Other Public Bodies,Enable Trust,1643.53, 02-Dec-2019
1528,Revenue,CAHD,Special ISB,Other Public Bodies,Enable Trust,860.91, 02-Dec-2019
1529,Revenue,CAHD,Special ISB,Other Public Bodies,Enable Trust,1643.53, 02-Dec-2019
1530,Revenue,CAHD,Special ISB,Other Public Bodies,Enable Trust,860.91, 02-Dec-2019
1531,Revenue,CAHD,Special ISB,Other Public Bodies,Enable Trust,2113.11, 02-Dec-2019
1532,Revenue,CAHD,Special ISB,Other Public Bodies,Enable Trust,860.91, 02-Dec-2019
1533,Revenue,CAHD,Special ISB,Other Public Bodies,Enable Trust,860.91, 02-Dec-2019
1534,Revenue,CAHD,Special ISB,Other Public Bodies,Enable Trust,2113.11, 02-Dec-2019
1535,Revenue,CAHD,Special ISB,Other Public Bodies,Enable Trust,1134.86, 02-Dec-2019
1536,Revenue,CAHD,Special ISB,Other Public Bodies,Enable Trust,860.91, 02-Dec-2019
1537,Revenue,CAHD,Special ISB,Other Public Bodies,Enable Trust,1643.53, 02-Dec-2019
1538,Revenue,CAHD,Special ISB,Other Public Bodies,Enable Trust,1643.53, 02-Dec-2019
1539,Revenue,CAHD,Special ISB,Other Public Bodies,Enable Trust,1134.86, 02-Dec-2019
1540,Revenue,CAHD,Special ISB,Other Public Bodies,Enable Trust,2113.11, 02-Dec-2019
1541,Revenue,CAHD,Special ISB,Other Public Bodies,Enable Trust,2426.14, 02-Dec-2019
1542,Revenue,CAHD,Special ISB,Other Public Bodies,Enable Trust,1643.53, 02-Dec-2019
1543,Revenue,CAHD,Special ISB,Other Public Bodies,Enable Trust,1134.86, 02-Dec-2019
1544,Revenue,CAHD,Special ISB,Other Public Bodies,Enable Trust,1643.53, 02-Dec-2019
1545,Revenue,CAHD,Special ISB,Other Public Bodies,Enable Trust,1134.86, 02-Dec-2019
1546,Revenue,CAHD,Special ISB,Other Public Bodies,Enable Trust,860.91, 02-Dec-2019
1547,Revenue,CAHD,Special ISB,Other Public Bodies,Enable Trust,2426.14, 02-Dec-2019
1548,Revenue,CAHD,Special ISB,Other Public Bodies,Enable Trust,1134.86, 02-Dec-2019
1549,Revenue,CAHD,Special ISB,Other Public Bodies,Enable Trust,1643.53, 02-Dec-2019
1550,Revenue,CAHD,Special ISB,Other Public Bodies,Enable Trust,2113.11, 02-Dec-2019
1551,Revenue,CAHD,Special ISB,Other Public Bodies,Enable Trust,4985.37, 02-Dec-2019
1552,Revenue,CAHD,Special ISB,Other Public Bodies,Enable Trust,1134.86, 02-Dec-2019
1553,Revenue,CAHD,Special ISB,Other Public Bodies,Enable Trust,860.91, 02-Dec-2019
1554,Revenue,CAHD,Special ISB,Other Public Bodies,Enable Trust,1134.86, 02-Dec-2019
1555,Revenue,CAHD,Special ISB,Other Public Bodies,Enable Trust,1134.86, 02-Dec-2019
1556,Revenue,CAHD,South - bed purchasing and direct  payments,Permanent Nursing,Epworth House,3072.00, 17-Dec-2019
1557,Revenue,CAHD,Placements OLA Special Schools and RB,Other L.A.'s - General,Excalibur Academies Trust T/A,1511.83, 24-Dec-2019
1558,Revenue,CAHD,Independent Special Placements - Pre 16,Other Private Contractors,Exeter Royal Academy For Deaf Education,16513.00, 24-Dec-2019
1559,Revenue,CAHD,Post 16 High Needs Placements,Other Private Contractors,Exeter Royal Academy For Deaf Education,34152.00, 24-Dec-2019
1560,Revenue,CAHD,Post 16 High Needs Placements,Other Private Contractors,Exeter Royal Academy For Deaf Education,4675.00, 24-Dec-2019
1561,Revenue,CAHD,Extra Care Housing,Private & Voluntary Home Care,Extra Care Charitable Trust,53936.00, 12-Dec-2019
1562,Revenue,CAHD,North - bed purchasing and direct  payments,Permanent Residential,Eyre Court,3719.16, 17-Dec-2019
1563,Revenue,CAHD,Central - Bed Purchasing and Direct Payments,Permanent Residential,Eyre Court,4915.20, 17-Dec-2019
1564,Revenue,CAHD,North - bed purchasing and direct  payments,Permanent Residential,Eyre Court,2027.14, 17-Dec-2019
1565,Revenue,CAHD,North - bed purchasing and direct  payments,Permanent Residential,Eyre Court,4800.00, 17-Dec-2019
1566,Revenue,CAHD,South - bed purchasing and direct  payments,Permanent Nursing,Fairview Court,3810.56, 17-Dec-2019
1567,Revenue,CAHD,South Glos Users in South Glos Homes,Permanent Nursing,Fairview Court,662.24, 17-Dec-2019
1568,Revenue,CAHD,South Glos Users in South Glos Homes,Permanent Nursing,Fairview Court,662.24, 17-Dec-2019
1569,Revenue,CAHD,South Glos Users in South Glos Homes,Permanent Nursing,Fairview Court,662.24, 17-Dec-2019
1570,Revenue,CAHD,South - bed purchasing and direct  payments,Permanent Nursing,Fairview Court,3810.56, 17-Dec-2019
1571,Revenue,CAHD,South Glos Users in South Glos Homes,Permanent Nursing,Fairview Court,662.24, 17-Dec-2019
1572,Revenue,CAHD,South Glos Users in South Glos Homes,Permanent Nursing,Fairview Court,662.24, 17-Dec-2019
1573,Revenue,CAHD,South Glos Users in South Glos Homes,Permanent Nursing,Fairview Court,662.24, 17-Dec-2019
1574,Revenue,CAHD,South - bed purchasing and direct  payments,Permanent Nursing,Fairview Court,3547.76, 17-Dec-2019
1575,Revenue,CAHD,South Glos Users in South Glos Homes,Permanent Nursing,Fairview Court,662.24, 17-Dec-2019
1576,Revenue,CAHD,South Glos Users in South Glos Homes,Permanent Nursing,Fairview Court,662.24, 17-Dec-2019
1577,Revenue,CAHD,South Glos Users in South Glos Homes,Permanent Nursing,Fairview Court,662.24, 17-Dec-2019
1578,Revenue,CAHD,South Glos Users in South Glos Homes,Permanent Nursing,Fairview Court,662.24, 17-Dec-2019
1579,Revenue,CAHD,South - S117,Permanent Nursing,Fairview Court,4173.84, 17-Dec-2019
1580,Revenue,CAHD,South Glos Users in South Glos Homes,Permanent Nursing,Fairview Court,662.24, 17-Dec-2019
1581,Revenue,CAHD,South Glos Users in South Glos Homes,Permanent Nursing,Fairview Court,662.24, 17-Dec-2019
1582,Revenue,CAHD,South - bed purchasing and direct  payments,Permanent Nursing,Fairview Court,3382.48, 17-Dec-2019
1583,Revenue,CAHD,South Glos Users in South Glos Homes,Permanent Nursing,Fairview Court,662.24, 17-Dec-2019
1584,Revenue,CAHD,South Glos Users in South Glos Homes,Permanent Nursing,Fairview Court,662.24, 17-Dec-2019
1585,Revenue,CAHD,South Glos Users in South Glos Homes,Permanent Nursing,Fairview Court,662.24, 17-Dec-2019
1586,Revenue,CAHD,South Glos Users in South Glos Homes,Permanent Nursing,Fairview Court,662.24, 17-Dec-2019
1587,Revenue,CAHD,South Glos Users in South Glos Homes,Permanent Nursing,Fairview Court,662.24, 17-Dec-2019
1588,Revenue,CAHD,South Glos Users in South Glos Homes,Permanent Nursing,Fairview Court,662.24, 17-Dec-2019
1589,Revenue,CAHD,South - bed purchasing and direct  payments,Permanent Nursing,Fairview Court,4140.00, 17-Dec-2019
1590,Revenue,CAHD,South Glos Users in South Glos Homes,Permanent Nursing,Fairview Court,662.24, 17-Dec-2019
1591,Revenue,CAHD,South - bed purchasing and direct  payments,Permanent Nursing,Fairview Court,3810.56, 17-Dec-2019
1592,Revenue,CAHD,South Glos Users in South Glos Homes,Permanent Nursing,Fairview Court,662.24, 17-Dec-2019
1593,Revenue,CAHD,South Glos Users in South Glos Homes,Permanent Nursing,Fairview Court,662.24, 17-Dec-2019
1594,Revenue,CAHD,South Glos Users in South Glos Homes,Permanent Nursing,Fairview Court,662.24, 17-Dec-2019
1595,Revenue,CAHD,South Glos Users in South Glos Homes,Permanent Nursing,Fairview Court,662.24, 17-Dec-2019
1596,Revenue,CAHD,South Glos Users in South Glos Homes,Permanent Nursing,Fairview Court,4162.65, 17-Dec-2019
1597,Revenue,CAHD,South Glos Users in South Glos Homes,Permanent Nursing,Fairview Court,662.24, 17-Dec-2019
1598,Revenue,CAHD,South Glos Users in South Glos Homes,Permanent Nursing,Fairview Court,662.24, 17-Dec-2019
1599,Revenue,CAHD,North - bed purchasing and direct  payments,Permanent Nursing,Fairview Court,3547.76, 17-Dec-2019
1600,Revenue,CAHD,South Glos Users in South Glos Homes,Permanent Nursing,Fairview Court,662.24, 17-Dec-2019
1601,Revenue,CAHD,South Glos Users in South Glos Homes,Permanent Nursing,Fairview Court,662.24, 17-Dec-2019
1602,Revenue,CAHD,South Glos Users in South Glos Homes,Permanent Nursing,Fairview Court,662.24, 17-Dec-2019
1603,Revenue,CAHD,South - bed purchasing and direct  payments,Permanent Residential,Fairview Court,4048.64, 17-Dec-2019
1604,Revenue,CAHD,South Glos Users in South Glos Homes,Permanent Nursing,Fairview Court,662.24, 17-Dec-2019
1605,Revenue,CAHD,South Glos Users in South Glos Homes,Permanent Nursing,Fairview Court,662.24, 17-Dec-2019
1606,Revenue,CAHD,North - bed purchasing and direct  payments,Permanent Residential,Fairview Court,3256.32, 17-Dec-2019
1607,Revenue,CAHD,South - bed purchasing and direct  payments,Permanent Nursing,Fairview Court,4137.76, 17-Dec-2019
1608,Revenue,CAHD,South - bed purchasing and direct  payments,Permanent Nursing,Fairview Court,591.11, 17-Dec-2019
1609,Revenue,CAHD,South - bed purchasing and direct  payments,Permanent Nursing,Fairview Court,3483.68, 17-Dec-2019
1610,Revenue,CAHD,South Glos Users in South Glos Homes,Permanent Nursing,Fairview Court,662.24, 17-Dec-2019
1611,Revenue,CAHD,North - bed purchasing and direct  payments,Permanent Nursing,Fairview Court,3810.56, 17-Dec-2019
1612,Revenue,CAHD,South Glos Users in South Glos Homes,Permanent Nursing,Fairview Court,662.24, 17-Dec-2019
1613,Revenue,CAHD,South Glos Users in South Glos Homes,Permanent Nursing,Fairview Court,2578.01, 17-Dec-2019
1614,Revenue,CAHD,South Glos Users in South Glos Homes,Permanent Nursing,Fairview Court,662.24, 17-Dec-2019
1615,Revenue,CAHD,South - bed purchasing and direct  payments,Permanent Nursing,Fairview Court,3130.36, 17-Dec-2019
1616,Revenue,CAHD,South Glos Users in South Glos Homes,Permanent Nursing,Fairview Court,662.24, 17-Dec-2019
1617,Revenue,CAHD,South - bed purchasing and direct  payments,Permanent Nursing,Fairview Court,3810.56, 17-Dec-2019
1618,Revenue,CAHD,South Glos Users in South Glos Homes,Permanent Nursing,Fairview Court,662.24, 17-Dec-2019
1619,Revenue,CAHD,South - bed purchasing and direct  payments,Permanent Nursing,Fairview Court,3547.76, 17-Dec-2019
1620,Revenue,CAHD,South Glos Users in South Glos Homes,Permanent Nursing,Fairview Court,662.24, 17-Dec-2019
1621,Revenue,CAHD,South - bed purchasing and direct  payments,Permanent Nursing,Fairview Court,4028.00, 17-Dec-2019
1622,Revenue,CAHD,South Glos Users in South Glos Homes,Permanent Nursing,Fairview Court,662.24, 17-Dec-2019
1623,Revenue,CAHD,South - S117,Permanent Residential,Fairview House,2303.52, 17-Dec-2019
1624,Revenue,CAHD,South - bed purchasing and direct  payments,Permanent Residential,Fairview House,2303.52, 17-Dec-2019
1625,Revenue,CAHD,South - bed purchasing and direct  payments,Respite Emergency - Residential,Fairview House,3400.00, 17-Dec-2019
1626,Revenue,CAHD,Central - Bed Purchasing and Direct Payments,Permanent Residential,Fairview House,3400.00, 17-Dec-2019
1627,Revenue,CAHD,South - bed purchasing and direct  payments,Fees & Charges Income - General,Fairview House,5704.56, 17-Dec-2019
1628,Revenue,CAHD,South - bed purchasing and direct  payments,Permanent Residential,Fairview House,2230.32, 17-Dec-2019
1629,Revenue,CAHD,South - bed purchasing and direct  payments,Permanent Residential,Fairview House,2230.40, 17-Dec-2019
1630,Revenue,CAHD,North - bed purchasing and direct  payments,Permanent Residential,Faith House,3297.28, 17-Dec-2019
1631,Revenue,CAHD,North - bed purchasing and direct  payments,Permanent Residential,Faith House,2805.76, 17-Dec-2019
1632,Revenue,CAHD,North - bed purchasing and direct  payments,Permanent Residential,Faith House,2980.00, 17-Dec-2019
1633,Revenue,CAHD,South - bed purchasing and direct  payments,Permanent Residential,Faith House,2900.00, 17-Dec-2019
1634,Revenue,CAHD,South - bed purchasing and direct  payments,Permanent Residential,Faith House,638.57, 17-Dec-2019
1635,Revenue,CAHD,South - bed purchasing and direct  payments,Permanent Residential,Faith House,3831.43, 17-Dec-2019
1636,Revenue,CAHD,Travel to School (HTST) - Secondary,Bus & Rail Passes (not one off tickets),Faresaver Buses,633.33, 13-Dec-2019
1637,Revenue,CAHD,Post 16 High Needs Placements,Other Private Contractors,Farleigh FEC-Frome Priory,21479.39, 13-Dec-2019
1638,Revenue,CAHD,Post 16 High Needs Placements,Other Private Contractors,Farleigh FEC-Frome Priory,22421.57, 13-Dec-2019
1639,Revenue,CAHD,Post 16 High Needs Placements,Other Private Contractors,Farleigh FEC-Frome Priory,22687.99, 13-Dec-2019
1640,Revenue,CAHD,Post 16 High Needs Placements,Other Private Contractors,Farleigh FEC-Frome Priory,23275.85, 13-Dec-2019
1641,Revenue,CAHD,Post 16 High Needs Placements,Other Private Contractors,Farleigh FEC-Frome Priory,22271.92, 13-Dec-2019
1642,Revenue,CAHD,Post 16 High Needs Placements,Other Private Contractors,Farleigh FEC-Frome Priory,6251.79, 13-Dec-2019
1643,Revenue,CAHD,Post 16 High Needs Placements,Other Private Contractors,Farleigh FEC-Frome Priory,7123.59, 13-Dec-2019
1644,Revenue,CAHD,Post 16 High Needs Placements,Other Private Contractors,Farleigh FEC-Frome Priory,13390.29, 13-Dec-2019
1645,Revenue,CAHD,Central - Bed Purchasing and Direct Payments,Permanent Nursing,Festival House,3055.04, 17-Dec-2019
1646,Revenue,CAHD,Central - Bed Purchasing and Direct Payments,Permanent Residential,Fieldview,3481.60, 17-Dec-2019
1647,Revenue,CAHD,North - bed purchasing and direct  payments,Permanent Residential,Fieldview,3756.44, 17-Dec-2019
1648,Revenue,CAHD,North - bed purchasing and direct  payments,Permanent Residential,Fieldview,3200.00, 17-Dec-2019
1649,Revenue,CAHD,MH Purchasing - Younger,Permanent Nursing,Fieldview,5496.52, 17-Dec-2019
1650,Revenue,CAHD,Statemented Support Payments to OLAs,Other L.A.'s - General,Filton Avenue Primary School,1131.84, 02-Dec-2019
1651,Revenue,CAHD,Statemented Support Payments to OLAs,Other L.A.'s - General,Filton Avenue Primary School,1131.84, 23-Dec-2019
1652,Revenue,CAHD,Statemented Support Payments to OLAs,Other L.A.'s - General,Filton Avenue Primary School,1332.27, 02-Dec-2019
1653,Revenue,CAHD,Statemented Support Payments to OLAs,Other L.A.'s - General,Filton Avenue Primary School,1332.27, 23-Dec-2019
1654,Revenue,CAHD,CSC - Agency Fostering,Foster Parent Allowances,Five Rivers Child Care Limited,3510.00, 02-Dec-2019
1655,Revenue,CAHD,CSC - Agency Fostering,Foster Parent Allowances,Five Rivers Child Care Limited,4152.86, 05-Dec-2019
1656,Revenue,CAHD,CSC - Agency Fostering,Foster Parent Allowances,Five Rivers Child Care Limited,3938.57, 11-Dec-2019
1657,Revenue,CAHD,CSC - Agency Fostering,Foster Parent Allowances,Five Rivers Child Care Limited,4069.86, 30-Dec-2019
1658,Revenue,CAHD,CSC - Agency Fostering,Foster Parent Allowances,Five Rivers Child Care Limited,4291.29, 30-Dec-2019
1659,Revenue,CAHD,CSC - Agency Fostering,Foster Parent Allowances,Five Rivers Child Care Limited,3518.19, 30-Dec-2019
1660,Revenue,CAHD,CSC - Agency Fostering,Foster Parent Allowances,Five Rivers Child Care Limited,3671.29, 30-Dec-2019
1661,Revenue,CAHD,CSC - Agency Fostering,Foster Parent Allowances,Five Rivers Child Care Limited,3447.82, 30-Dec-2019
1662,Revenue,CAHD,CSC - Agency Fostering,Foster Parent Allowances,Five Rivers Child Care Limited,3447.82, 30-Dec-2019
1663,Revenue,CAHD,CSC - Agency Fostering,Foster Parent Allowances,Foster Care Associates Limited,4131.68, 23-Dec-2019
1664,Revenue,CAHD,CSC - Asylum Seekers - Unaccompanied,Foster Parent Allowances,Foster Care Associates Limited,2406.22, 30-Dec-2019
1665,Revenue,CAHD,CSC - Agency Fostering,Foster Parent Allowances,Foster Care Associates Limited,3648.30, 13-Dec-2019
1666,Revenue,CAHD,CSC - Agency Fostering,Foster Parent Allowances,Foster Care Associates Limited,2691.00, 13-Dec-2019
1667,Revenue,CAHD,CSC - Asylum Seekers - Unaccompanied,Foster Parent Allowances,Foster Care Associates Limited,2406.22, 30-Dec-2019
1668,Revenue,CAHD,CSC - Parent & Child Assessments,Foster Parent Allowances,Fostering Solutions Limited,1893.40, 30-Dec-2019
1669,Revenue,CAHD,CSC - Parent & Child Assessments,Foster Parent Allowances,Fostering Solutions Limited,5869.54, 30-Dec-2019
1670,Revenue,CAHD,Central - Commissioned Services,Other Small Contracts,Fourways Care Limited,527.84, 03-Dec-2019
1671,Revenue,CAHD,South - Commissioned Services,Other Small Contracts,Fourways Care Limited,771.04, 03-Dec-2019
1672,Revenue,CAHD,North - Community based support,Day Care / Social Activities,Fourways Care Limited,9.76, 03-Dec-2019
1673,Revenue,CAHD,North - Community based support,Other Small Contracts,Fourways Care Limited,10658.40, 03-Dec-2019
1674,Revenue,CAHD,Central - Commissioned Services,Other Small Contracts,Fourways Care Limited,527.84, 10-Dec-2019
1675,Revenue,CAHD,South - Commissioned Services,Other Small Contracts,Fourways Care Limited,799.52, 10-Dec-2019
1676,Revenue,CAHD,North - Community based support,Day Care / Social Activities,Fourways Care Limited,87.84, 10-Dec-2019
1677,Revenue,CAHD,North - Community based support,Other Small Contracts,Fourways Care Limited,10581.84, 10-Dec-2019
1678,Revenue,CAHD,Central - Commissioned Services,Other Small Contracts,Fourways Care Limited,522.96, 16-Dec-2019
1679,Revenue,CAHD,South - Commissioned Services,Other Small Contracts,Fourways Care Limited,866.08, 16-Dec-2019
1680,Revenue,CAHD,North - Community based support,Day Care / Social Activities,Fourways Care Limited,92.72, 16-Dec-2019
1681,Revenue,CAHD,North - Community based support,Other Small Contracts,Fourways Care Limited,10920.08, 16-Dec-2019
1682,Revenue,CAHD,Central - Commissioned Services,Other Small Contracts,Fourways Care Limited,458.40, 24-Dec-2019
1683,Revenue,CAHD,South - Commissioned Services,Other Small Contracts,Fourways Care Limited,847.52, 24-Dec-2019
1684,Revenue,CAHD,North - Community based support,Day Care / Social Activities,Fourways Care Limited,92.72, 24-Dec-2019
1685,Revenue,CAHD,North - Community based support,Other Small Contracts,Fourways Care Limited,10873.12, 24-Dec-2019
1686,Revenue,CAHD,Pathway 1 - Re-Ablement Home Care,Other Small Contracts,Fourways Care Limited,996.01, 17-Dec-2019
1687,Revenue,CAHD,Post 16 High Needs Placements,Other Private Contractors,Foxes Academy,15425.62, 19-Dec-2019
1688,Revenue,CAHD,Post 16 High Needs Placements,Other Private Contractors,Foxes Academy,15755.64, 19-Dec-2019
1689,Revenue,CAHD,Post 16 High Needs Placements,Other Private Contractors,Foxes Academy,15949.06, 19-Dec-2019
1690,Revenue,CAHD,Supporting People Programme,Grants to Voluntary Bodies,Freeways Trust Limited,3265.00, 30-Dec-2019
1691,Revenue,CAHD,North - Community based support,Other Small Contracts,Freeways Trust Limited,846.56, 02-Dec-2019
1692,Revenue,CAHD,North - Community based support,Other Small Contracts,Freeways Trust Limited,846.56, 13-Dec-2019
1693,Revenue,CAHD,North - bed purchasing and direct  payments,Respite Planned - Residential,Freeways Trust Limited,645.14, 17-Dec-2019
1694,Revenue,CAHD,North - Community based support,Supported Living,Freeways Trust Ltd,845.52, 17-Dec-2019
1695,Revenue,CAHD,S28A cases,Permanent Residential,Freeways Trust Ltd,3886.64, 17-Dec-2019
1696,Revenue,CAHD,North - bed purchasing and direct  payments,Permanent Residential,Freeways Trust Ltd,3763.40, 17-Dec-2019
1697,Revenue,CAHD,South - bed purchasing and direct  payments,Permanent Residential,Freeways Trust Ltd,3991.40, 17-Dec-2019
1698,Revenue,CAHD,North - bed purchasing and direct  payments,Permanent Residential,Freeways Trust Ltd,3301.04, 17-Dec-2019
1699,Revenue,CAHD,South - bed purchasing and direct  payments,Permanent Residential,Freeways Trust Ltd,3301.04, 17-Dec-2019
1700,Revenue,CAHD,North - bed purchasing and direct  payments,Permanent Residential,Freeways Trust Ltd,3381.20, 17-Dec-2019
1701,Revenue,CAHD,North - bed purchasing and direct  payments,Permanent Residential,Freeways Trust Ltd,3984.12, 17-Dec-2019
1702,Revenue,CAHD,18-25 Year Olds,Permanent Residential,Freeways Trust Ltd,3680.48, 17-Dec-2019
1703,Revenue,CAHD,Section 117 Placements MH Younger,Permanent Residential,Freeways Trust Ltd,3339.04, 17-Dec-2019
1704,Revenue,CAHD,Central - Commissioned Services,Day Care / Social Activities,Frenchay Beckspool Building,1895.60, 17-Dec-2019
1705,Revenue,CAHD,South - Commissioned Services,Day Care / Social Activities,Frenchay Beckspool Building,902.40, 17-Dec-2019
1706,Revenue,CAHD,South - Commissioned Services,Day Care / Social Activities,Frenchay Beckspool Building,640.08, 17-Dec-2019
1707,Revenue,CAHD,North - bed purchasing and direct  payments,Permanent Nursing,Frenchay Park Nursing Home,3481.60, 17-Dec-2019
1708,Revenue,CAHD,Central - Bed Purchasing and Direct Payments,Permanent Nursing,Frenchay Park Nursing Home,27807.14, 17-Dec-2019
1709,Revenue,CAHD,Central - Bed Purchasing and Direct Payments,Permanent Nursing,Frenchay Park Nursing Home,3400.00, 17-Dec-2019
1710,Revenue,CAHD,Central - Bed Purchasing and Direct Payments,Fees & Charges Income - General,Frenchay Park Nursing Home,8752.59, 17-Dec-2019
1711,Revenue,CAHD,EARLY YEARS DISABILITY  ACCES FUND,Preventative Assistance,Frenchay Pre School Playgroup,615.00, 16-Dec-2019
1712,Revenue,CAHD,Early Years Inclusion Fund,Other Public Bodies,Frenchay Pre-School,2000.00, 10-Dec-2019
1713,Revenue,CAHD,Early Years Inclusion Fund,Other Public Bodies,Frenchay Pre-School,2000.00, 10-Dec-2019
1714,Revenue,CAHD,CSC - Through & Leaving Care Team,Agency Staff (Admin/Support Staff) Pay,Frontline Staffing Ltd,1731.23, 02-Dec-2019
1715,Revenue,CAHD,CSC - Social Work Team - CENTRAL,Agency Staff (Admin/Support Staff) Pay,Frontline Staffing Ltd,1122.96, 03-Dec-2019
1716,Revenue,CAHD,CSC - Social Work Team - NORTH,Agency Staff (Admin/Support Staff) Pay,Frontline Staffing Ltd,1871.60, 03-Dec-2019
1717,Revenue,CAHD,CSC - Social Work Team - NORTH,Agency Staff (Admin/Support Staff) Pay,Frontline Staffing Ltd,1871.60, 03-Dec-2019
1718,Revenue,CAHD,CSC - Social Work Team - SOUTH,Agency Staff (Admin/Support Staff) Pay,Frontline Staffing Ltd,1871.60, 04-Dec-2019
1719,Revenue,CAHD,CSC - Social Work Team - CENTRAL,Agency Staff (Admin/Support Staff) Pay,Frontline Staffing Ltd,1590.86, 05-Dec-2019
1720,Revenue,CAHD,CSC - Social Work Team - NORTH,Agency Staff (Admin/Support Staff) Pay,Frontline Staffing Ltd,1871.60, 09-Dec-2019
1721,Revenue,CAHD,CSC - Through & Leaving Care Team,Agency Staff (Admin/Support Staff) Pay,Frontline Staffing Ltd,1778.02, 09-Dec-2019
1722,Revenue,CAHD,CSC - Social Work Team - NORTH,Agency Staff (Admin/Support Staff) Pay,Frontline Staffing Ltd,1731.23, 09-Dec-2019
1723,Revenue,CAHD,CSC - Social Work Team - CENTRAL,Agency Staff (Admin/Support Staff) Pay,Frontline Staffing Ltd,1122.96, 10-Dec-2019
1724,Revenue,CAHD,CSC - Social Work Team - CENTRAL,Agency Staff (Admin/Support Staff) Pay,Frontline Staffing Ltd,1731.23, 10-Dec-2019
1725,Revenue,CAHD,CSC - Social Work Team - CENTRAL,Agency Staff (Admin/Support Staff) Pay,Frontline Staffing Ltd,1345.21, 16-Dec-2019
1726,Revenue,CAHD,CSC - Social Work Team - SOUTH,Agency Staff (Admin/Support Staff) Pay,Frontline Staffing Ltd,1871.60, 19-Dec-2019
1727,Revenue,CAHD,CSC - Social Work Team - SOUTH,Agency Staff (Admin/Support Staff) Pay,Frontline Staffing Ltd,1719.53, 18-Dec-2019
1728,Revenue,CAHD,CSC - Social Work Team - NORTH,Agency Staff (Admin/Support Staff) Pay,Frontline Staffing Ltd,1731.23, 18-Dec-2019
1729,Revenue,CAHD,CSC - Social Work Team - CENTRAL,Agency Staff (Admin/Support Staff) Pay,Frontline Staffing Ltd,1871.60, 18-Dec-2019
1730,Revenue,CAHD,CSC - Social Work Team - CENTRAL,Agency Staff (Admin/Support Staff) Pay,Frontline Staffing Ltd,1754.63, 23-Dec-2019
1731,Revenue,CAHD,CSC - Social Work Team - CENTRAL,Agency Staff (Admin/Support Staff) Pay,Frontline Staffing Ltd,1497.28, 24-Dec-2019
1732,Revenue,CAHD,CSC - Social Work Team - NORTH,Agency Staff (Admin/Support Staff) Pay,Frontline Staffing Ltd,1731.23, 24-Dec-2019
1733,Revenue,CAHD,CSC - Social Work Team - NORTH,Agency Staff (Admin/Support Staff) Pay,Frontline Staffing Ltd,1871.60, 24-Dec-2019
1734,Revenue,CAHD,CSC - Social Work Team - NORTH,Agency Staff (Admin/Support Staff) Pay,Frontline Staffing Ltd,1871.60, 24-Dec-2019
1735,Revenue,CAHD,Central - Bed Purchasing and Direct Payments,Permanent Nursing,Fshc  1St Floor,2398.00, 17-Dec-2019
1736,Revenue,CAHD,South Glos Users in South Glos Homes,Permanent Nursing,Fshc  1St Floor,662.24, 17-Dec-2019
1737,Revenue,CAHD,Central - Bed Purchasing and Direct Payments,Permanent Nursing,Fshc  1St Floor,2398.00, 17-Dec-2019
1738,Revenue,CAHD,South Glos Users in South Glos Homes,Permanent Nursing,Fshc  1St Floor,662.24, 17-Dec-2019
1739,Revenue,CAHD,South Glos Users in South Glos Homes,Permanent Nursing,Fshc  1St Floor,662.24, 17-Dec-2019
1740,Revenue,CAHD,Central - Bed Purchasing and Direct Payments,Permanent Residential,Fshc  1St Floor,2764.80, 17-Dec-2019
1741,Revenue,CAHD,Central - Bed Purchasing and Direct Payments,Permanent Residential,Fshc  1St Floor,2230.32, 17-Dec-2019
1742,Revenue,CAHD,South Glos Users in South Glos Homes,Permanent Nursing,Fshc  1St Floor,662.24, 17-Dec-2019
1743,Revenue,CAHD,South Glos Users in South Glos Homes,Permanent Nursing,Fshc  1St Floor,662.24, 17-Dec-2019
1744,Revenue,CAHD,Central - Bed Purchasing and Direct Payments,Permanent Residential,Fshc  1St Floor,2768.00, 17-Dec-2019
1745,Revenue,CAHD,South - bed purchasing and direct  payments,Permanent Residential,Fshc  1St Floor,2817.36, 17-Dec-2019
1746,Revenue,CAHD,North - bed purchasing and direct  payments,Permanent Nursing,Fshc  1St Floor,2398.00, 17-Dec-2019
1747,Revenue,CAHD,South Glos Users in South Glos Homes,Permanent Nursing,Fshc  1St Floor,662.24, 17-Dec-2019
1748,Revenue,CAHD,Central - Bed Purchasing and Direct Payments,Permanent Nursing,Fshc  1St Floor,2398.00, 17-Dec-2019
1749,Revenue,CAHD,South Glos Users in South Glos Homes,Permanent Nursing,Fshc  1St Floor,662.24, 17-Dec-2019
1750,Revenue,CAHD,Central - Bed Purchasing and Direct Payments,Permanent Nursing,Fshc  1St Floor,2398.00, 17-Dec-2019
1751,Revenue,CAHD,South Glos Users in South Glos Homes,Permanent Nursing,Fshc  1St Floor,662.24, 17-Dec-2019
1752,Revenue,CAHD,North - bed purchasing and direct  payments,Permanent Nursing,Fshc  1St Floor,2398.00, 17-Dec-2019
1753,Revenue,CAHD,South Glos Users in South Glos Homes,Permanent Nursing,Fshc  1St Floor,662.24, 17-Dec-2019
1754,Revenue,CAHD,Central - Bed Purchasing and Direct Payments,Permanent Residential,Fshc  1St Floor,2768.00, 17-Dec-2019
1755,Revenue,CAHD,South Glos Users in South Glos Homes,Permanent Nursing,Fshc  1St Floor,662.24, 17-Dec-2019
1756,Revenue,CAHD,North - bed purchasing and direct  payments,Permanent Nursing,Fshc  1St Floor,2398.00, 17-Dec-2019
1757,Revenue,CAHD,South Glos Users in South Glos Homes,Permanent Nursing,Fshc  1St Floor,662.24, 17-Dec-2019
1758,Revenue,CAHD,North - bed purchasing and direct  payments,Fees & Charges Income - General,Fshc  1St Floor,5152.38, 17-Dec-2019
1759,Revenue,CAHD,North - bed purchasing and direct  payments,Permanent Nursing,Fshc  1St Floor,2398.00, 17-Dec-2019
1760,Revenue,CAHD,South Glos Users in South Glos Homes,Permanent Nursing,Fshc  1St Floor,662.24, 17-Dec-2019
1761,Revenue,CAHD,South Glos Users in South Glos Homes,Permanent Nursing,Fshc  1St Floor,662.24, 17-Dec-2019
1762,Revenue,CAHD,Central - Bed Purchasing and Direct Payments,Permanent Nursing,Fshc  1St Floor,2471.60, 17-Dec-2019
1763,Revenue,CAHD,South Glos Users in South Glos Homes,Permanent Nursing,Fshc  1St Floor,662.24, 17-Dec-2019
1764,Revenue,CAHD,North - bed purchasing and direct  payments,Permanent Nursing,Fshc  1St Floor,2439.16, 17-Dec-2019
1765,Revenue,CAHD,South Glos Users in South Glos Homes,Permanent Nursing,Fshc  1St Floor,662.24, 17-Dec-2019
1766,Revenue,CAHD,South Glos Users in South Glos Homes,Permanent Nursing,Fshc  1St Floor,662.24, 17-Dec-2019
1767,Revenue,CAHD,Central - Bed Purchasing and Direct Payments,Permanent Nursing,Fshc  1St Floor,2366.64, 17-Dec-2019
1768,Revenue,CAHD,North - bed purchasing and direct  payments,Permanent Residential,Fshc  1St Floor,2439.16, 17-Dec-2019
1769,Revenue,CAHD,South Glos Users in South Glos Homes,Permanent Nursing,Fshc  1St Floor,662.24, 17-Dec-2019
1770,Revenue,CAHD,Central - Bed Purchasing and Direct Payments,Respite Planned - Nursing,Fshc  1St Floor,1199.00, 17-Dec-2019
1771,Revenue,CAHD,South Glos Users in South Glos Homes,Permanent Nursing,Fshc  1St Floor,662.24, 17-Dec-2019
1772,Revenue,CAHD,South Glos Users in South Glos Homes,Permanent Nursing,Fshc  1St Floor,662.24, 17-Dec-2019
1773,Revenue,CAHD,Central - Bed Purchasing and Direct Payments,Permanent Nursing,Fshc  1St Floor,2141.07, 17-Dec-2019
1774,Revenue,CAHD,Central - Bed Purchasing and Direct Payments,Permanent Residential,Fshc  1St Floor,2768.00, 17-Dec-2019
1775,Revenue,CAHD,Central - Bed Purchasing and Direct Payments,Respite Planned - Nursing,Fshc  1St Floor,1199.00, 17-Dec-2019
1776,Revenue,CAHD,South - bed purchasing and direct  payments,Permanent Residential,Fshc  1St Floor,2768.00, 17-Dec-2019
1777,Revenue,CAHD,South Glos Users in South Glos Homes,Permanent Nursing,Fshc  1St Floor,662.24, 17-Dec-2019
1778,Revenue,CAHD,North - bed purchasing and direct  payments,Permanent Nursing,Fshc  1St Floor,2398.00, 17-Dec-2019
1779,Revenue,CAHD,South Glos Users in South Glos Homes,Permanent Nursing,Fshc  1St Floor,662.24, 17-Dec-2019
1780,Revenue,CAHD,South Glos Users in South Glos Homes,Permanent Nursing,Fshc  1St Floor,1631.95, 17-Dec-2019
1781,Revenue,CAHD,South Glos Users in South Glos Homes,Permanent Nursing,Fshc  1St Floor,662.24, 17-Dec-2019
1782,Revenue,CAHD,South Glos Users in South Glos Homes,Permanent Nursing,Fshc  1St Floor,662.24, 17-Dec-2019
1783,Revenue,CAHD,Central - Bed Purchasing and Direct Payments,Permanent Nursing,Fshc  1St Floor,2398.00, 17-Dec-2019
1784,Revenue,CAHD,South Glos Users in South Glos Homes,Permanent Nursing,Fshc  1St Floor,662.24, 17-Dec-2019
1785,Revenue,CAHD,South Glos Users in South Glos Homes,Permanent Nursing,Fshc  1St Floor,662.24, 17-Dec-2019
1786,Revenue,CAHD,South Glos Users in South Glos Homes,Permanent Nursing,Fshc  1St Floor,662.24, 17-Dec-2019
1787,Revenue,CAHD,South Glos Users in South Glos Homes,Permanent Nursing,Fshc  1St Floor,662.24, 17-Dec-2019
1788,Revenue,CAHD,Central - Bed Purchasing and Direct Payments,Permanent Nursing,Fshc  1St Floor,2398.00, 17-Dec-2019
1789,Revenue,CAHD,South Glos Users in South Glos Homes,Permanent Nursing,Fshc  1St Floor,662.24, 17-Dec-2019
1790,Revenue,CAHD,Central - Bed Purchasing and Direct Payments,Permanent Nursing,Fshc  1St Floor,2398.00, 17-Dec-2019
1791,Revenue,CAHD,South Glos Users in South Glos Homes,Permanent Nursing,Fshc  1St Floor,662.24, 17-Dec-2019
1792,Revenue,CAHD,South Glos Users in South Glos Homes,Permanent Nursing,Fshc  1St Floor,2388.79, 17-Dec-2019
1793,Revenue,CAHD,South - bed purchasing and direct  payments,Permanent Residential,Fshc  1St Floor,2768.00, 17-Dec-2019
1794,Revenue,CAHD,South Glos Users in South Glos Homes,Permanent Nursing,Fshc  1St Floor,662.24, 17-Dec-2019
1795,Revenue,CAHD,Central - Bed Purchasing and Direct Payments,Permanent Nursing,Fshc  1St Floor,2311.20, 17-Dec-2019
1796,Revenue,CAHD,South Glos Users in South Glos Homes,Permanent Nursing,Fshc  1St Floor,662.24, 17-Dec-2019
1797,Revenue,CAHD,North - bed purchasing and direct  payments,Permanent Nursing,Fshc  1St Floor,2437.12, 17-Dec-2019
1798,Revenue,CAHD,South Glos Users in South Glos Homes,Permanent Nursing,Fshc  1St Floor,662.24, 17-Dec-2019
1799,Revenue,CAHD,Central - Bed Purchasing and Direct Payments,Permanent Nursing,Fshc  1St Floor,2398.00, 17-Dec-2019
1800,Revenue,CAHD,South Glos Users in South Glos Homes,Permanent Nursing,Fshc  1St Floor,662.24, 17-Dec-2019
1801,Revenue,CAHD,Central - Bed Purchasing and Direct Payments,Permanent Residential,Fshc  1St Floor,2834.44, 17-Dec-2019
1802,Revenue,CAHD,North - bed purchasing and direct  payments,Permanent Nursing,Fshc  1St Floor,2398.00, 17-Dec-2019
1803,Revenue,CAHD,South Glos Users in South Glos Homes,Permanent Nursing,Fshc  1St Floor,662.24, 17-Dec-2019
1804,Revenue,CAHD,North - bed purchasing and direct  payments,Permanent Nursing,Fshc  1St Floor,2398.00, 17-Dec-2019
1805,Revenue,CAHD,South Glos Users in South Glos Homes,Permanent Nursing,Fshc  1St Floor,662.24, 17-Dec-2019
1806,Revenue,CAHD,Central - Bed Purchasing and Direct Payments,Permanent Nursing,Fshc  1St Floor,2398.00, 17-Dec-2019
1807,Revenue,CAHD,South Glos Users in South Glos Homes,Permanent Nursing,Fshc  1St Floor,662.24, 17-Dec-2019
1808,Revenue,CAHD,South Glos Users in South Glos Homes,Permanent Nursing,Fshc  1St Floor,662.24, 17-Dec-2019
1809,Revenue,CAHD,North - bed purchasing and direct  payments,Permanent Nursing,Fshc  1St Floor,2356.60, 17-Dec-2019
1810,Revenue,CAHD,South Glos Users in South Glos Homes,Permanent Nursing,Fshc  1St Floor,662.24, 17-Dec-2019
1811,Revenue,CAHD,North - bed purchasing and direct  payments,Permanent Nursing,Fshc  1St Floor,2471.44, 17-Dec-2019
1812,Revenue,CAHD,South Glos Users in South Glos Homes,Permanent Nursing,Fshc  1St Floor,662.24, 17-Dec-2019
1813,Revenue,CAHD,Central - Bed Purchasing and Direct Payments,Permanent Nursing,Fshc  1St Floor,2486.12, 17-Dec-2019
1814,Revenue,CAHD,South Glos Users in South Glos Homes,Permanent Nursing,Fshc  1St Floor,662.24, 17-Dec-2019
1815,Revenue,CAHD,North - bed purchasing and direct  payments,Permanent Residential,Fshc  1St Floor,3400.00, 17-Dec-2019
1816,Revenue,CAHD,South Glos Users in South Glos Homes,Permanent Nursing,Fshc  1St Floor,662.24, 17-Dec-2019
1817,Revenue,CAHD,Central - Bed Purchasing and Direct Payments,Permanent Nursing,Fshc  1St Floor,3200.00, 17-Dec-2019
1818,Revenue,CAHD,South Glos Users in South Glos Homes,Permanent Nursing,Fshc  1St Floor,662.24, 17-Dec-2019
1819,Revenue,CAHD,North - bed purchasing and direct  payments,Permanent Nursing,Fshc  1St Floor,2398.00, 17-Dec-2019
1820,Revenue,CAHD,South Glos Users in South Glos Homes,Permanent Nursing,Fshc  1St Floor,662.24, 17-Dec-2019
1821,Revenue,CAHD,Central - Bed Purchasing and Direct Payments,Permanent Nursing,Fshc  1St Floor,3234.72, 17-Dec-2019
1822,Revenue,CAHD,South Glos Users in South Glos Homes,Permanent Nursing,Fshc  1St Floor,662.24, 17-Dec-2019
1823,Revenue,CAHD,Central - Bed Purchasing and Direct Payments,Permanent Nursing,Fshc  1St Floor,3472.44, 17-Dec-2019
